Workbook

Sheet Sumário

Sheet Destaques
A2: GRUPO SER EDUCACIONAL
A3: DESTAQUES FINANCEIROS
A6: Destaques (Valores em R$ ('000)) | B6: 2009 | C6: 2010 | D6: 2011 | E6: 2012 | F6: 2013 | G6: 2014 | H6: 2015 | I6: 2016 | J6: 2017 | K6: 2018 | L6: 2019 | M6: 2020 | N6: 2021 | O6: 2022 | P6: 3T12 | Q6: 4T12 | R6: 1T13 | S6: 2T13 | T6: 3T13 | U6: 4T13 | V6: 1T14 | W6: 2T14 | X6: 3T14 | Y6: 4T14 | Z6: 1T15 | AA6: 2T15 | AB6: 3T15 | AC6: 4T15 | AD6: 1T16 | AE6: 2T16 | AF6: 3T16 | AG6: 4T16 | AH6: 1T17 | AI6: 2T17 | AJ6: 3T17 | AK6: 4T17 | AL6: 1T18 | AM6: 2T18 | AN6: 3T18 | AO6: 4T18 | AP6: 1T19 | AQ6: 2T19 | AR6: 3T19 | AS6: 4T19 | AT6: 1T20 | AU6: 2T20 | AV6: 3T20 | AW6: 4T20 | AX6: 1T21 | AY6: 2T21 | AZ6: 3T21 | BA6: 4T21 | BB6: 1T22 | BC6: 2T22 | BD6: 3T22 | BE6: 4T22
A7: Receita Líquida | B7: 121754 | C7: 141296 | D7: 183517 | E7: 283285 | F7: 456761 | G7: 705067 | H7: 1032448 | I7: 1125380 | J7: 1231785 | K7: 1262486 | L7: 1275986.305 | M7: 1250463 | N7: 1407358 | O7: 1676343 | P7: 73289 | Q7: 73742 | R7: 106987 | S7: 113614 | T7: 111604 | U7: 124556 | V7: 154530 | W7: 175618 | X7: 171058 | Y7: 203861 | Z7: 269498 | AA7: 273164 | AB7: 241276 | AC7: 248510 | AD7: 285125 | AE7: 289600 | AF7: 273255 | AG7: 277400 | AH7: 308820 | AI7: 326240 | AJ7: 292730 | AK7: 303995 | AL7: 317249 | AM7: 339167 | AN7: 286003 | AO7: 320067 | AP7: 304164 | AQ7: 332605 | AR7: 288910 | AS7: 350307.3053 | AT7: 308526 | AU7: 343020 | AV7: 269454 | AW7: 329463 | AX7: 306724 | AY7: 385651 | AZ7: 324083 | BA7: 390900 | BB7: 380210 | BC7: 464217 | BD7: 389661 | BE7: 442255
A8: Lucro Bruto | B8: 80529 | C8: 90893 | D8: 111701 | E8: 181098 | F8: 276591 | G8: 437772 | H8: 554992 | I8: 613994 | J8: 675140 | K8: 685496 | L8: 695473.3053 | M8: 669778 | N8: 761442 | O8: 833499.4984 | P8: 47745 | Q8: 45230 | R8: 71469 | S8: 68399 | T8: 67434 | U8: 68289 | V8: 101402 | W8: 111537 | X8: 108829 | Y8: 116004 | Z8: 166487 | AA8: 145882 | AB8: 125314 | AC8: 117309 | AD8: 169147 | AE8: 151691 | AF8: 154289 | AG8: 138867 | AH8: 184904 | AI8: 178021 | AJ8: 163584 | AK8: 148631 | AL8: 178378 | AM8: 185955 | AN8: 151057 | AO8: 170106 | AP8: 166103 | AQ8: 185918 | AR8: 157736 | AS8: 185716.3053 | AT8: 153550 | AU8: 204714 | AV8: 134499 | AW8: 177015 | AX8: 163369 | AY8: 212573 | AZ8: 169245 | BA8: 216255 | BB8: 192970.4403 | BC8: 236750 | BD8: 186867.5827 | BE8: 216911.4755
A9: Margem Bruta | B9: 0.661 | C9: 0.643 | D9: 0.609 | E9: 0.639 | F9: 0.606 | G9: 0.6208941845 | H9: 0.5375495909 | I9: 0.5455881569 | J9: 0.5480988971 | K9: 0.5429731498 | L9: 0.5450476251 | M9: 0.5356240049 | N9: 0.5410435724 | O9: 0.49721298 | P9: 0.651 | Q9: 0.613 | R9: 0.668 | S9: 0.602 | T9: 0.604 | U9: 0.556 | V9: 0.656 | W9: 0.635 | X9: 0.6362111097 | Y9: 0.5690347835 | Z9: 0.6177671077 | AA9: 0.5340454818 | AB9: 0.5193802948 | AC9: 0.4720494145 | AD9: 0.5932380535 | AE9: 0.5237948895 | AF9: 0.564633767 | AG9: 0.5006020187 | AH9: 0.5987436047 | AI9: 0.5456749632 | AJ9: 0.5588221228 | AK9: 0.4889258047 | AL9: 0.5622649717 | AM9: 0.5482697314 | AN9: 0.5281657885 | AO9: 0.5314699735 | AP9: 0.5460968425 | AQ9: 0.5589753612 | AR9: 0.545969333 | AS9: 0.5301525332 | AT9: 0.4976890116 | AU9: 0.5967990205 | AV9: 0.4991538444 | AW9: 0.5372833975 | AX9: 0.5326254222 | AY9: 0.5512056237 | AZ9: 0.5222273307 | BA9: 0.5532233308 | BB9: 0.5075364674 | BC9: 0.5099985567 | BD9: 0.4795645002 | BE9: 0.4904669828
A10: Resultado Operacional | B10: 38933 | C10: 44876 | D10: 45329 | E10: 76405 | F10: 137378 | G10: 229349 | H10: 230285 | I10: 296995 | J10: 256034.9219 | K10: 235685 | L10: 260270.3053 | M10: 313194 | N10: 177466 | O10: -24228 | P10: 24038 | Q10: 7173 | R10: 43779 | S10: 33307 | T10: 34594 | U10: 25698 | V10: 58436 | W10: 60629 | X10: 59161 | Y10: 51123 | Z10: 94273 | AA10: 61205 | AB10: 41898 | AC10: 32909 | AD10: 99006 | AE10: 80169 | AF10: 67375 | AG10: 50445 | AH10: 99203 | AI10: 85084 | AJ10: 52898 | AK10: 18849.92193 | AL10: 60369 | AM10: 80415 | AN10: 52128 | AO10: 42773 | AP10: 75478 | AQ10: 88970 | AR10: 47251 | AS10: 48571.30531 | AT10: 40222 | AU10: 89326 | AV10: 9729 | AW10: 173917 | AX10: 40293 | AY10: 61275 | AZ10: 32172 | BA10: 43726 | BB10: 20568 | BC10: 7360 | BD10: 24414 | BE10: -76570
A11: Margem Operacional | B11: 0.32 | C11: 0.318 | D11: 0.247 | E11: 0.27 | F11: 0.301 | G11: 0.3252868167 | H11: 0.223047553 | I11: 0.2639064138 | J11: 0.2078568272 | K11: 0.1866832583 | L11: 0.2039757827 | M11: 0.2504624287 | N11: 0.1260986899 | O11: -0.01445288941 | P11: 0.328 | Q11: 0.09727 | R11: 0.409 | S11: 0.293 | T11: 0.31 | U11: 0.206 | V11: 0.378 | W11: 0.345 | X11: 0.3458534532 | Y11: 0.2507738116 | Z11: 0.3498096461 | AA11: 0.2240595393 | AB11: 0.1736517515 | AC11: 0.1324252545 | AD11: 0.3472371767 | AE11: 0.2768266575 | AF11: 0.2465645642 | AG11: 0.1818493151 | AH11: 0.3212324331 | AI11: 0.2608018637 | AJ11: 0.1807057698 | AK11: 0.06782019441 | AL11: 0.1902890159 | AM11: 0.2370955901 | AN11: 0.1822638224 | AO11: 0.1336376446 | AP11: 0.2481490249 | AQ11: 0.2674944754 | AR11: 0.1635492022 | AS11: 0.1386534182 | AT11: 0.1303682672 | AU11: 0.2604104717 | AV11: 0.03610634839 | AW11: 0.5278802172 | AX11: 0.1313656577 | AY11: 0.1588871804 | AZ11: 0.0992708658 | BA11: 0.1118598107 | BB11: 0.0540964204 | BC11: 0.01585465418 | BD11: 0.06265446119 | BE11: -0.1731354083
A12: EBITDA | B12: - | C12: 53946 | D12: 56463 | E12: 89858 | F12: 157037 | G12: 253972 | H12: 286385 | I12: 357272 | J12: 321124.9219 | K12: 309604.2564 | L12: 391176.3053 | M12: 488845 | N12: 362336 | O12: 190090 | P12: 26912 | Q12: 12315 | R12: 47328 | S12: 38164 | T12: 39719 | U12: 31826 | V12: 63077 | W12: 66369 | X12: 65735 | Y12: 58791 | Z12: 106599 | AA12: 76169 | AB12: 56441 | AC12: 47176 | AD12: 113518 | AE12: 94980 | AF12: 82646 | AG12: 66128 | AH12: 113731 | AI12: 101575 | AJ12: 69662 | AK12: 36156.92193 | AL12: 77753 | AM12: 98491 | AN12: 70967 | AO12: 62393.25639 | AP12: 101966 | AQ12: 123268 | AR12: 77502 | AS12: 88440.30531 | AT12: 84119 | AU12: 133699 | AV12: 53502 | AW12: 217525 | AX12: 82927 | AY12: 107800 | AZ12: 79036 | BA12: 92573 | BB12: 70137 | BC12: 59325 | BD12: 80343 | BE12: -19715
A13: Margem EBITDA | B13: 0 | C13: 0.382 | D13: 0.308 | E13: 0.317 | F13: 0.344 | G13: 0.3602097389 | H13: 0.27738443 | I13: 0.3174678775 | J13: 0.2606988411 | K13: 0.2452338136 | L13: 0.3065677928 | M13: 0.3909311991 | N13: 0.2574583013 | O13: 0.1133956475 | P13: 0.3672 | Q13: 0.167 | R13: 0.442 | S13: 0.336 | T13: 0.35589 | U13: 0.256 | V13: 0.408 | W13: 0.378 | X13: 0.3842848624 | Y13: 0.2883876759 | Z13: 0.3955465347 | AA13: 0.2788398178 | AB13: 0.2339271208 | AC13: 0.1898354191 | AD13: 0.3981341517 | AE13: 0.3279696133 | AF13: 0.3024500924 | AG13: 0.2383850036 | AH13: 0.3682760184 | AI13: 0.3113505395 | AJ13: 0.2379735593 | AK13: 0.1189391994 | AL13: 0.2450850909 | AM13: 0.2903908694 | AN13: 0.2481337608 | AO13: 0.1949381111 | AP13: 0.335233624 | AQ13: 0.3706137911 | AR13: 0.2682565505 | AS13: 0.2524649186 | AT13: 0.2726480102 | AU13: 0.3897702758 | AV13: 0.1985570821 | AW13: 0.6602410589 | AX13: 0.2703635842 | AY13: 0.2795273447 | AZ13: 0.2438757972 | BA13: 0.2368201586 | BB13: 0.1844691092 | BC13: 0.1277958369 | BD13: 0.2061869163 | BE13: -0.04457835412
A14: EBITDA Ajustado | B14: - | C14: 52411 | D14: 54241 | E14: 87637 | F14: 154467 | G14: 247816 | H14: 297831.4739 | I14: 354102.15 | J14: 331499.7425 | K14: 320129.8716 | L14: 334795.9074 | M14: 316737.2444 | N14: 317464.5206 | O14: 292568.7456 | P14: 25604 | Q14: 14149 | R14: 47821 | S14: 38155 | T14: 37046 | U14: 31443 | V14: 62749 | W14: 65380 | X14: 64934 | Y14: 54752 | Z14: 104566 | AA14: 78434 | AB14: 61422.54975 | AC14: 53408.92411 | AD14: 113087 | AE14: 91001.06384 | AF14: 81402 | AG14: 68612.08619 | AH14: 112162 | AI14: 102570.986 | AJ14: 75468 | AK14: 41298.75651 | AL14: 78219.94398 | AM14: 105516.4458 | AN14: 75386.84053 | AO14: 61006.64129 | AP14: 97067.01759 | AQ14: 88400.09959 | AR14: 68308.64735 | AS14: 81020.14286 | AT14: 77626.5804 | AU14: 108651.7104 | AV14: 54815.66043 | AW14: 75643.29309 | AX14: 67863.24614 | AY14: 97197.22859 | AZ14: 67956.23678 | BA14: 84447.80907 | BB14: 65710.89929 | BC14: 100747.2946 | BD14: 54788.7831 | BE14: 71321.76861
A15: Margem EBITDA Ajustada | B15: 0 | C15: 0.371 | D15: 0.296 | E15: 0.309 | F15: 0.338 | G15: 0.3514786538 | H15: 0.2884711616 | I15: 0.3146511845 | J15: 0.2691214315 | K15: 0.253571027 | L15: 0.2623820538 | M15: 0.2532959747 | N15: 0.2255748151 | O15: 0.1745279728 | P15: 0.349 | Q15: 0.192 | R15: 0.447 | S15: 0.336 | T15: 0.332 | U15: 0.252 | V15: 0.406 | W15: 0.372 | X15: 0.3796022402 | Y15: 0.2685751566 | Z15: 0.3880028794 | AA15: 0.28713154 | AB15: 0.2545738065 | AC15: 0.2149165994 | AD15: 0.396622534 | AE15: 0.3142301928 | AF15: 0.2978975682 | AG15: 0.2473398925 | AH15: 0.3631953889 | AI15: 0.3144034638 | AJ15: 0.257807536 | AK15: 0.1358534072 | AL15: 0.2465569442 | AM15: 0.3111046942 | AN15: 0.2635875866 | AO15: 0.1906058459 | AP15: 0.3191272392 | AQ15: 0.2657810303 | AR15: 0.2364357321 | AS15: 0.2312830524 | AT15: 0.2516046635 | AU15: 0.3167503657 | AV15: 0.20343235 | AW15: 0.2295957151 | AX15: 0.2212518295 | AY15: 0.2520341671 | AZ15: 0.2096877552 | BA15: 0.2160343031 | BB15: 0.172827909 | BC15: 0.2170262928 | BD15: 0.1406062785 | BE15: 0.161268428
A16: Lucro Líquido | B16: 29707 | C16: 35719 | D16: 31552 | E16: 64256 | F16: 116297 | G16: 213864 | H16: 172155 | I16: 230448 | J16: 197474.9219 | K16: 201279 | L16: 136372.3053 | M16: 165034 | N16: 52482.7 | O16: -222148 | P16: 20168 | Q16: 6415 | R16: 39734 | S16: 29075 | T16: 25958 | U16: 21530 | V16: 58706 | W16: 53721 | X16: 57663 | Y16: 43774 | Z16: 82844 | AA16: 49006 | AB16: 24156 | AC16: 16149 | AD16: 85913 | AE16: 63759 | AF16: 48621 | AG16: 32155 | AH16: 80225 | AI16: 64895 | AJ16: 48033 | AK16: 4321.92193 | AL16: 58220 | AM16: 73023 | AN16: 36931 | AO16: 33105 | AP16: 56092 | AQ16: 59006 | AR16: 23837 | AS16: -2562.69469 | AT16: 16766 | AU16: 54716 | AV16: -27978 | AW16: 121530 | AX16: 30067.7 | AY16: 25698 | AZ16: -6777 | BA16: 3494 | BB16: -18319 | BC16: -39093 | BD16: -39345 | BE16: -125391
A17: Margem Líquida | B17: 0.244 | C17: 0.253 | D17: 0.172 | E17: 0.227 | F17: 0.255 | G17: 0.3033243649 | H17: 0.1667444753 | I17: 0.2047734987 | J17: 0.1603160632 | K17: 0.1594306788 | L17: 0.1068759945 | M17: 0.1319783152 | N17: 0.03729164861 | O17: -0.1325194188 | P17: 0.275 | Q17: 0.08699 | R17: 0.371 | S17: 0.256 | T17: 0.233 | U17: 0.173 | V17: 0.38 | W17: 0.306 | X17: 0.3370961896 | Y17: 0.2147247389 | Z17: 0.3074011681 | AA17: 0.1794013852 | AB17: 0.1001177075 | AC17: 0.06498330047 | AD17: 0.3013169662 | AE17: 0.2201622928 | AF17: 0.1779327002 | AG17: 0.1159156453 | AH17: 0.2597791594 | AI17: 0.1989179745 | AJ17: 0.1640863594 | AK17: 0.01421708229 | AL17: 0.1835151569 | AM17: 0.2153010169 | AN17: 0.1291280161 | AO17: 0.103431469 | AP17: 0.1844136716 | AQ17: 0.1774056313 | AR17: 0.08250666297 | AS17: -0.007315561654 | AT17: 0.05434225965 | AU17: 0.1595125649 | AV17: -0.103832194 | AW17: 0.3688729842 | AX17: 0.09802852075 | AY17: 0.06663537758 | AZ17: -0.02091130976 | BA17: 0.008938347403 | BB17: -0.04818126825 | BC17: -0.08421277118 | BD17: -0.1009723837 | BE17: -0.2835264723
A18: Lucro Líquido Ajustado | B18: 0 | C18: 0 | D18: 0 | E18: 0 | F18: 0 | G18: 0 | H18: 194144 | I18: 243958 | J18: 217478 | K18: 237805.2231 | L18: 188770.5851 | M18: 118943.8736 | N18: 109199 | O18: 834.6365918 | P18: 0 | Q18: 6733.968955 | R18: 40019.01346 | S18: 29553.1565 | T18: 26197.47563 | U18: 23279.89051 | V18: 59574.54112 | W18: 56594.22166 | X18: 59640.88654 | Y18: 44602.1141 | Z18: 84130 | AA18: 56616 | AB18: 30777 | AC18: 22621 | AD18: 87405 | AE18: 61667 | AF18: 54852 | AG18: 40034 | AH18: 82799 | AI18: 66844 | AJ18: 51798 | AK18: 16037 | AL18: 62836 | AM18: 86195 | AN18: 49858 | AO18: 38916.22312 | AP18: 63926.24052 | AQ18: 53794.49162 | AR18: 36184.80578 | AS18: 34865.04713 | AT18: 29445.84247 | AU18: 58261.07235 | AV18: -1301.339574 | AW18: 32538.29833 | AX18: 36220.60628 | AY18: 41756.05741 | AZ18: 7455.283043 | BA18: 30758.11458 | BB18: 639.3233287 | BC18: 31021.38145 | BD18: -30384.57872 | BE18: -441.4894696
A19: Margem Líquida Ajustada | B19: 0 | C19: 0 | D19: 0 | E19: 0 | F19: 0 | G19: 0 | H19: 0.1880424002 | I19: 0.2167783327 | J19: 0.1765551618 | K19: 0.1883626615 | L19: 0.1479409178 | M19: 0.09511986647 | N19: 0.07759148703 | O19: 0.0004978912978 | P19: 0 | Q19: 0.09131795931 | R19: 0.3740549175 | S19: 0.2601189686 | T19: 0.2347359918 | U19: 0.1869030035 | V19: 0.385520877 | W19: 0.3222575229 | X19: 0.3486588557 | Y19: 0.2187868896 | Z19: 0.3121730031 | AA19: 0.2072601075 | AB19: 0.1275593097 | AC19: 0.09102651805 | AD19: 0.3065497589 | AE19: 0.2129385359 | AF19: 0.2007355767 | AG19: 0.1443186734 | AH19: 0.2681141118 | AI19: 0.204892104 | AJ19: 0.1769480409 | AK19: 0.05275415714 | AL19: 0.1980652421 | AM19: 0.2541373424 | AN19: 0.1743268427 | AO19: 0.1215877398 | AP19: 0.2101703046 | AQ19: 0.1617368699 | AR19: 0.1252459443 | AS19: 0.09952703413 | AT19: 0.09544039229 | AU19: 0.1698474502 | AV19: -0.004829542607 | AW19: 0.09876161611 | AX19: 0.1180885952 | AY19: 0.1082742101 | AZ19: 0.02300423979 | BA19: 0.07868537882 | BB19: 0.001681500562 | BC19: 0.06682517325 | BD19: -0.07797695617 | BE19: -0.0009982690294

Sheet Grafico_FDC (hidden)
B1: =A2 -> Caixa - Início do Período | C1: =A3 -> Fluxo de Caixa Operacional | D1: =A4 -> Res. Financeiro | E1: =A5 -> Var. Outros Ativos e Passivos | F1: =A6 -> Var. Patrimônio Líquido (OPA e Outros) | G1: =A7 -> Empréstimos | H1: =A8 -> IR | I1: =A9 -> Caixa - Fim do Período | J1: Total | O1: =N2 -> Cash - Beginning of Period | P1: =N3 -> Operating Cash Flow | Q1: =N4 -> Financial Result | R1: =N5 -> Chg. In Other Assets & Liabilities | S1: =N6 -> Chg. In Shareholders' Equity (Tender Offer & Others) | T1: =N7 -> Loans | U1: =N8 -> Income Tax | V1: =N9 -> Cash - End of Period | W1: Total
A2: Caixa - Início do Período | B2: 2.7 | C2: =J2 -> 2.7 | D2: =J2+J3+J4 -> 131.838 | E2: =J2+J3+J4+J5 -> 107.833 | F2: =J2+J3+J4+J5 -> 107.833 | G2: =J2+J3+J4+J5+J6+J7 -> 685.533 | H2: =J2+J3+J4+J5+J6+J7+J8 -> 650.533 | I2: =J9 -> 650.533 | J2: 2.7 | N2: Cash - Beginning of Period
A3: Fluxo de Caixa Operacional | C3: =J3 -> 139.348 | J3: =115.343-J5 -> 139.348 | N3: Operating Cash Flow
A4: Res. Financeiro | D4: =-J4 -> 10.21 | J4: =105.133-115.343 -> -10.21 | N4: Financial Result
A5: Var. Outros Ativos e Passivos | E5: =-J5 -> 24.005 | J5: -24.005 | N5: Chg. In Other Assets & Liabilities
A6: Var. Patrimônio Líquido (OPA e Outros) | F6: =J6 -> 617.7 | J6: 617.7 | N6: Chg. In Shareholders' Equity (Tender Offer & Others)
A7: Empréstimos | G7: =-J7 -> 40 | J7: -40 | N7: Loans
A8: IR | H8: =-J8 -> 35 | J8: -35 | N8: Income Tax
A9: Caixa - Fim do Período | J9: =SUM(J2:J8) -> 650.533 | N9: Cash - End of Period

Sheet Demonstração de Resultados
A2: GRUPO SER EDUCACIONAL
A3: DEMONSTRAÇÃO DE RESULTADOS (CONSOLIDADO)
A4: Voltar
A6: Demonstração de Resultados (Valores em R$ ('000)) | B6: 2009 | C6: 2010 | D6: 2011 | E6: 2012 | F6: 2013 | G6: 2014 | H6: 2015 | I6: 2016 | J6: 2017 | K6: 2018 | L6: 2019 | M6: 2020 | N6: 2021 | O6: 2022 | P6: 3T12 | Q6: 4T12 | R6: 1T13 | S6: 2T13 | T6: 3T13 | U6: 4T13 | V6: 1T14 | W6: 2T14 | X6: 3T14 | Y6: 4T14 | Z6: 1T15 | AA6: 2T15 | AB6: 3T15 | AC6: 4T15 | AD6: 1T16 | AE6: 2T16 | AF6: 3T16 | AG6: 4T16 | AH6: 1T17 | AI6: 2T17 | AJ6: 3T17 | AK6: 4T17 | AL6: 1T18 | AM6: 2T18 | AN6: 3T18 | AO6: 4T18 | AP6: 1T19 | AQ6: 2T19 | AR6: 3T19 | AS6: 4T19 | AT6: 1T20 | AU6: 2T20 | AV6: 3T20 | AW6: 4T20 | AX6: 1T21 | AY6: 2T21 | AZ6: 3T21 | BA6: 4T21 | BB6: 1T22 | BC6: 2T22 | BD6: 3T22 | BE6: 4T22
A7: Receita Bruta de Venda de Bens e/ou Serviços | B7: 158930 | C7: 179131 | D7: 227820 | E7: 342030 | F7: 552816 | G7: 833080 | H7: 1289286 | I7: 1426045 | J7: 1640921.922 | K7: 1847993 | L7: 2122024.305 | M7: 2439015 | N7: 2804769 | O7: 3428929 | P7: 87489 | Q7: 90219 | R7: 124254 | S7: 137758 | T7: 136190 | U7: 154614 | V7: 181461 | W7: 209922 | X7: 201751 | Y7: 239946 | Z7: 323306 | AA7: 346963 | AB7: 305960 | AC7: 313057 | AD7: 352063 | AE7: 368981 | AF7: 349492 | AG7: 355509 | AH7: 405005 | AI7: 434899 | AJ7: 394073 | AK7: 406944.9219 | AL7: 437179 | AM7: 471604 | AN7: 450430 | AO7: 488780 | AP7: 496858 | AQ7: 562017 | AR7: 500902 | AS7: 562247.3053 | AT7: 601697 | AU7: 621802 | AV7: 568993 | AW7: 646523 | AX7: 645761 | AY7: 734851 | AZ7: 695578 | BA7: 728579 | BB7: 861011 | BC7: 916777 | BD7: 817185 | BE7: 833956
A8: Mensalidades de Ensino Híbrido | B8: 153575 | C8: 172382 | D8: 214280 | E8: 332498 | F8: 526008 | G8: 731205 | H8: 1226945 | I8: 1387829 | J8: 1591583 | K8: 1760765 | L8: 1971517 | M8: 2210112 | N8: 2469642 | O8: 2824456 | P8: 84918 | Q8: 87586 | R8: 121071 | S8: 135637 | T8: 133218 | U8: 136082 | V8: 160816 | W8: 188628 | X8: 175064 | Y8: 206697 | Z8: 297978 | AA8: 329878 | AB8: 296088 | AC8: 303001 | AD8: 341826 | AE8: 361072 | AF8: 339054 | AG8: 345877 | AH8: 393437 | AI8: 423809 | AJ8: 380731 | AK8: 393606 | AL8: 417247 | AM8: 449163 | AN8: 427614 | AO8: 466741 | AP8: 462394 | AQ8: 526026 | AR8: 459550 | AS8: 523547 | AT8: 550108 | AU8: 571991 | AV8: 510400 | AW8: 577613 | AX8: 573937 | AY8: 655468 | AZ8: 607514 | BA8: 632723 | BB8: 690990 | BC8: 742423 | BD8: 682457 | BE8: 708586
A9: Mensalidades de EAD | B9: 0 | C9: 0 | D9: 0 | E9: 0 | F9: 0 | G9: 5133 | H9: 9430 | I9: 18316 | J9: 32984 | K9: 70786 | L9: 134173 | M9: 218080 | N9: 308131 | O9: 543162 | P9: 0 | Q9: 0 | R9: 0 | S9: 0 | T9: 0 | U9: 0 | V9: 0 | W9: 995 | X9: 1682 | Y9: 2089 | Z9: 2221 | AA9: 2491 | AB9: 2141 | AC9: 2577 | AD9: 2954 | AE9: 3989 | AF9: 5845 | AG9: 5528 | AH9: 6576 | AI9: 7529 | AJ9: 9319 | AK9: 9560 | AL9: 15605 | AM9: 18927 | AN9: 17771 | AO9: 18483 | AP9: 29869 | AQ9: 32854 | AR9: 36537 | AS9: 34913 | AT9: 47477 | AU9: 48462 | AV9: 56161 | AW9: 65980 | AX9: 67586 | AY9: 76049 | AZ9: 80025 | BA9: 84471 | BB9: 155550 | BC9: 159718 | BD9: 118606 | BE9: 109288
A10: Outras | B10: 5355 | C10: 6749 | D10: 13540 | E10: 9532 | F10: 26808 | G10: 96742 | H10: 52911 | I10: 19900 | J10: 16354.92193 | K10: 16442 | L10: 16334.30531 | M10: 10823 | N10: 26996 | O10: 61311 | P10: 2571 | Q10: 2633 | R10: 3183 | S10: 2121 | T10: 2972 | U10: 18532 | V10: 20645 | W10: 20299 | X10: 25005 | Y10: 31160 | Z10: 23107 | AA10: 14594 | AB10: 7731 | AC10: 7479 | AD10: 7283 | AE10: 3920 | AF10: 4593 | AG10: 4104 | AH10: 4992 | AI10: 3561 | AJ10: 4023 | AK10: 3778.92193 | AL10: 4327 | AM10: 3514 | AN10: 5045 | AO10: 3556 | AP10: 4595 | AQ10: 3137 | AR10: 4815 | AS10: 3787.30531 | AT10: 4112 | AU10: 1349 | AV10: 2432 | AW10: 2930 | AX10: 4238 | AY10: 3334 | AZ10: 8039 | BA10: 11385 | BB10: 14471 | BC10: 14636 | BD10: 16122 | BE10: 16082
A11: Deduções da Receita Bruta | B11: -37176 | C11: -37835 | D11: -44303 | E11: -58745 | F11: -96055 | G11: -128013 | H11: -256838 | I11: -300665 | J11: -409137 | K11: -585507 | L11: -846038 | M11: -1188552 | N11: -1397411 | O11: -1752586 | P11: -14200 | Q11: -16477 | R11: -17267 | S11: -24144 | T11: -24586 | U11: -30058 | V11: -26931 | W11: -34304 | X11: -30693 | Y11: -36085 | Z11: -53808 | AA11: -73799 | AB11: -64684 | AC11: -64547 | AD11: -66938 | AE11: -79381 | AF11: -76237 | AG11: -78109 | AH11: -96185 | AI11: -108659 | AJ11: -101343 | AK11: -102950 | AL11: -119930 | AM11: -132437 | AN11: -164427 | AO11: -168713 | AP11: -192694 | AQ11: -229412 | AR11: -211992 | AS11: -211940 | AT11: -293171 | AU11: -278782 | AV11: -299539 | AW11: -317060 | AX11: -339037 | AY11: -349200 | AZ11: -371495 | BA11: -337679 | BB11: -480801 | BC11: -452560 | BD11: -427524 | BE11: -391701
A12: Descontos e Bolsas | B12: -31922 | C12: -29763 | D12: -34550 | E12: -44239 | F12: -73095 | G12: -91990 | H12: -213340 | I12: -258190 | J12: -365249 | K12: -542315 | L12: -803987 | M12: -1145579 | N12: -1349857 | O12: -1693886 | P12: -10511 | Q12: -12710 | R12: -12057 | S12: -18598 | T12: -18958 | U12: -23482 | V12: -19195 | W12: -25526 | X12: -21747 | Y12: -25522 | Z12: -42306 | AA12: -62074 | AB12: -53726 | AC12: -55234 | AD12: -54607 | AE12: -68818 | AF12: -66791 | AG12: -67974 | AH12: -85055 | AI12: -96572 | AJ12: -91241 | AK12: -92381 | AL12: -108979 | AM12: -120521 | AN12: -155032 | AO12: -157783 | AP12: -182770 | AQ12: -218468 | AR12: -202085 | AS12: -200664 | AT12: -282786 | AU12: -266852 | AV12: -290188 | AW12: -305753 | AX12: -328955 | AY12: -336551 | AZ12: -359821 | BA12: -324530 | BB12: -467584 | BC12: -436108 | BD12: -413774 | BE12: -376420
A13: Impostos | B13: -5254 | C13: -8072 | D13: -9753 | E13: -14506 | F13: -22960 | G13: -36023 | H13: -43498 | I13: -42475 | J13: -43888 | K13: -43192 | L13: -42051 | M13: -42973 | N13: -47554 | O13: -58700 | P13: -3689 | Q13: -3767 | R13: -5210 | S13: -5546 | T13: -5628 | U13: -6576 | V13: -7736 | W13: -8778 | X13: -8946 | Y13: -10563 | Z13: -11502 | AA13: -11725 | AB13: -10958 | AC13: -9313 | AD13: -12331 | AE13: -10563 | AF13: -9446 | AG13: -10135 | AH13: -11130 | AI13: -12087 | AJ13: -10102 | AK13: -10569 | AL13: -10951 | AM13: -11916 | AN13: -9395 | AO13: -10930 | AP13: -9924 | AQ13: -10944 | AR13: -9907 | AS13: -11276 | AT13: -10385 | AU13: -11930 | AV13: -9351 | AW13: -11307 | AX13: -10082 | AY13: -12649 | AZ13: -11674 | BA13: -13149 | BB13: -13217 | BC13: -16452 | BD13: -13750 | BE13: -15281
A14: % Descontos e Bolsas/ Receita Operacional Bruta | B14: 0.2008557226 | C14: 0.1661521456 | D14: 0.1516548152 | E14: 0.1293424553 | F14: 0.1322230181 | G14: 0.1104215682 | H14: 0.1654714315 | I14: 0.1810531926 | J14: 0.2225876778 | K14: 0.2934616094 | L14: 0.3788773757 | M14: 0.4696891983 | N14: 0.4812720762 | O14: 0.4939985634 | P14: 0.1201408177 | Q14: 0.1408794156 | R14: 0.09703510551 | S14: 0.1350048636 | T14: 0.1392025846 | U14: 0.1518749919 | V14: 0.1057803054 | W14: 0.1215975458 | X14: 0.1077912873 | Y14: 0.1063655989 | Z14: 0.1308543609 | AA14: 0.1789066846 | AB14: 0.1755981174 | AC14: 0.1755981174 | AD14: 0.1551057623 | AE14: 0.1865082484 | AF14: 0.1911088094 | AG14: 0.1912019105 | AH14: 0.210009753 | AI14: 0.2220561556 | AJ14: 0.2315332438 | AK14: 0.2270110647 | AL14: 0.2492777558 | AM14: 0.2555555084 | AN14: 0.3441866661 | AO14: 0.3228098531 | AP14: 0.3678515793 | AQ14: 0.3887213376 | AR14: 0.4034421903 | AS14: 0.3568963303 | AT14: 0.4699807378 | AU14: 0.4291591214 | AV14: 0.5100027593 | AW14: 0.4729189835 | AX14: 0.509406731 | AY14: 0.4579853603 | AZ14: 0.5172978444 | BA14: 0.4454287044 | BB14: 0.5430639098 | BC14: 0.4756969252 | BD14: 0.5063406695 | BE14: 0.4513667388
A15: Receita Líquida de Venda de Bens e/ou Serviços | B15: 121754 | C15: 141296 | D15: 183517 | E15: 283285 | F15: 456761 | G15: 705067 | H15: 1032448 | I15: 1125380 | J15: 1231784.922 | K15: 1262486 | L15: 1275986.305 | M15: 1250463 | N15: 1407358 | O15: 1676343 | P15: 73289 | Q15: 73742 | R15: 106987 | S15: 113614 | T15: 111604 | U15: 124556 | V15: 154530 | W15: 175618 | X15: 171058 | Y15: 203861 | Z15: 269498 | AA15: 273164 | AB15: 241276 | AC15: 248510 | AD15: 285125 | AE15: 289600 | AF15: 273255 | AG15: 277400 | AH15: 308820 | AI15: 326240 | AJ15: 292730 | AK15: 303994.9219 | AL15: 317249 | AM15: 339167 | AN15: 286003 | AO15: 320067 | AP15: 304164 | AQ15: 332605 | AR15: 288910 | AS15: 350307.3053 | AT15: 308526 | AU15: 343020 | AV15: 269454 | AW15: 329463 | AX15: 306724 | AY15: 385651 | AZ15: 324083 | BA15: 390900 | BB15: 380210 | BC15: 464217 | BD15: 389661 | BE15: 442255
A16: Custo dos Bens e/ou Serviços Vendidos | B16: -41225 | C16: -50403 | D16: -71816 | E16: -102187 | F16: -180170 | G16: -267295 | H16: -477456 | I16: -511386 | J16: -556645 | K16: -576990 | L16: -580513 | M16: -580685 | N16: -645916 | O16: -842844 | P16: -25544 | Q16: -28512 | R16: -35518 | S16: -45215 | T16: -44170 | U16: -55267 | V16: -53128 | W16: -64081 | X16: -62229 | Y16: -87857 | Z16: -103011 | AA16: -127282 | AB16: -115962 | AC16: -131201 | AD16: -115978 | AE16: -137909 | AF16: -118966 | AG16: -138533 | AH16: -123916 | AI16: -148219 | AJ16: -129146 | AK16: -155364 | AL16: -138871 | AM16: -153212 | AN16: -134946 | AO16: -149961 | AP16: -138061 | AQ16: -146687 | AR16: -131174 | AS16: -164591 | AT16: -154976 | AU16: -138306 | AV16: -134955 | AW16: -152448 | AX16: -143355 | AY16: -173078 | AZ16: -154838 | BA16: -174645 | BB16: -187240 | BC16: -227467 | BD16: -202793 | BE16: -225344
A17: Pessoal e encargos | B17: -29536 | C17: -36938 | D17: -50915 | E17: -69608 | F17: -118377 | G17: -182573 | H17: -343197 | I17: -360429 | J17: -377659 | K17: -380387 | L17: -370025 | M17: -376867 | N17: -386014 | O17: -456041 | P17: -17651 | Q17: -18895 | R17: -25232 | S17: -28283 | T17: -27743 | U17: -37119 | V17: -36311 | W17: -44171 | X17: -41215 | Y17: -60876 | Z17: -74973 | AA17: -91996 | AB17: -81547 | AC17: -94681 | AD17: -82524 | AE17: -96929 | AF17: -82814 | AG17: -98162 | AH17: -86737 | AI17: -101497 | AJ17: -85504 | AK17: -103921 | AL17: -91755 | AM17: -103752 | AN17: -88561 | AO17: -96319 | AP17: -89139 | AQ17: -94175 | AR17: -84027 | AS17: -102684 | AT17: -96401 | AU17: -92838 | AV17: -88758 | AW17: -98870 | AX17: -88160 | AY17: -104866 | AZ17: -90505 | BA17: -102483 | BB17: -102818 | BC17: -118932 | BD17: -107237 | BE17: -127054
A18: Aluguéis | B18: -2339 | C18: -3354 | D18: -8222 | E18: -13133 | F18: -34909 | G18: -49327 | H18: -59893 | I18: -64578 | J18: -79741 | K18: -75275 | L18: -16335 | M18: 11260 | N18: -13138 | O18: -15100 | P18: -3445 | Q18: -3423 | R18: -4669 | S18: -8870 | T18: -11099 | U18: -10271 | V18: -11108 | W18: -11515 | X18: -12805 | Y18: -13899 | Z18: -14239 | AA18: -14586 | AB18: -15565 | AC18: -15503 | AD18: -15199 | AE18: -16842 | AF18: -15493 | AG18: -17044 | AH18: -17875 | AI18: -19850 | AJ18: -19894 | AK18: -22122 | AL18: -20218 | AM18: -18955 | AN18: -17362 | AO18: -18740 | AP18: -9968 | AQ18: 2317 | AR18: -4474 | AS18: -4210 | AT18: -2115 | AU18: 6486 | AV18: 3202 | AW18: 3687 | AX18: 169 | AY18: -6225 | AZ18: -4011 | BA18: -3071 | BB18: -6151 | BC18: -8744 | BD18: -417 | BE18: 212
A19: Concessionárias | B19: -4091 | C19: -4686 | D19: -6259 | E19: -8968 | F19: -11998 | G19: -15256 | H19: -28849 | I19: -30126 | J19: -33394 | K19: -37361 | L19: -40209 | M19: -29408 | N19: -26534 | O19: -37245 | P19: -2022 | Q19: -2143 | R19: -2895 | S19: -3963 | T19: -1625 | U19: -3515 | V19: -2826 | W19: -3411 | X19: -3172 | Y19: -5847 | Z19: -4417 | AA19: -7993 | AB19: -7231 | AC19: -9208 | AD19: -5989 | AE19: -8988 | AF19: -6800 | AG19: -8349 | AH19: -7084 | AI19: -8893 | AJ19: -7296 | AK19: -10121 | AL19: -9201 | AM19: -9344 | AN19: -8936 | AO19: -9880 | AP19: -9109 | AQ19: -10983 | AR19: -8490 | AS19: -11627 | AT19: -10096 | AU19: -5167 | AV19: -6303 | AW19: -7842 | AX19: -6647 | AY19: -5668 | AZ19: -6131 | BA19: -8088 | BB19: -8001 | BC19: -10939 | BD19: -8293 | BE19: -10012
A20: Serviço de terceiros e outros | B20: -3263 | C20: -2999 | D20: -3403 | E20: -5577 | F20: -7781 | G20: -9949 | H20: -11312 | I20: -19116 | J20: -26134 | K20: -34493 | L20: -37436 | M20: -24033 | N20: -49066 | O20: -135690 | P20: -1268 | Q20: -2044 | R20: -1190 | S20: -2213 | T20: -2020 | U20: -2358 | V20: -1682 | W20: -2510 | X20: -2238 | Y20: -3519 | Z20: -2112 | AA20: -3224 | AB20: -2739 | AC20: -3237 | AD20: -3211 | AE20: -5921 | AF20: -4410 | AG20: -5574 | AH20: -3884 | AI20: -7826 | AJ20: -6063 | AK20: -8361 | AL20: -6792 | AM20: -9618 | AN20: -8122 | AO20: -9961 | AP20: -7210 | AQ20: -13289 | AR20: -7159 | AS20: -9778 | AT20: -6112 | AU20: -5960 | AV20: -2788 | AW20: -9173 | AX20: -9367 | AY20: -13069 | AZ20: -10903 | BA20: -15727 | BB20: -24643 | BC20: -40676 | BD20: -34721 | BE20: -35650
A21: Serviços Prestados por Pessoa Física e Jurídica | B21: -2840 | C21: -2201 | D21: -2311 | E21: -3886 | F21: -5437 | G21: -5946 | H21: -9141 | I21: -13683 | J21: -14761 | K21: -19993 | L21: -22493 | M21: -14826 | N21: -32257 | O21: -108629 | P21: -825 | Q21: -1108 | R21: -1015 | S21: -1866 | T21: -1085 | U21: -1471 | V21: -1036 | W21: -1692 | X21: -1171 | Y21: -2047 | Z21: -1662 | AA21: -2543 | AB21: -2112 | AC21: -2824 | AD21: -2321 | AE21: -4604 | AF21: -2577 | AG21: -4181 | AH21: -2031 | AI21: -4753 | AJ21: -3349 | AK21: -4628 | AL21: -3076 | AM21: -5868 | AN21: -4684 | AO21: -6365 | AP21: -4234 | AQ21: -6924 | AR21: -4635 | AS21: -6700 | AT21: -3548 | AU21: -4258 | AV21: -882 | AW21: -6138 | AX21: -5789 | AY21: -8800 | AZ21: -6319 | BA21: -11349 | BB21: -19537 | BC21: -32595 | BD21: -27168 | BE21: -29329
A22: Outros | B22: -423 | C22: -798 | D22: -1092 | E22: -1691 | F22: -2344 | G22: -4003 | H22: -2171 | I22: -5433 | J22: -11373 | K22: -14500 | L22: -14943 | M22: -9207 | N22: -16809 | O22: -27061 | P22: -443 | Q22: -936 | R22: -175 | S22: -347 | T22: -935 | U22: -887 | V22: -646 | W22: -818 | X22: -1067 | Y22: -1472 | Z22: -450 | AA22: -681 | AB22: -627 | AC22: -413 | AD22: -890 | AE22: -1317 | AF22: -1833 | AG22: -1393 | AH22: -1853 | AI22: -3073 | AJ22: -2714 | AK22: -3733 | AL22: -3716 | AM22: -3750 | AN22: -3438 | AO22: -3596 | AP22: -2976 | AQ22: -6365 | AR22: -2524 | AS22: -3078 | AT22: -2564 | AU22: -1702 | AV22: -1906 | AW22: -3035 | AX22: -3578 | AY22: -4269 | AZ22: -4584 | BA22: -4378 | BB22: -5106 | BC22: -8081 | BD22: -7553 | BE22: -6321
A23: Depreciação e Amortização | B23: -1996 | C23: -2426 | D23: -3017 | E23: -4901 | F23: -7105 | G23: -10190 | H23: -34205 | I23: -37137 | J23: -39717 | K23: -49474 | L23: -116508 | M23: -161637 | N23: -171164 | O23: -198768 | P23: -1158 | Q23: -2007 | R23: -1532 | S23: -1886 | T23: -1683 | U23: -2004 | V23: -1201 | W23: -2474 | X23: -2799 | Y23: -3716 | Z23: -7270 | AA23: -9483 | AB23: -8880 | AC23: -8572 | AD23: -9055 | AE23: -9229 | AF23: -9449 | AG23: -9404 | AH23: -8336 | AI23: -10153 | AJ23: -10389 | AK23: -10839 | AL23: -10905 | AM23: -11543 | AN23: -11965 | AO23: -15061 | AP23: -22635 | AQ23: -30557 | AR23: -27024 | AS23: -36292 | AT23: -40252 | AU23: -40827 | AV23: -40308 | AW23: -40250 | AX23: -39350 | AY23: -43250 | AZ23: -43288 | BA23: -45276 | BB23: -45627 | BC23: -48176 | BD23: -52125 | BE23: -52840
A24: Lucro Bruto | B24: 80529 | C24: 90893 | D24: 111701 | E24: 181098 | F24: 276591 | G24: 437772 | H24: 554992 | I24: 613994 | J24: 675139.9219 | K24: 685496 | L24: 695473.3053 | M24: 669778 | N24: 761442 | O24: 833499 | P24: 47745 | Q24: 45230 | R24: 71469 | S24: 68399 | T24: 67434 | U24: 69289 | V24: 101402 | W24: 111537 | X24: 108829 | Y24: 116004 | Z24: 166487 | AA24: 145882 | AB24: 125314 | AC24: 117309 | AD24: 169147 | AE24: 151691 | AF24: 154289 | AG24: 138867 | AH24: 184904 | AI24: 178021 | AJ24: 163584 | AK24: 148630.9219 | AL24: 178378 | AM24: 185955 | AN24: 151057 | AO24: 170106 | AP24: 166103 | AQ24: 185918 | AR24: 157736 | AS24: 185716.3053 | AT24: 153550 | AU24: 204714 | AV24: 134499 | AW24: 177015 | AX24: 163369 | AY24: 212573 | AZ24: 169245 | BA24: 216255 | BB24: 192970 | BC24: 236750 | BD24: 186868 | BE24: 216911
A25: Despesas/Receitas Operacionais | B25: -41596 | C25: -46017 | D25: -66372 | E25: -104693 | F25: -139213 | G25: -208423 | H25: -324707 | I25: -316999 | J25: -419105 | K25: -449811 | L25: -435203 | M25: -356584 | N25: -583976 | O25: -857727 | P25: -23707 | Q25: -38057 | R25: -27690 | S25: -35092 | T25: -32840 | U25: -43591 | V25: -42966 | W25: -50908 | X25: -49668 | Y25: -64881 | Z25: -72214 | AA25: -84677 | AB25: -83416 | AC25: -84400 | AD25: -70141 | AE25: -71522 | AF25: -86914 | AG25: -88422 | AH25: -85701 | AI25: -92937 | AJ25: -110686 | AK25: -129781 | AL25: -118009 | AM25: -105540 | AN25: -98929 | AO25: -127333 | AP25: -90625 | AQ25: -96948 | AR25: -110485 | AS25: -137145 | AT25: -113328 | AU25: -115388 | AV25: -124770 | AW25: -3098 | AX25: -123076 | AY25: -151298 | AZ25: -137073 | BA25: -172529 | BB25: -172402 | BC25: -229390 | BD25: -162454 | BE25: -293481
A26: Despesas Gerais e Administrativas | B26: -40811 | C26: -45633 | D26: -67112 | E26: -99106 | F26: -135115 | G26: -200317 | H26: -313726 | I26: -322072 | J26: -417564 | K26: -446849 | L26: -440001 | M26: -484506 | N26: -541495 | O26: -648553 | P26: -23086 | Q26: -34106 | R26: -26191 | S26: -33497 | T26: -32935 | U26: -42492 | V26: -41423 | W26: -48672 | X26: -48393 | Y26: -61829 | Z26: -70168 | AA26: -82385 | AB26: -80011 | AC26: -81162 | AD26: -69941 | AE26: -75672 | AF26: -87350 | AG26: -89109 | AH26: -85059 | AI26: -93432 | AJ26: -111059 | AK26: -128014 | AL26: -118971 | AM26: -104939 | AN26: -97869 | AO26: -125070 | AP26: -89123 | AQ26: -113937 | AR26: -104705 | AS26: -132236 | AT26: -111522 | AU26: -116944 | AV26: -111531 | AW26: -144509 | AX26: -119166 | AY26: -138179 | AZ26: -129373 | BA26: -154777 | BB26: -155589 | BC26: -158944 | BD26: -154539 | BE26: -179481
A27: Pessoal e encargos | B27: -14864 | C27: -16708 | D27: -23985 | E27: -33865 | F27: -51978 | G27: -78456 | H27: -124899 | I27: -109056 | J27: -136062 | K27: -143038 | L27: -148980 | M27: -148931 | N27: -167341 | O27: -209191 | P27: -8439 | Q27: -10471 | R27: -10218 | S27: -16380 | T27: -13837 | U27: -15021 | V27: -16380 | W27: -17435 | X27: -19976 | Y27: -24665 | Z27: -33292 | AA27: -34976 | AB27: -28984 | AC27: -27647 | AD27: -26168 | AE27: -26566 | AF27: -27025 | AG27: -29297 | AH27: -30990 | AI27: -31949 | AJ27: -35063 | AK27: -38060 | AL27: -35110 | AM27: -36538 | AN27: -35630 | AO27: -35760 | AP27: -34899 | AQ27: -35573 | AR27: -37408 | AS27: -41100 | AT27: -40625 | AU27: -33346 | AV27: -38472 | AW27: -36488 | AX27: -39450 | AY27: -40731 | AZ27: -43484 | BA27: -43676 | BB27: -50881 | BC27: -50552 | BD27: -55189 | BE27: -52569
A28: Serviços Prestados por Pessoa Física e Jurídica | B28: -6754 | C28: -6122 | D28: -8805 | E28: -10599 | F28: -16180 | G28: -25062 | H28: -28625 | I28: -26720 | J28: -32453 | K28: -35227 | L28: -60489 | M28: -66631 | N28: -62656 | O28: -74176 | P28: -2477 | Q28: -3567 | R28: -3552 | S28: -5049 | T28: -3769 | U28: -5110 | V28: -5049 | W28: -6312 | X28: -7414 | Y28: -6287 | Z28: -6238 | AA28: -7806 | AB28: -8158 | AC28: -6423 | AD28: -6806 | AE28: -7325 | AF28: -5842 | AG28: -6747 | AH28: -7119 | AI28: -7849 | AJ28: -7507 | AK28: -9978 | AL28: -8204 | AM28: -8238 | AN28: -8767 | AO28: -10018 | AP28: -12785 | AQ28: -16651 | AR28: -13122 | AS28: -17931 | AT28: -14932 | AU28: -9152 | AV28: -8544 | AW28: -34003 | AX28: -14209 | AY28: -12995 | AZ28: -16585 | BA28: -18867 | BB28: -17577 | BC28: -15957 | BD28: -19916 | BE28: -20726
A29: Publicidade | B29: -9836 | C29: -9789 | D29: -12041 | E29: -19637 | F29: -18668 | G29: -34287 | H29: -51249 | I29: -66191 | J29: -92517 | K29: -83548 | L29: -80170 | M29: -90747 | N29: -130896 | O29: -162176 | P29: -5151 | Q29: -5200 | R29: -4934 | S29: -7757 | T29: -5347 | U29: -5466 | V29: -7757 | W29: -8010 | X29: -7652 | Y29: -10868 | Z29: -12197 | AA29: -9317 | AB29: -16922 | AC29: -12813 | AD29: -15677 | AE29: -13381 | AF29: -18394 | AG29: -18739 | AH29: -20742 | AI29: -15824 | AJ29: -27794 | AK29: -28157 | AL29: -35771 | AM29: -16486 | AN29: -14134 | AO29: -17157 | AP29: -19727 | AQ29: -22473 | AR29: -20134 | AS29: -17836 | AT29: -25355 | AU29: -15973 | AV29: -23919 | AW29: -25500 | AX29: -35096 | AY29: -30723 | AZ29: -29153 | BA29: -35924 | BB29: -37969 | BC29: -43121 | BD29: -39411 | BE29: -41675
A30: PDD | B30: 1645 | C30: -2197 | D30: -6741 | E30: -15566 | F30: -20001 | G30: -25468 | H30: -47659 | I30: -48732 | J30: -64195 | K30: -88243 | L30: -80040 | M30: -122966 | N30: -117823 | O30: -113270 | P30: -2467 | Q30: -8285 | R30: -2622 | S30: -4843 | T30: -2710 | U30: -8226 | V30: -4843 | W30: -7556 | X30: -4989 | Y30: -8080 | Z30: -4595 | AA30: -14239 | AB30: -10670 | AC30: -18155 | AD30: -6390 | AE30: -13058 | AF30: -14849 | AG30: -14435 | AH30: -7303 | AI30: -15169 | AJ30: -14929 | AK30: -26794 | AL30: -15689 | AM30: -21880 | AN30: -18321 | AO30: -32353 | AP30: -6528 | AQ30: -22311 | AR30: -17923 | AS30: -33278 | AT30: -13741 | AU30: -47475 | AV30: -28925 | AW30: -32825 | AX30: -17306 | AY30: -40314 | AZ30: -22195 | BA30: -38008 | BB30: -28787 | BC30: -27463 | BD30: -16535 | BE30: -40485
A31: Depreciação e Amortização | B31: -5392 | C31: -6644 | D31: -8293 | E31: -8552 | F31: -12554 | G31: -14433 | H31: -21895 | I31: -23140 | J31: -25373 | K31: -26874 | L31: -14398 | M31: -14014 | N31: -13706 | O31: -15550 | P31: -1716 | Q31: -3135 | R31: -2017 | S31: -3440 | T31: -3442 | U31: -4124 | V31: -3440 | W31: -3266 | X31: -3775 | Y31: -3952 | Z31: -5056 | AA31: -5481 | AB31: -5663 | AC31: -5695 | AD31: -5457 | AE31: -5582 | AF31: -5822 | AG31: -6279 | AH31: -6192 | AI31: -6338 | AJ31: -6375 | AK31: -6468 | AL31: -6479 | AM31: -6533 | AN31: -6874 | AO31: -6988 | AP31: -3853 | AQ31: -3741 | AR31: -3227 | AS31: -3577 | AT31: -3645 | AU31: -3546 | AV31: -3465 | AW31: -3358 | AX31: -3284 | AY31: -3275 | AZ31: -3576 | BA31: -3571 | BB31: -3942 | BC31: -3789 | BD31: -3804 | BE31: -4015
A32: Materiais de Expediente | B32: -1370 | C32: -1331 | D32: -2832 | E32: -4070 | F32: -6804 | G32: -8538 | H32: -14385 | I32: -15295 | J32: -18003 | K32: -17557 | L32: -13451 | M32: -7853 | N32: -9034 | O32: -18390 | P32: -1014 | Q32: -1262 | R32: -960 | S32: -1323 | T32: -1551 | U32: -2753 | V32: -1323 | W32: -2657 | X32: -1423 | Y32: -3135 | Z32: -3503 | AA32: -3928 | AB32: -3076 | AC32: -3878 | AD32: -3165 | AE32: -4028 | AF32: -3929 | AG32: -4173 | AH32: -4124 | AI32: -4877 | AJ32: -4747 | AK32: -4255 | AL32: -5448 | AM32: -4466 | AN32: -3510 | AO32: -4133 | AP32: -3377 | AQ32: -3556 | AR32: -3440 | AS32: -3078 | AT32: -2953 | AU32: -750 | AV32: -1644 | AW32: -2506 | AX32: -1938 | AY32: -1678 | AZ32: -2609 | BA32: -2809 | BB32: -4254 | BC32: -4295 | BD32: -4625 | BE32: -5216
A33: Outros | B33: -4240 | C33: -2842 | D33: -4415 | E33: -6817 | F33: -8930 | G33: -14073 | H33: -25014 | I33: -32938 | J33: -48961 | K33: -52362 | L33: -42473 | M33: -33364 | N33: -40039 | O33: -55800 | P33: -1822 | Q33: -2186 | R33: -1888 | S33: -2631 | T33: -2279 | U33: -1792 | V33: -2631 | W33: -3436 | X33: -3164 | Y33: -4842 | Z33: -5287 | AA33: -6638 | AB33: -6538 | AC33: -6551 | AD33: -6278 | AE33: -5732 | AF33: -11489 | AG33: -9439 | AH33: -8589 | AI33: -11426 | AJ33: -14644 | AK33: -14302 | AL33: -12270 | AM33: -10798 | AN33: -10633 | AO33: -18661 | AP33: -7954 | AQ33: -9632 | AR33: -9451 | AS33: -15436 | AT33: -10271 | AU33: -6702 | AV33: -6562 | AW33: -9829 | AX33: -7883 | AY33: -8463 | AZ33: -11771 | BA33: -11922 | BB33: -12179 | BC33: -13767 | BD33: -15059 | BE33: -14795
A34: Tributos | B34: -1416 | C34: -716 | D34: -1564 | E34: 0 | F34: 0 | G34: 0 | H34: -4769 | I34: -8194 | J34: -7354 | K34: -8624 | L34: -12214 | M34: 0 | N34: 0 | O34: 0 | P34: -562 | Q34: 0 | R34: 0 | S34: 0 | T34: -675 | U34: 0 | V34: 0 | W34: 0 | X34: 0 | Y34: 0 | Z34: -743 | AA34: -1274 | AB34: -1511 | AC34: -1241 | AD34: -871 | AE34: -2036 | AF34: -2512 | AG34: -2775 | AH34: -1211 | AI34: -1729 | AJ34: -2367 | AK34: -2047 | AL34: -1648 | AM34: -1678 | AN34: -941 | AO34: -4357 | AP34: 178 | AQ34: -1475 | AR34: -2206 | AS34: -8711 | AT34: 0 | AU34: 0 | AV34: 0 | AW34: 0 | AX34: 0 | AY34: 0 | AZ34: 0 | BA34: 0 | BB34: 0 | BC34: 0 | BD34: 0 | BE34: 0
A35: Outros | B35: -2824 | C35: -2126 | D35: -2851 | E35: -6817 | F35: -8930 | G35: 0 | H35: -20245 | I35: -24744 | J35: -41607 | K35: -43738 | L35: -30259 | M35: -33364 | N35: -40039 | O35: -55800 | P35: -1260 | Q35: -2186 | R35: 0 | S35: 0 | T35: -1604 | U35: -1792 | V35: 0 | W35: 0 | X35: 0 | Y35: 0 | Z35: -4544 | AA35: -5364 | AB35: -5027 | AC35: -5310 | AD35: -5407 | AE35: -3696 | AF35: -8977 | AG35: -6664 | AH35: -7378 | AI35: -9697 | AJ35: -12277 | AK35: -12255 | AL35: -10622 | AM35: -9120 | AN35: -9692 | AO35: -14304 | AP35: -8132 | AQ35: -8157 | AR35: -7245 | AS35: -6725 | AT35: -10271 | AU35: -6702 | AV35: -6562 | AW35: -9829 | AX35: -7883 | AY35: -8463 | AZ35: -11771 | BA35: -11922 | BB35: -12179 | BC35: -13767 | BD35: -15059 | BE35: -14795
A36: Outras Despesas/Receitas Operacionais | B36: -785 | C36: -384 | D36: 740 | E36: -5587 | F36: -4098 | G36: -8106 | H36: -10981 | I36: 5073 | J36: -1541 | K36: -2962 | L36: 4798 | M36: 127922 | N36: -42481 | O36: -209174 | P36: -621 | Q36: -3951 | R36: -1499 | S36: -1595 | T36: 95 | U36: -1099 | V36: -1543 | W36: -2236 | X36: -1275 | Y36: -3052 | Z36: -2046 | AA36: -2292 | AB36: -3405 | AC36: -3238 | AD36: -200 | AE36: 4150 | AF36: 436 | AG36: 687 | AH36: -642 | AI36: 495 | AJ36: 373 | AK36: -1767 | AL36: 962 | AM36: -601 | AN36: -1060 | AO36: -2263 | AP36: -1502 | AQ36: 16989 | AR36: -5780 | AS36: -4909 | AT36: -1806 | AU36: 1556 | AV36: -13239 | AW36: 141411 | AX36: -3910 | AY36: -13013 | AZ36: -7575 | BA36: -17983 | BB36: -16813 | BC36: -70446 | BD36: -7915 | BE36: -114000
A37: Perda no valor de recuperação de ativos | B37: 0 | C37: 0 | D37: 0 | E37: 0 | F37: 0 | G37: 0 | H37: 0 | I37: 0 | J37: 0 | K37: 0 | L37: 0 | M37: 0 | N37: 0 | O37: 0 | P37: 0 | Q37: 0 | R37: 0 | S37: 0 | T37: 0 | U37: 0 | V37: 0 | W37: 0 | X37: 0 | Y37: 0 | Z37: 0 | AA37: 0 | AB37: 0 | AC37: 0 | AD37: 0 | AE37: 0 | AF37: 0 | AG37: 0 | AH37: 0 | AI37: 0 | AJ37: 0 | AK37: 0 | AL37: 0 | AM37: 0 | AN37: 0 | AO37: 0 | AP37: 0 | AQ37: 0 | AR37: 0 | AS37: 0 | AT37: 0 | AU37: 0 | AV37: 0 | AW37: 0 | AX37: 0 | AY37: 0 | AZ37: 0 | BA37: 0 | BB37: 0 | BC37: 0 | BD37: 0 | BE37: 0
A38: Participação nos lucros de controladas | B38: 0 | C38: 0 | D38: 0 | E38: 0 | F38: 0 | G38: 0 | H38: 0 | I38: 0 | J38: 0 | K38: 0 | L38: 0 | M38: 0 | N38: 0 | O38: 0 | P38: 0 | Q38: 0 | R38: 0 | S38: 0 | T38: 0 | U38: 0 | V38: 0 | W38: 0 | X38: 0 | Y38: 0 | Z38: 0 | AA38: 0 | AB38: 0 | AC38: 0 | AD38: 0 | AE38: 0 | AF38: 0 | AG38: 0 | AH38: 0 | AI38: 0 | AJ38: 0 | AK38: 0 | AL38: 0 | AM38: 0 | AN38: 0 | AO38: 0 | AP38: 0 | AQ38: 0 | AR38: 0 | AS38: 0 | AT38: 0 | AU38: 0 | AV38: 0 | AW38: 0 | AX38: 0 | AY38: -106 | AZ38: -125 | BA38: 231 | BB38: 0 | BC38: 0 | BD38: 0 | BE38: 0
A39: Lucro Operacional | B39: 38933 | C39: 44876 | D39: 45329 | E39: 76405 | F39: 137378 | G39: 229349 | H39: 230285 | I39: 296995 | J39: 256034.9219 | K39: 235685 | L39: 260270.3053 | M39: 313194 | N39: 177466 | O39: -24228 | P39: 24038 | Q39: 7173 | R39: 43779 | S39: 33307 | T39: 34594 | U39: 25698 | V39: 58436 | W39: 60629 | X39: 59161 | Y39: 51123 | Z39: 94273 | AA39: 61205 | AB39: 41898 | AC39: 32909 | AD39: 99006 | AE39: 80169 | AF39: 67375 | AG39: 50445 | AH39: 99203 | AI39: 85084 | AJ39: 52898 | AK39: 18849.92193 | AL39: 60369 | AM39: 80415 | AN39: 52128 | AO39: 42773 | AP39: 75478 | AQ39: 88970 | AR39: 47251 | AS39: 48571.30531 | AT39: 40222 | AU39: 89326 | AV39: 9729 | AW39: 173917 | AX39: 40293 | AY39: 61275 | AZ39: 32172 | BA39: 43726 | BB39: 20568 | BC39: 7360 | BD39: 24414 | BE39: -76570
A40: Resultado Financeiro | B40: -8766 | C40: -8121 | D40: -12045 | E40: -9418 | F40: -15882 | G40: 813 | H40: -46652 | I40: -61102 | J40: -54120 | K40: -27074 | L40: -123360 | M40: -103635 | N40: -131168 | O40: -190683 | P40: -3418 | Q40: 751 | R40: -3071 | S40: -3147 | T40: -7712 | U40: -1952 | V40: 3613 | W40: -686 | X40: 1858 | Y40: -3972 | Z40: -8325 | AA40: -10318 | AB40: -15714 | AC40: -12295 | AD40: -11023 | AE40: -14696 | AF40: -17726 | AG40: -17657 | AH40: -17689 | AI40: -21613 | AJ40: -5183 | AK40: -9635 | AL40: -721 | AM40: -6256 | AN40: -12943 | AO40: -7154 | AP40: -16601 | AQ40: -28178 | AR40: -21750 | AS40: -56831 | AT40: -21787 | AU40: -28754 | AV40: -32768 | AW40: -20326 | AX40: -15274 | AY40: -38187 | AZ40: -37373 | BA40: -40334 | BB40: -40535 | BC40: -44399 | BD40: -59797 | BE40: -45952
A41: Receitas Financeiras | B41: 5355 | C41: 8118 | D41: 6768 | E41: 8944 | F41: 15236 | G41: 42260 | H41: 60714 | I41: 80363 | J41: 80607 | K41: 74396 | L41: 49881 | M41: 30988 | N41: 34303 | O41: 126752 | P41: 1022 | Q41: 6211 | R41: 2657 | S41: 2454 | T41: 2817 | U41: 7308 | V41: 12626 | W41: 9526 | X41: 11629 | Y41: 8023 | Z41: 8474 | AA41: 10117 | AB41: 16614 | AC41: 25509 | AD41: 26697 | AE41: 19955 | AF41: 18789 | AG41: 14922 | AH41: 20126 | AI41: 17238 | AJ41: 22263 | AK41: 20980 | AL41: 22640 | AM41: 17544 | AN41: 15766.8 | AO41: 18445.2 | AP41: 17928 | AQ41: 12625 | AR41: 13241 | AS41: 6087 | AT41: 10265 | AU41: 5399 | AV41: 7675 | AW41: 7649 | AX41: 10657 | AY41: 5238 | AZ41: 9795 | BA41: 8613 | BB41: 48321 | BC41: 25036 | BD41: 26422 | BE41: 26973
A42: Juros sobre Mensalidades e Acordos | B42: 3034 | C42: 5738 | D42: 4566 | E42: 5522 | F42: 9058 | G42: 12081 | H42: 24393 | I42: 25941 | J42: 27854 | K42: 15526 | L42: 12400 | M42: 17728 | N42: 15003 | O42: 24840 | P42: 764 | Q42: 3512 | R42: 2273 | S42: 1567 | T42: 2305 | U42: 2913 | V42: 4691 | W42: 1742 | X42: 3043 | Y42: 2605 | Z42: 5912 | AA42: 4405 | AB42: 6955 | AC42: 7121 | AD42: 7791 | AE42: 5444 | AF42: 8506 | AG42: 4200 | AH42: 5566 | AI42: 6091 | AJ42: 10830 | AK42: 5367 | AL42: 5593 | AM42: 3399 | AN42: 1995 | AO42: 4539 | AP42: 5101 | AQ42: 1835 | AR42: 4265 | AS42: 1199 | AT42: 8003 | AU42: 1934 | AV42: 3891 | AW42: 3900 | AX42: 7512 | AY42: 2146 | AZ42: 3875 | BA42: 1470 | BB42: 5965 | BC42: 4132 | BD42: 6508 | BE42: 8235
A43: Rendimentos de aplicações financeiras | B43: 1907 | C43: 1366 | D43: 1824 | E43: 537 | F43: 5197 | G43: 27852 | H43: 20621 | I43: 37023 | J43: 42444 | K43: 55276 | L43: 38580 | M43: 12719 | N43: 18820 | O43: 25408 | P43: 99 | Q43: 154 | R43: 281 | S43: 538 | T43: 227 | U43: 4151 | V43: 7522 | W43: 7267 | X43: 8169 | Y43: 4894 | Z43: 1647 | AA43: 1427 | AB43: 7374 | AC43: 10173 | AD43: 7864 | AE43: 6847 | AF43: 12015 | AG43: 10297 | AH43: 10701 | AI43: 8757 | AJ43: 9656 | AK43: 13330 | AL43: 13700 | AM43: 12715 | AN43: 15186 | AO43: 13675 | AP43: 13472 | AQ43: 11177 | AR43: 9539 | AS43: 4392 | AT43: 2397 | AU43: 3204 | AV43: 3642 | AW43: 3476 | AX43: 2989 | AY43: 3568 | AZ43: 5489 | BA43: 6774 | BB43: 4375 | BC43: 4169 | BD43: 7570 | BE43: 9294
A44: Variação cambial ativa | B44: 0 | C44: 0 | D44: 0 | E44: 0 | F44: 0 | G44: 0 | H44: 0 | I44: 0 | J44: 0 | K44: 0 | L44: 0 | M44: 0 | N44: 0 | O44: 0 | P44: 0 | Q44: 0 | R44: 0 | S44: 0 | T44: 0 | U44: 0 | V44: 0 | W44: 0 | X44: 0 | Y44: 0 | Z44: 0 | AA44: 0 | AB44: 0 | AC44: 0 | AD44: 0 | AE44: 0 | AF44: 0 | AG44: 0 | AH44: 0 | AI44: 0 | AJ44: 0 | AK44: 0 | AL44: 0 | AM44: 0 | AN44: 0 | AO44: 0 | AP44: 0 | AQ44: 0 | AR44: 0 | AS44: 0 | AT44: 0 | AU44: 0 | AV44: 0 | AW44: 0 | AX44: 0 | AY44: 0 | AZ44: 0 | BA44: 0 | BB44: 36105 | BC44: 16199 | BD44: 12275 | BE44: 9730
A45: Outros | B45: 414 | C45: 1014 | D45: 378 | E45: 2885 | F45: 981 | G45: 2327 | H45: 15700 | I45: 17399 | J45: 10309 | K45: 3594 | L45: -1099 | M45: 541 | N45: 480 | O45: 2195 | P45: 159 | Q45: 2545 | R45: 103 | S45: 349 | T45: 285 | U45: 244 | V45: 413 | W45: 517 | X45: 417 | Y45: 524 | Z45: 915 | AA45: 4285 | AB45: 2285 | AC45: 8215 | AD45: 11042 | AE45: 7664 | AF45: -1732 | AG45: 425 | AH45: 3859 | AI45: 2390 | AJ45: 1777 | AK45: 2283 | AL45: 3347 | AM45: 1430 | AN45: -1414.2 | AO45: 231.2 | AP45: -645 | AQ45: -387 | AR45: -563 | AS45: 496 | AT45: -135 | AU45: 261 | AV45: 142 | AW45: 273 | AX45: 156 | AY45: -476 | AZ45: 431 | BA45: 369 | BB45: 1876 | BC45: 536 | BD45: 69 | BE45: -286
A46: Despesas Financeiras | B46: -14121 | C46: -16239 | D46: -18813 | E46: -18362 | F46: -31118 | G46: -41447 | H46: -107366 | I46: -141465 | J46: -134727 | K46: -101470 | L46: -173241 | M46: -134623 | N46: -165471 | O46: -317435 | P46: -4440 | Q46: -5460 | R46: -5728 | S46: -5601 | T46: -10529 | U46: -9260 | V46: -9013 | W46: -10212 | X46: -9771 | Y46: -11995 | Z46: -16799 | AA46: -20435 | AB46: -32328 | AC46: -37804 | AD46: -37720 | AE46: -34651 | AF46: -36515 | AG46: -32579 | AH46: -37815 | AI46: -38851 | AJ46: -27446 | AK46: -30615 | AL46: -23361 | AM46: -23800 | AN46: -28709.8 | AO46: -25599.2 | AP46: -34529 | AQ46: -40803 | AR46: -34991 | AS46: -62918 | AT46: -32052 | AU46: -34153 | AV46: -40443 | AW46: -27975 | AX46: -25931 | AY46: -43425 | AZ46: -47168 | BA46: -48947 | BB46: -88856 | BC46: -69435 | BD46: -86219 | BE46: -72925
A47: Despesas de Juros | B47: -4962 | C47: -5226 | D47: -6406 | E47: -7474 | F47: -11008 | G47: -14757 | H47: -39625 | I47: -58291 | J47: -36469 | K47: -23133 | L47: -20121 | M47: -24305 | N47: -37767 | O47: -73571 | P47: -1740 | Q47: -2401 | R47: -1954 | S47: -2008 | T47: -3520 | U47: -3526 | V47: -2975 | W47: -4112 | X47: -3429 | Y47: -3785 | Z47: -4013 | AA47: -7725 | AB47: -12817 | AC47: -15070 | AD47: -14946 | AE47: -15713 | AF47: -14770 | AG47: -12862 | AH47: -11886 | AI47: -9174 | AJ47: -7974 | AK47: -7435 | AL47: -6448 | AM47: -5396 | AN47: -5813 | AO47: -5476 | AP47: -5304 | AQ47: -5280 | AR47: -5320 | AS47: -4217 | AT47: -3177 | AU47: -5829 | AV47: -8254 | AW47: -7045 | AX47: -6823 | AY47: -8284 | AZ47: -10353 | BA47: -12307 | BB47: -13700 | BC47: -15664 | BD47: -20712 | BE47: -23495
A48: Juros de Arrendamentos Mercantis | B48: -6377 | C48: -7228 | D48: -7124 | E48: -7214 | F48: -14019 | G48: -22271 | H48: -34242 | I48: -34308 | J48: -33704 | K48: -33017 | L48: -68853 | M48: -70289 | N48: -67534 | O48: -74303 | P48: -1824 | Q48: -1821 | R48: -1885 | S48: -1855 | T48: -5067 | U48: -5212 | V48: -5242 | W48: -5229 | X48: -5209 | Y48: -6591 | Z48: -8157 | AA48: -8727 | AB48: -8695 | AC48: -8663 | AD48: -8631 | AE48: -8593 | AF48: -8561 | AG48: -8523 | AH48: -8486 | AI48: -8446 | AJ48: -8407 | AK48: -8365 | AL48: -8322 | AM48: -8278 | AN48: -8232 | AO48: -8185 | AP48: -13507 | AQ48: -21576 | AR48: -16223 | AS48: -17547 | AT48: -17882 | AU48: -17879 | AV48: -17596 | AW48: -16932 | AX48: -16903 | AY48: -16879 | AZ48: -16835 | BA48: -16917 | BB48: -16324 | BC48: -17477 | BD48: -20704 | BE48: -19798
A49: Descontos Concedidos | B49: -2111 | C49: -1798 | D49: -2657 | E49: -2477 | F49: -4598 | G49: -1764 | H49: -17646 | I49: -22318 | J49: -34743 | K49: -24623 | L49: -44635 | M49: -31563 | N49: -41363 | O49: -49997 | P49: -585 | Q49: -869 | R49: -1555 | S49: -974 | T49: -1365 | U49: -704 | V49: -541 | W49: -507 | X49: -316 | Y49: -400 | Z49: -756 | AA49: -3386 | AB49: -5772 | AC49: -7732 | AD49: -8119 | AE49: -3990 | AF49: -4460 | AG49: -5749 | AH49: -10298 | AI49: -12350 | AJ49: -4707 | AK49: -7388 | AL49: -3360 | AM49: -5835 | AN49: -10638 | AO49: -4790 | AP49: -12567 | AQ49: -8621 | AR49: -9585 | AS49: -13862 | AT49: -9030 | AU49: -7414 | AV49: -13898 | AW49: -1221 | AX49: -1417 | AY49: -14159 | AZ49: -17793 | BA49: -7994 | BB49: -11812 | BC49: -5779 | BD49: -25697 | BE49: -6709
A50: Variação Monetária Passiva | B50: 0 | C50: 0 | D50: 0 | E50: 0 | F50: 0 | G50: 0 | H50: -8417 | I50: -18882 | J50: -14100 | K50: -10492 | L50: -29906 | M50: -1584 | N50: 0 | O50: 0 | P50: 0 | Q50: 0 | R50: 0 | S50: 0 | T50: 0 | U50: 0 | V50: 0 | W50: 0 | X50: 0 | Y50: 0 | Z50: 0 | AA50: 0 | AB50: -4130 | AC50: -4287 | AD50: -4070 | AE50: -4049 | AF50: -6207 | AG50: -4556 | AH50: -3665 | AI50: -3300 | AJ50: -3503 | AK50: -3632 | AL50: -2799 | AM50: -2454 | AN50: -2572.4 | AO50: -2666.6 | AP50: -1891 | AQ50: -1711 | AR50: -3289 | AS50: -23015 | AT50: -1578 | AU50: 0 | AV50: -6 | AW50: 0 | AX50: 0 | AY50: 0 | AZ50: 0 | BA50: 0 | BB50: 0 | BC50: 0 | BD50: 0 | BE50: 0
A51: Juros de compromissos a pagar | B51: 0 | C51: 0 | D51: 0 | E51: 0 | F51: 0 | G51: 0 | H51: 0 | I51: 0 | J51: 0 | K51: 0 | L51: 0 | M51: 0 | N51: -11982 | O51: -10901 | P51: 0 | Q51: 0 | R51: 0 | S51: 0 | T51: 0 | U51: 0 | V51: 0 | W51: 0 | X51: 0 | Y51: 0 | Z51: 0 | AA51: 0 | AB51: 0 | AC51: 0 | AD51: 0 | AE51: 0 | AF51: 0 | AG51: 0 | AH51: 0 | AI51: 0 | AJ51: 0 | AK51: 0 | AL51: 0 | AM51: 0 | AN51: 0 | AO51: 0 | AP51: 0 | AQ51: 0 | AR51: 0 | AS51: 0 | AT51: 0 | AU51: 0 | AV51: 0 | AW51: 0 | AX51: 0 | AY51: -1196 | AZ51: -686 | BA51: -10100 | BB51: -3859 | BC51: -5495 | BD51: 657 | BE51: -2204
A52: Juros e resultado swap sobre empréstimos | B52: 0 | C52: 0 | D52: 0 | E52: 0 | F52: 0 | G52: 0 | H52: 0 | I52: 0 | J52: 0 | K52: 0 | L52: 0 | M52: 0 | N52: 0 | O52: -100692 | P52: 0 | Q52: 0 | R52: 0 | S52: 0 | T52: 0 | U52: 0 | V52: 0 | W52: 0 | X52: 0 | Y52: 0 | Z52: 0 | AA52: 0 | AB52: 0 | AC52: 0 | AD52: 0 | AE52: 0 | AF52: 0 | AG52: 0 | AH52: 0 | AI52: 0 | AJ52: 0 | AK52: 0 | AL52: 0 | AM52: 0 | AN52: 0 | AO52: 0 | AP52: 0 | AQ52: 0 | AR52: 0 | AS52: 0 | AT52: 0 | AU52: 0 | AV52: 0 | AW52: 0 | AX52: 0 | AY52: 0 | AZ52: 0 | BA52: 0 | BB52: -41014 | BC52: -22607 | BD52: -20281 | BE52: -16790
A53: Outros | B53: -671 | C53: -1987 | D53: -2626 | E53: -1197 | F53: -1493 | G53: -2655 | H53: -7436 | I53: -7666 | J53: -15711 | K53: -10205 | L53: -9726 | M53: -6882 | N53: -6825 | O53: -7971 | P53: -291 | Q53: -369 | R53: -334 | S53: -764 | T53: -577 | U53: 182 | V53: -255 | W53: -364 | X53: -817 | Y53: -1219 | Z53: -3873 | AA53: -597 | AB53: -914 | AC53: -2052 | AD53: -1954 | AE53: -2306 | AF53: -2517 | AG53: -889 | AH53: -3480 | AI53: -5581 | AJ53: -2855 | AK53: -3795 | AL53: -2432 | AM53: -1837 | AN53: -1454.4 | AO53: -4481.6 | AP53: -1260 | AQ53: -3615 | AR53: -574 | AS53: -4277 | AT53: -385 | AU53: -3031 | AV53: -689 | AW53: -2777 | AX53: -788 | AY53: -2907 | AZ53: -1501 | BA53: -1629 | BB53: -2147 | BC53: -2413 | BD53: 518 | BE53: -3929
A54: Resultado Antes dos Tributos sobre o Lucro | B54: 30167 | C54: 36755 | D54: 33284 | E54: 66987 | F54: 121496 | G54: 230162 | H54: 183633 | I54: 235893 | J54: 201914.9219 | K54: 208611 | L54: 136910.3053 | M54: 209559 | N54: 46298 | O54: -214911 | P54: 20620 | Q54: 7924 | R54: 40708 | S54: 30160 | T54: 26882 | U54: 23746 | V54: 62049 | W54: 59943 | X54: 61019 | Y54: 47151 | Z54: 85948 | AA54: 50887 | AB54: 26184 | AC54: 20614 | AD54: 87983 | AE54: 65473 | AF54: 49649 | AG54: 32788 | AH54: 81514 | AI54: 63471 | AJ54: 47715 | AK54: 9214.92193 | AL54: 59648 | AM54: 74159 | AN54: 39185 | AO54: 35619 | AP54: 58877 | AQ54: 60792 | AR54: 25501 | AS54: -8259.69469 | AT54: 18435 | AU54: 60572 | AV54: -23039 | AW54: 153591 | AX54: 25019 | AY54: 23088 | AZ54: -5201 | BA54: 3392 | BB54: -19967 | BC54: -37039 | BD54: -35383 | BE54: -122522
A55: Imposto de Renda e Contribuição Social sobre o Lucro | B55: -460 | C55: -1036 | D55: -1732 | E55: -2731 | F55: -46740 | G55: -16298 | H55: -11478 | I55: -5445 | J55: -4440 | K55: -7332 | L55: -538 | M55: -44525 | N55: 6185 | O55: -7237 | P55: -452 | Q55: -1509 | R55: -974 | S55: -1085 | T55: -924 | U55: -2216 | V55: -3343 | W55: -6222 | X55: -3356 | Y55: -3377 | Z55: -3104 | AA55: -1881 | AB55: -2028 | AC55: -4465 | AD55: -2070 | AE55: -1714 | AF55: -1028 | AG55: -633 | AH55: -1289 | AI55: 1424 | AJ55: 318 | AK55: -4893 | AL55: -1428 | AM55: -1136 | AN55: -2254 | AO55: -2514 | AP55: -2785 | AQ55: -1786 | AR55: -1664 | AS55: 5697 | AT55: -1669 | AU55: -5856 | AV55: -4939 | AW55: -32061 | AX55: 5049 | AY55: 2610 | AZ55: -1576 | BA55: 102 | BB55: 1648 | BC55: -2054 | BD55: -3962 | BE55: -2869
A56: Lucro/Prejuízo Consolidado do Período | B56: 29707 | C56: 35719 | D56: 31552 | E56: 64256 | F56: 116297 | G56: 213864 | H56: 172155 | I56: 230448 | J56: 197474.9219 | K56: 201279 | L56: 136372.3053 | M56: 165034 | N56: 52483 | O56: -222148 | P56: 20168 | Q56: 6415 | R56: 39734 | S56: 29075 | T56: 25958 | U56: 21530 | V56: 58706 | W56: 53721 | X56: 57663 | Y56: 43774 | Z56: 82844 | AA56: 49006 | AB56: 24156 | AC56: 16149 | AD56: 85913 | AE56: 63759 | AF56: 48621 | AG56: 32155 | AH56: 80225 | AI56: 64895 | AJ56: 48033 | AK56: 4321.92193 | AL56: 58220 | AM56: 73023 | AN56: 36931 | AO56: 33105 | AP56: 56092 | AQ56: 59006 | AR56: 23837 | AS56: -2562.69469 | AT56: 16766 | AU56: 54716 | AV56: -27978 | AW56: 121530 | AX56: 30068 | AY56: 25698 | AZ56: -6777 | BA56: 3494 | BB56: -18319 | BC56: -39093 | BD56: -39345 | BE56: -125391
A57: Atribuído a Acionistas da Controladora | B57: 29707 | C57: 35712 | D57: 31553 | E57: 64239 | F57: 116320 | G57: 213864 | H57: 172155 | I57: 230448 | J57: 197475 | K57: 202989 | L57: 136372.3053 | M57: 165034 | N57: 52483 | O57: -222148 | P57: 20143 | Q57: 6441 | R57: 39757 | S57: 29075 | T57: 25958 | U57: 21530 | V57: 58706 | W57: 53721 | X57: 57663 | Y57: 43774 | Z57: 82844 | AA57: 49006 | AB57: 24156 | AC57: 16149 | AD57: 85913 | AE57: 63759 | AF57: 48621 | AG57: 32155 | AH57: 80225 | AI57: 64895 | AJ57: 48033 | AK57: 4322 | AL57: 59930 | AM57: 73023 | AN57: 36931 | AO57: 33105 | AP57: 56092 | AQ57: 59006 | AR57: 23837 | AS57: -2562.69469 | AT57: 16766 | AU57: 54716 | AV57: -27978 | AW57: 121530 | AX57: 30068 | AY57: 25698 | AZ57: -6777 | BA57: 3494 | BB57: -18319 | BC57: -39093 | BD57: -39345 | BE57: -125391
A58: Atribuído a Acionistas Não Controladores | B58: - | C58: 7 | D58: -1 | E58: 17 | F58: -23 | G58: 0 | H58: 0 | I58: 0 | J58: 0 | K58: 0 | L58: 0 | M58: 0 | N58: 0 | O58: 0 | P58: 25 | Q58: -26 | R58: -23 | S58: - | T58: - | U58: - | V58: - | W58: - | X58: 0 | Y58: 0 | Z58: 0 | AA58: 0 | AB58: 0 | AC58: 0 | AD58: 0 | AE58: 0 | AF58: 0 | AG58: 0 | AH58: 0 | AI58: 0 | AJ58: 0 | AK58: 0 | AL58: 0 | AM58: 0 | AN58: 0 | AO58: 0 | AP58: 0 | AQ58: 0 | AR58: 0 | AS58: 0 | AT58: 0 | AU58: 0 | AV58: 0 | AW58: 0 | AX58: 0 | AY58: 0 | AZ58: 0 | BA58: 0 | BB58: 0 | BC58: 0 | BD58: 0 | BE58: 0
A59: Média Ponderada de Ações no Período (em milhares) | B59: 107515 | C59: 107515 | D59: 107515 | E59: 107515 | F59: 110635 | G59: 110635 | H59: 125038 | I59: 124836 | J59: 127225 | K59: 135829 | L59: 135829 | M59: 128721.56 | N59: 128721.56 | O59: 128566 | P59: 107515 | Q59: 107515 | R59: 107515 | S59: 107515 | T59: 107515 | U59: 110635 | V59: 125213 | W59: 125213 | X59: 125213.244 | Y59: 110635 | Z59: 125038 | AA59: 125038 | AB59: 125038 | AC59: 125038 | AD59: 124836 | AE59: 124836 | AF59: 124836 | AG59: 124836 | AH59: 124836 | AI59: 124836 | AJ59: 124836 | AK59: 127225 | AL59: 138812 | AM59: 137902.2778 | AN59: 136676 | AO59: 130817 | AP59: 128721.56 | AQ59: 128721.56 | AR59: 128721.56 | AS59: 128721.56 | AT59: 128721.56 | AU59: 128721.56 | AV59: 128721.56 | AW59: 128721.56 | AX59: 128721.56 | AY59: 128721.56 | AZ59: 128721.56 | BA59: 128721.56 | BB59: 128721.56 | BC59: 128597 | BD59: 128597 | BE59: 128566
A60: Lucro por Ação Atribuído aos Controladores - (Reais / Ação) | B60: 0.2763056318 | C60: 0.3322234107 | D60: 0.293466028 | E60: 0.59764684 | F60: 1.051177295 | G60: 1.933059158 | H60: 1.376821446 | I60: 1.84600596 | J60: 1.552170736 | K60: 1.481855863 | L60: 1.003999921 | M60: 1.282100683 | N60: 0.4077250151 | O60: -1.727890733 | P60: 0.1875831279 | Q60: 0.0596660931 | R60: 0.3695670372 | S60: 0.2704273822 | T60: 0.2414360787 | U60: 0.1946038776 | V60: 0.4688490812 | W60: 0.4290369211 | X60: 0.4605183778 | Y60: 0.3956614091 | Z60: 0.6625505846 | AA60: 0.3919288536 | AB60: 0.1931892705 | AC60: 0.1291527376 | AD60: 0.6882069275 | AE60: 0.5107420936 | AF60: 0.3894789964 | AG60: 0.2575779423 | AH60: 0.6426431478 | AI60: 0.5198420327 | AJ60: 0.3847688167 | AK60: 0.03397069703 | AL60: 0.4194161888 | AM60: 0.5295271491 | AN60: 0.270208376 | AO60: 0.2530634398 | AP60: 0.4357622763 | AQ60: 0.4584002866 | AR60: 0.1851826532 | AS60: -0.0199088225 | AT60: 0.1302501306 | AU60: 0.4250725364 | AV60: -0.2173528661 | AW60: 0.9441308822 | AX60: 0.2335894624 | AY60: 0.1996402157 | AZ60: -0.0526485229 | BA60: 0.02714385997 | BB60: -0.1423149315 | BC60: -0.3039962052 | BD60: -0.3059558155 | BE60: -0.9753045129
A61: Lucro Básico por Ação
A62: ON
A63: Lucro Diluído por Ação
A64: ON

Sheet Balanço Patrimonial - Ativo
A2: GRUPO SER EDUCACIONAL
A3: BALANÇO PATRIMONIAL - ATIVO (CONSOLIDADO)
A6: Balanço Patrimonial - ATIVO (Valores em R$ ('000)) | B6: 2009-12-31 | C6: 2010-12-31 | D6: 2011-12-31 | E6: 2012-12-31 | F6: 2013-03-31 | G6: 2013-06-30 | H6: 2013-09-30 | I6: 2013-12-31 | J6: 2014-03-31 | K6: 2014-06-30 | L6: 2014-09-30 | M6: 2014-12-31 | N6: 2015-03-31 | O6: 2015-06-30 | P6: 2015-09-30 | Q6: 2015-12-31 | R6: 2016-03-31 | S6: 2016-06-30 | T6: 2016-09-30 | U6: 2016-12-31 | V6: 2017-03-31 | W6: 2017-06-30 | X6: 2017-09-30 | Y6: 2017-12-31 | Z6: 2018-03-31 | AA6: 2018-06-30 | AB6: 2018-09-30 | AC6: 2018-12-31 | AD6: 2019-03-31 | AE6: 2019-06-30 | AF6: 2019-09-30 | AG6: 2019-12-31 | AH6: 2020-03-31 | AI6: 2020-06-30 | AJ6: 2020-09-30 | AK6: 2020-12-31 | AL6: 2021-03-31 | AM6: 2021-06-30 | AN6: 2021-09-30 | AO6: 2021-12-31 | AP6: 2022-03-31 | AQ6: 2022-06-30 | AR6: 2022-09-30 | AS6: 2022-12-31
A7: Ativo Total | B7: 183772 | C7: 211031 | D7: 286912 | E7: 379291 | F7: 454827 | G7: 373594 | H7: 488205 | I7: 803365 | J7: 874403 | K7: 932469 | L7: 978063 | M7: 1249163 | N7: 1501718 | O7: 1543685 | P7: 1843160 | Q7: 1848588 | R7: 1929063 | S7: 1972461 | T7: 2023206 | U7: 2018564 | V7: 2055916 | W7: 2071153 | X7: 2102770 | Y7: 2507874 | Z7: 2517109 | AA7: 2519244 | AB7: 2522888 | AC7: 2429560 | AD7: 2742672 | AE7: 2599205 | AF7: 2503973 | AG7: 2559156 | AH7: 2482046 | AI7: 3026129 | AJ7: 2929329 | AK7: 3091485 | AL7: 3151606 | AM7: 3257810 | AN7: 3174687 | AO7: 3092589 | AP7: 3333740 | AQ7: 3293902 | AR7: 3476907 | AS7: 3392077
A8: Ativo Circulante | B8: 41027 | C8: 27606 | D8: 56545 | E8: 74055 | F8: 106187 | G8: 140497 | H8: 119358 | I8: 406410 | J8: 436698 | K8: 470722 | L8: 445485 | M8: 359356 | N8: 369882 | O8: 413336 | P8: 702275 | Q8: 497460 | R8: 567054 | S8: 678084 | T8: 720334 | U8: 702195 | V8: 712514 | W8: 710398 | X8: 862105 | Y8: 1265461 | Z8: 1263302 | AA8: 1252836 | AB8: 1245768 | AC8: 1143639 | AD8: 1172076 | AE8: 936939 | AF8: 816268 | AG8: 644545 | AH8: 562590 | AI8: 1133904 | AJ8: 1082120 | AK8: 1082299 | AL8: 989329 | AM8: 910943 | AN8: 800559 | AO8: 717202 | AP8: 615082 | AQ8: 625528 | AR8: 774258 | AS8: 752637
A9: Caixa e Equivalentes de Caixa | B9: 17485 | C9: 2403 | D9: 3387 | E9: 17182 | F9: 19833 | G9: 61476 | H9: 19887 | I9: 217260 | J9: 221604 | K9: 195819 | L9: 70267 | M9: 73248 | N9: 45711 | O9: 34128 | P9: 82824 | Q9: 69999 | R9: 56973 | S9: 65765 | T9: 100742 | U9: 62036 | V9: 51124 | W9: 68719 | X9: 166388 | Y9: 279286 | Z9: 300229 | AA9: 281991 | AB9: 358183 | AC9: 314731 | AD9: 516989 | AE9: 313825 | AF9: 276850 | AG9: 215173 | AH9: 170934 | AI9: 699537 | AJ9: 704012 | AK9: 679933 | AL9: 551991 | AM9: 457511 | AN9: 390368 | AO9: 213704 | AP9: 107269 | AQ9: 88344 | AR9: 226051 | AS9: 180764
A10: Títulos e Valores mobiliários | B10: - | C10: - | D10: 9175 | E10: - | F10: - | G10: - | H10: - | I10: 84311 | J10: 86377 | K10: 88619 | L10: 207316 | M10: 63418 | N10: 0 | O10: 0 | P10: 256897 | Q10: 213135 | R10: 168657 | S10: 183037 | T10: 271140 | U10: 337547 | V10: 285666 | W10: 272596 | X10: 259438 | Y10: 632427 | Z10: 556513 | AA10: 532980 | AB10: 618139 | AC10: 606167 | AD10: 359460 | AE10: 242985 | AF10: 228756 | AG10: 91290 | AH10: 11356 | AI10: 624 | AJ10: 654 | AK10: 1176 | AL10: 36995 | AM10: 15022 | AN10: 16998 | AO10: 77360 | AP10: 73342 | AQ10: 46305 | AR10: 43570 | AS10: 60251
A11: Caixa Restrito | B11: 0 | C11: 0 | D11: 0 | E11: 0 | F11: 0 | G11: 0 | H11: 0 | I11: 0 | J11: 0 | K11: 0 | L11: 0 | M11: 0 | N11: 0 | O11: 0 | P11: 0 | Q11: 0 | R11: 0 | S11: 0 | T11: 0 | U11: 0 | V11: 0 | W11: 0 | X11: 0 | Y11: 0 | Z11: 0 | AA11: 0 | AB11: 0 | AC11: 0 | AD11: 0 | AE11: 0 | AF11: 0 | AG11: 0 | AH11: 0 | AI11: 0 | AJ11: 0 | AK11: 0 | AL11: 0 | AM11: 0 | AN11: 0 | AO11: 0 | AP11: 7000 | AQ11: 7000 | AR11: 6946 | AS11: 6931
A12: Contas a receber de clientes | B12: 7254 | C12: 18393 | D12: 28667 | E12: 47454 | F12: 77501 | G12: 67541 | H12: 83986 | I12: 90641 | J12: 115795 | K12: 172220 | L12: 155653 | M12: 201321 | N12: 304528 | O12: 362643 | P12: 347646 | Q12: 192251 | R12: 317486 | S12: 395796 | T12: 321650 | U12: 272773 | V12: 340275 | W12: 316295 | X12: 394273 | Y12: 317358 | Z12: 370061 | AA12: 395218 | AB12: 237588 | AC12: 185560 | AD12: 258645 | AE12: 331739 | AF12: 274858 | AG12: 286967 | AH12: 320409 | AI12: 378562 | AJ12: 338421 | AK12: 363718 | AL12: 360519 | AM12: 399079 | AN12: 350007 | AO12: 383031 | AP12: 377116 | AQ12: 434985 | AR12: 440376 | AS12: 438743
A13: Tributos a recuperar | B13: 3180 | C13: 3648 | D13: 6211 | E13: 4425 | F13: 3079 | G13: 2231 | H13: 4194 | I13: 2513 | J13: 2163 | K13: 2568 | L13: 3581 | M13: 3289 | N13: 5432 | O13: 3890 | P13: 2229 | Q13: 7308 | R13: 9216 | S13: 11419 | T13: 13599 | U13: 10758 | V13: 9205 | W13: 11995 | X13: 14279 | Y13: 11544 | Z13: 10992 | AA13: 12735 | AB13: 10228 | AC13: 8254 | AD13: 9145 | AE13: 13138 | AF13: 10987 | AG13: 13917 | AH13: 14816 | AI13: 16040 | AJ13: 13974 | AK13: 12556 | AL13: 16343 | AM13: 17135 | AN13: 18797 | AO13: 22422 | AP13: 19176 | AQ13: 21028 | AR13: 21303 | AS13: 24922
A14: Adiantamentos a fornecedores | B14: - | C14: 1453 | D14: 4363 | E14: 1945 | F14: 2883 | G14: 4255 | H14: 5982 | I14: 5499 | J14: 6561 | K14: 3112 | L14: 3598 | M14: 9066 | N14: 4535 | O14: 4175 | P14: 4125 | Q14: 5599 | R14: 5105 | S14: 1073 | T14: 1169 | U14: 3250 | V14: 4706 | W14: 0 | X14: 0 | Y14: 0 | Z14: 0 | AA14: 0 | AB14: 0 | AC14: 0 | AD14: 0 | AE14: 0 | AF14: 0 | AG14: 0 | AH14: 0 | AI14: 0 | AJ14: 0 | AK14: 0 | AL14: 0 | AM14: 0 | AN14: 0 | AO14: 0 | AP14: 0 | AQ14: 0 | AR14: 0 | AS14: 0
A15: Partes relacionadas | B15: 11327 | C15: 21 | D15: 171 | E15: 171 | F15: - | G15: - | H15: 30 | I15: 2270 | J15: - | K15: - | L15: 0 | M15: 0 | N15: 0 | O15: 0 | P15: 0 | Q15: 0 | R15: 0 | S15: 0 | T15: 0 | U15: 0 | V15: 0 | W15: 0 | X15: 0 | Y15: 0 | Z15: 0 | AA15: 0 | AB15: 0 | AC15: 0 | AD15: 0 | AE15: 1952 | AF15: 1952 | AG15: 1952 | AH15: 1952 | AI15: 1952 | AJ15: 1952 | AK15: 1952 | AL15: 1952 | AM15: 1952 | AN15: 1952 | AO15: 1952 | AP15: 1952 | AQ15: 1952 | AR15: 1952 | AS15: 1952
A16: Outros Ativos | B16: 1781 | C16: 1688 | D16: 4571 | E16: 2878 | F16: 2891 | G16: 4994 | H16: 5279 | I16: 3916 | J16: 4198 | K16: 8384 | L16: 5070 | M16: 9014 | N16: 9676 | O16: 8500 | P16: 8554 | Q16: 9168 | R16: 9617 | S16: 20994 | T16: 12034 | U16: 15831 | V16: 21538 | W16: 40793 | X16: 27727 | Y16: 24846 | Z16: 25507 | AA16: 29912 | AB16: 21630 | AC16: 28927 | AD16: 27837 | AE16: 33300 | AF16: 22865 | AG16: 35246 | AH16: 43123 | AI16: 37189 | AJ16: 23107 | AK16: 22964 | AL16: 21529 | AM16: 20244 | AN16: 22437 | AO16: 18733 | AP16: 29227 | AQ16: 25914 | AR16: 34060 | AS16: 39074
A17: Ativo Não Circulante | B17: 142745 | C17: 183425 | D17: 230367 | E17: 305236 | F17: 348640 | G17: 233097 | H17: 368847 | I17: 396955 | J17: 437705 | K17: 461747 | L17: 532578 | M17: 889807 | N17: 1131836 | O17: 1130349 | P17: 1140885 | Q17: 1351128 | R17: 1362009 | S17: 1294377 | T17: 1302872 | U17: 1316369 | V17: 1343402 | W17: 1360755 | X17: 1240665 | Y17: 1242413 | Z17: 1253807 | AA17: 1266408 | AB17: 1277120 | AC17: 1285921 | AD17: 1570596 | AE17: 1662266 | AF17: 1687705 | AG17: 1914611 | AH17: 1919456 | AI17: 1892225 | AJ17: 1847209 | AK17: 2009186 | AL17: 2162277 | AM17: 2346867 | AN17: 2374128 | AO17: 2375387 | AP17: 2718658 | AQ17: 2668374 | AR17: 2702649 | AS17: 2639440
A18: Ativo Realizável a Longo Prazo | B18: 17435 | C18: 7395 | D18: 10062 | E18: 8136 | F18: 10349 | G18: 9414 | H18: 12180 | I18: 10589 | J18: 10309 | K18: 10924 | L18: 36891 | M18: 122205 | N18: 120020 | O18: 120705 | P18: 119346 | Q18: 306523 | R18: 315354 | S18: 245507 | T18: 251935 | U18: 257007 | V18: 266348 | W18: 271699 | X18: 143555 | Y18: 147067 | Z18: 149433 | AA18: 159277 | AB18: 164173 | AC18: 171663 | AD18: 177532 | AE18: 207129 | AF18: 213166 | AG18: 227438 | AH18: 233813 | AI18: 246193 | AJ18: 256914 | AK18: 268625 | AL18: 283869 | AM18: 286720 | AN18: 294561 | AO18: 303738 | AP18: 373571 | AQ18: 380481 | AR18: 395601 | AS18: 354598
A19: Contas a receber de clientes | B19: 2944 | C19: 5668 | D19: 8942 | E19: 7695 | F19: 5716 | G19: 4941 | H19: 6211 | I19: 5476 | J19: 4951 | K19: 4925 | L19: 5144 | M19: 4173 | N19: 3777 | O19: 3224 | P19: 2646 | Q19: 189102 | R19: 196376 | S19: 125412 | T19: 130621 | U19: 132483 | V19: 135168 | W19: 139498 | X19: 9745 | Y19: 11709 | Z19: 13097 | AA19: 21038 | AB19: 23767 | AC19: 28867 | AD19: 31332 | AE19: 38175 | AF19: 40217 | AG19: 46922 | AH19: 49662 | AI19: 56496 | AJ19: 61087 | AK19: 66275 | AL19: 69605 | AM19: 74492 | AN19: 76636 | AO19: 79209 | AP19: 74986 | AQ19: 77716 | AR19: 55495 | AS19: 73332
A20: Partes relacionadas | AE20: 8949 | AF20: 8461 | AG20: 7972 | AH20: 7484 | AI20: 6996 | AJ20: 6508 | AK20: 6020 | AL20: 5532 | AM20: 5044 | AN20: 4556 | AO20: 4068 | AP20: 3579 | AQ20: 3091 | AR20: 2603 | AS20: 2115
A21: Adiantamento para investimentos | B21: 0 | C21: 0 | D21: 0 | E21: 0 | F21: 0 | G21: 0 | H21: 0 | I21: 0 | J21: 0 | K21: 0 | L21: 24300 | M21: 0 | N21: 0 | O21: 0 | P21: 0 | Q21: 0 | R21: 0 | S21: 0 | T21: 0 | U21: 0 | V21: 0 | W21: 0 | X21: 0 | Y21: 0 | Z21: 0 | AA21: 0 | AB21: 0 | AC21: 0 | AD21: 0 | AE21: 0 | AF21: 0 | AG21: 0 | AH21: 0 | AI21: 0 | AJ21: 0 | AK21: 0 | AL21: 0 | AM21: 0 | AN21: 0 | AO21: 0 | AP21: 0 | AQ21: 0 | AR21: 0 | AS21: 0
A22: Outros Ativos | B22: 1120 | C22: 1012 | D22: 400 | E22: 441 | F22: 1384 | G22: 1224 | H22: 2720 | I22: 1864 | J22: 2109 | K22: 2750 | L22: 4198 | M22: 6017 | N22: 4228 | O22: 5466 | P22: 4685 | Q22: 5406 | R22: 6963 | S22: 8080 | T22: 9299 | U22: 12509 | V22: 19165 | W22: 20186 | X22: 21795 | Y22: 23343 | Z22: 24321 | AA22: 26224 | AB22: 28391 | AC22: 29380 | AD22: 32484 | AE22: 40947 | AF22: 45208 | AG22: 50562 | AH22: 53575 | AI22: 52159 | AJ22: 56082 | AK22: 58636 | AL22: 59977 | AM22: 53116 | AN22: 52754 | AO22: 44346 | AP22: 47495 | AQ22: 53596 | AR22: 86623 | AS22: 21998
A23: Ativos de indenização | B23: 13371 | C23: 715 | D23: 720 | E23: - | F23: 3249 | G23: 3249 | H23: 3249 | I23: 3249 | J23: 3249 | K23: 3249 | L23: 3249 | M23: 112015 | N23: 112015 | O23: 112015 | P23: 112015 | Q23: 112015 | R23: 112015 | S23: 112015 | T23: 112015 | U23: 112015 | V23: 112015 | W23: 112015 | X23: 112015 | Y23: 112015 | Z23: 112015 | AA23: 112015 | AB23: 112015 | AC23: 112015 | AD23: 112015 | AE23: 112015 | AF23: 112015 | AG23: 112015 | AH23: 112015 | AI23: 112015 | AJ23: 112015 | AK23: 112015 | AL23: 112015 | AM23: 112015 | AN23: 108766 | AO23: 116282 | AP23: 115282 | AQ23: 115282 | AR23: 115282 | AS23: 115282
A24: Fundo garantidor FG-FIES | B24: 0 | C24: 0 | D24: 0 | E24: 0 | F24: 0 | G24: 0 | H24: 0 | I24: 0 | J24: 0 | K24: 0 | L24: 0 | M24: 0 | N24: 0 | O24: 0 | P24: 0 | Q24: 0 | R24: 0 | S24: 0 | T24: 0 | U24: 0 | V24: 0 | W24: 0 | X24: 0 | Y24: 0 | Z24: 0 | AA24: 0 | AB24: 0 | AC24: 1401 | AD24: 1401 | AE24: 7043 | AF24: 7265 | AG24: 9070 | AH24: 10073 | AI24: 12097 | AJ24: 14303 | AK24: 18631 | AL24: 22265 | AM24: 24215 | AN24: 31930 | AO24: 35148 | AP24: 39315 | AQ24: 38452 | AR24: 44957 | AS24: 52028
A25: Outras Contas a Receber | B25: 0 | C25: 0 | D25: 0 | E25: 0 | F25: 0 | G25: 0 | H25: 0 | I25: 0 | J25: 0 | K25: 0 | L25: 0 | M25: 0 | N25: 0 | O25: 0 | P25: 0 | Q25: 0 | R25: 0 | S25: 0 | T25: 0 | U25: 0 | V25: 0 | W25: 0 | X25: 0 | Y25: 0 | Z25: 0 | AA25: 0 | AB25: 0 | AC25: 0 | AD25: 300 | AE25: 0 | AF25: 0 | AG25: 897 | AH25: 1004 | AI25: 6430 | AJ25: 6919 | AK25: 7048 | AL25: 14475 | AM25: 17838 | AN25: 19919 | AO25: 24685 | AP25: 29914 | AQ25: 29344 | AR25: 27641 | AS25: 26843
A26: Caixa Restrito | B26: 0 | C26: 0 | D26: 0 | E26: 0 | F26: 0 | G26: 0 | H26: 0 | I26: 0 | J26: 0 | K26: 0 | L26: 0 | M26: 0 | N26: 0 | O26: 0 | P26: 0 | Q26: 0 | R26: 0 | S26: 0 | T26: 0 | U26: 0 | V26: 0 | W26: 0 | X26: 0 | Y26: 0 | Z26: 0 | AA26: 0 | AB26: 0 | AC26: 0 | AD26: 0 | AE26: 0 | AF26: 0 | AG26: 0 | AH26: 0 | AI26: 0 | AJ26: 0 | AK26: 0 | AL26: 0 | AM26: 0 | AN26: 0 | AP26: 63000 | AQ26: 63000 | AR26: 63000 | AS26: 63000
A27: Investimentos | B27: 0 | C27: 0 | D27: 0 | E27: 0 | F27: 0 | G27: 0 | H27: 0 | I27: 0 | J27: 0 | K27: 0 | L27: 0 | M27: 0 | N27: 0 | O27: 0 | P27: 0 | Q27: 0 | R27: 0 | S27: 0 | T27: 0 | U27: 0 | V27: 0 | W27: 0 | X27: 0 | Y27: 0 | Z27: 0 | AA27: 0 | AB27: 0 | AC27: 0 | AD27: 0 | AE27: 0 | AF27: 0 | AG27: 0 | AH27: 0 | AI27: 0 | AJ27: 0 | AK27: 0 | AL27: 0 | AM27: 1309 | AN27: 1548 | AO27: 0 | AP27: 0 | AQ27: 0 | AR27: 0 | AS27: 0
A28: Intangível | B28: 14315 | C28: 23755 | D28: 25162 | E28: 30046 | F28: 60289 | G28: 57452 | H28: 67473 | I28: 70849 | J28: 75436 | K28: 76491 | L28: 85167 | M28: 241815 | N28: 415337 | O28: 406025 | P28: 414252 | Q28: 432106 | R28: 431395 | S28: 433272 | T28: 435257 | U28: 434845 | V28: 435713 | W28: 436147 | X28: 435295 | Y28: 428511 | Z28: 427951 | AA28: 425946 | AB28: 424487 | AC28: 424367 | AD28: 422275 | AE28: 420432 | AF28: 423782 | AG28: 560646 | AH28: 556720 | AI28: 551812 | AJ28: 554771 | AK28: 716735 | AL28: 850575 | AM28: 1000854 | AN28: 1035414 | AO28: 1063444 | AP28: 1356325 | AQ28: 1282457 | AR28: 1291578 | AS28: 1203974
A29: Direito de Uso | AD29: 460726 | AE29: 543298 | AF29: 564670 | AG29: 616110 | AH29: 624980 | AI29: 603422 | AJ29: 572323 | AK29: 570737 | AL29: 581088 | AM29: 568273 | AN29: 547233 | AO29: 517860 | AP29: 502298 | AQ29: 516525 | AR29: 521706 | AS29: 593228
A30: Imobilizado | B30: 110995 | C30: 152275 | D30: 195143 | E30: 267054 | F30: 278002 | G30: 166231 | H30: 289194 | I30: 315517 | J30: 351960 | K30: 374332 | L30: 410520 | M30: 525787 | N30: 596479 | O30: 603619 | P30: 607287 | Q30: 612499 | R30: 615260 | S30: 615598 | T30: 615680 | U30: 624517 | V30: 641341 | W30: 652909 | X30: 661815 | Y30: 666835 | Z30: 676423 | AA30: 681185 | AB30: 688460 | AC30: 689891 | AD30: 510063 | AE30: 491407 | AF30: 486087 | AG30: 510417 | AH30: 503943 | AI30: 490798 | AJ30: 463201 | AK30: 453089 | AL30: 446745 | AM30: 489711 | AN30: 495372 | AO30: 490345 | AP30: 486464 | AQ30: 488911 | AR30: 493764 | AS30: 487640

Sheet Balanço Patrimonial - Passivo
A2: GRUPO SER EDUCACIONAL
A3: BALANÇO PATRIMONIAL - PASSIVO (CONSOLIDADO)
A6: Balanço Patrimonial - PASSIVO (Valores em R$ ('000)) | B6: 2009-12-31 | C6: 2010-12-31 | D6: 2011-12-31 | E6: 2012-12-31 | F6: 2013-03-31 | G6: 2013-06-30 | H6: 2013-09-30 | I6: 2013-12-31 | J6: 2014-03-31 | K6: 2014-06-30 | L6: 2014-09-30 | M6: 2014-12-31 | N6: 2015-03-31 | O6: 2015-06-30 | P6: 2015-09-30 | Q6: 2015-12-31 | R6: 2016-03-31 | S6: 2016-06-30 | T6: 2016-09-30 | U6: 2016-12-31 | V6: 2017-03-31 | W6: 2017-06-30 | X6: 2017-09-30 | Y6: 2017-12-31 | Z6: 2018-03-31 | AA6: 2018-06-30 | AB6: 2018-09-30 | AC6: 2018-12-31 | AD6: 2019-03-31 | AE6: 2019-06-30 | AF6: 2019-09-30 | AG6: 2019-12-31 | AH6: 2020-03-31 | AI6: 2020-06-30 | AJ6: 2020-09-30 | AK6: 2020-12-31 | AL6: 2021-03-31 | AM6: 2021-06-30 | AN6: 2021-09-30 | AO6: 2021-12-31 | AP6: 2022-03-31 | AQ6: 2022-06-30 | AR6: 2022-09-30 | AS6: 2022-12-31
A7: Passivo Total | B7: 86804 | C7: 95201 | D7: 145976 | E7: 186093 | F7: 221895 | G7: 264754 | H7: 353407 | I7: 351999 | J7: 364331 | K7: 372735 | L7: 385917 | M7: 622511 | N7: 798439 | O7: 794705 | P7: 1070679 | Q7: 1091355 | R7: 1085917 | S7: 1068603 | T7: 1070727 | U7: 1068164 | V7: 1025291 | W7: 975633 | X7: 959217 | Y7: 999484 | Z7: 976256 | AA7: 946388 | AB7: 977831 | AC7: 959017 | AD7: 1216037 | AE7: 1273125 | AF7: 1186859 | AG7: 1250668 | AH7: 1156792 | AI7: 1666531 | AJ7: 1597709 | AK7: 1664998 | AL7: 1695051 | AM7: 1791450 | AN7: 1715104 | AO7: 1629512 | AP7: 1890069 | AQ7: 1890635 | AR7: 2112985 | AS7: 2154546
A8: Passivo Circulante | B8: 23443 | C8: 24767 | D8: 42599 | E8: 86131 | F8: 110592 | G8: 102452 | H8: 94300 | I8: 92442 | J8: 107199 | K8: 119086 | L8: 133288 | M8: 196679 | N8: 237339 | O8: 239223 | P8: 249679 | Q8: 270766 | R8: 309562 | S8: 323981 | T8: 340368 | U8: 365048 | V8: 370992 | W8: 348526 | X8: 346673 | Y8: 295187 | Z8: 303133 | AA8: 281079 | AB8: 416100 | AC8: 407265 | AD8: 462585 | AE8: 458567 | AF8: 375428 | AG8: 406439 | AH8: 327898 | AI8: 362898 | AJ8: 345859 | AK8: 449744 | AL8: 463769 | AM8: 557994 | AN8: 547398 | AO8: 518740 | AP8: 566412 | AQ8: 498266 | AR8: 537337 | AS8: 552227
A9: Fornecedores | B9: 2269 | C9: 2089 | D9: 6241 | E9: 3648 | F9: 5105 | G9: 5226 | H9: 11810 | I9: 11377 | J9: 13069 | K9: 14238 | L9: 12653 | M9: 17314 | N9: 18931 | O9: 16536 | P9: 21157 | Q9: 18219 | R9: 19153 | S9: 24939 | T9: 26603 | U9: 29734 | V9: 28486 | W9: 31494 | X9: 29648 | Y9: 31422 | Z9: 35849 | AA9: 30784 | AB9: 30830 | AC9: 33921 | AD9: 31528 | AE9: 35474 | AF9: 31026 | AG9: 32501 | AH9: 32173 | AI9: 39839 | AJ9: 31171 | AK9: 38170 | AL9: 36416 | AM9: 42907 | AN9: 31957 | AO9: 34069 | AP9: 31930 | AQ9: 33028 | AR9: 29161 | AS9: 32255
A10: Compromissos a Pagar | B10: 0 | C10: 0 | D10: 8390 | E10: 12763 | F10: 21338 | G10: 12207 | H10: 14594 | I10: 14600 | J10: 19537 | K10: 18625 | L10: 17764 | M10: 52820 | N10: 70038 | O10: 68234 | P10: 67404 | Q10: 70736 | R10: 88205 | S10: 82916 | T10: 86046 | U10: 80047 | V10: 77992 | W10: 78134 | X10: 79403 | Y10: 80720 | Z10: 78758 | AA10: 80037 | AB10: 81379 | AC10: 82770 | AD10: 79386 | AE10: 81096 | AF10: 83638 | AG10: 94537 | AH10: 27155 | AI10: 1941 | AJ10: 0 | AK10: 2400 | AL10: 27400 | AM10: 44596 | AN10: 46608 | AO10: 54354 | AP10: 111741 | AQ10: 113308 | AR10: 116025 | AS10: 60871
A11: Empréstimos e financiamentos | B11: 2153 | C11: 4703 | D11: 4603 | E11: 38854 | F11: 42163 | G11: 16783 | H11: 19187 | I11: 17836 | J11: 18015 | K11: 18713 | L11: 23675 | M11: 33264 | N11: 35066 | O11: 38464 | P11: 41407 | Q11: 44450 | R11: 49526 | S11: 52680 | T11: 53886 | U11: 55764 | V11: 55810 | W11: 49607 | X11: 52180 | Y11: 26569 | Z11: 28070 | AA11: 25429 | AB11: 27119 | AC11: 24970 | AD11: 26501 | AE11: 24688 | AF11: 26003 | AG11: 24377 | AH11: 25161 | AI11: 27079 | AJ11: 31542 | AK11: 113624 | AL11: 167520 | AM11: 210986 | AN11: 212222 | AO11: 201307 | AP11: 152416 | AQ11: 72406 | AR11: 104591 | AS11: 180340
A12: Instrumentos financeiros derivativos - swap | AP12: 4906 | AQ12: 11317 | AR12: 6550 | AS12: 13610
A13: Debêntures | P13: 4461 | Q13: 5034 | R13: 4838 | S13: 22505 | T13: 33240 | U13: 43495 | V13: 43118 | W13: 42806 | X13: 42665 | Y13: 2636 | Z13: 0 | AA13: 0 | AB13: 106447 | AC13: 108476 | AD13: 147149 | AE13: 151340 | AF13: 65913 | AG13: 67760 | AH13: 49753 | AI13: 50556 | AJ13: 49658 | AK13: 50166 | AL13: 24839 | AM13: 25221 | AN13: 0 | AO13: 0 | AP13: 0 | AQ13: 0 | AR13: 3660 | AS13: 11208
A14: Salários e encargos sociais | B14: 6964 | C14: 10556 | D14: 12024 | E14: 16585 | F14: 26228 | G14: 29786 | H14: 34402 | I14: 31331 | J14: 35608 | K14: 46044 | L14: 53107 | M14: 55270 | N14: 76673 | O14: 83451 | P14: 84371 | Q14: 66406 | R14: 73445 | S14: 89824 | T14: 85307 | U14: 71873 | V14: 76988 | W14: 94418 | X14: 90879 | Y14: 74831 | Z14: 79591 | AA14: 93846 | AB14: 90434 | AC14: 73692 | AD14: 77310 | AE14: 92050 | AF14: 90808 | AG14: 82000 | AH14: 89758 | AI14: 124781 | AJ14: 116927 | AK14: 92945 | AL14: 91139 | AM14: 114260 | AN14: 120088 | AO14: 100329 | AP14: 109292 | AQ14: 123512 | AR14: 127923 | AS14: 113861
A15: Tributos a recolher | B15: 3389 | C15: 4348 | D15: 4874 | E15: 3835 | F15: 5075 | G15: 4758 | H15: 6496 | I15: 8267 | J15: 10149 | K15: 10435 | L15: 9751 | M15: 11991 | N15: 16348 | O15: 15218 | P15: 15688 | Q15: 16209 | R15: 18005 | S15: 16091 | T15: 17934 | U15: 14620 | V15: 14311 | W15: 14728 | X15: 14023 | Y15: 16220 | Z15: 16062 | AA15: 15722 | AB15: 15016 | AC15: 15648 | AD15: 15560 | AE15: 10895 | AF15: 11270 | AG15: 23688 | AH15: 20158 | AI15: 21132 | AJ15: 18640 | AK15: 49013 | AL15: 15655 | AM15: 14386 | AN15: 18303 | AO15: 21313 | AP15: 26438 | AQ15: 28614 | AR15: 26767 | AS15: 30105
A16: Imposto de renda e contribuição social a recolher | B16: 875 | C16: 1271 | D16: 1055 | E16: 2016 | F16: 2013 | G16: 2832 | H16: 2799 | I16: 2579 | J16: 5346 | K16: 3989 | L16: 4246 | M16: 3789 | N16: 3569 | O16: 3004 | P16: 3112 | Q16: 11609 | R16: 7640 | S16: 3943 | T16: 3912 | U16: 1852 | V16: 1492 | W16: 1552 | X16: 1982 | Y16: 0 | Z16: 0 | AA16: 0 | AB16: 0 | AC16: 0 | AD16: 0 | AE16: 0 | AF16: 0 | AG16: 0 | AH16: 0 | AI16: 0 | AJ16: 0 | AK16: 0 | AL16: 0 | AM16: 0 | AN16: 0 | AO16: 0 | AP16: 0 | AQ16: 0 | AR16: 0 | AS16: 0
A17: Parcelamentos de tributos | P17: 564 | Q17: 0 | R17: 0 | S17: 0 | T17: 0 | U17: 0 | V17: 0 | W17: 0 | X17: 0 | Y17: 0 | Z17: 0 | AA17: 0 | AB17: 0 | AC17: 0 | AD17: 0 | AE17: 0 | AF17: 0 | AG17: 0 | AH17: 0 | AI17: 0 | AJ17: 0 | AK17: 0 | AL17: 0 | AM17: 0 | AN17: 0 | AO17: 0 | AP17: 0 | AQ17: 0 | AR17: 0 | AS17: 0
A18: Obrigações de Arrendamento Mercantil | B18: 343 | C18: 859 | D18: 978 | E18: 1120 | F18: 1173 | G18: 1212 | H18: 2772 | I18: 2867 | J18: 2955 | K18: 3040 | L18: 3126 | M18: 3816 | N18: 4285 | O18: 4414 | P18: 4548 | Q18: 4691 | R18: 15238 | S18: 15400 | T18: 15568 | U18: 15737 | V18: 15909 | W18: 16085 | X18: 16264 | Y18: 16446 | Z18: 16632 | AA18: 16820 | AB18: 17013 | AC18: 17209 | AD18: 30771 | AE18: 36500 | AF18: 39539 | AG18: 43931 | AH18: 47298 | AI18: 47704 | AJ18: 47377 | AK18: 49320 | AL18: 52397 | AM18: 57165 | AN18: 63492 | AO18: 70364 | AP18: 77098 | AQ18: 77408 | AR18: 75282 | AS18: 66913
A19: Juros sobre Capital Próprio / Dividendos a pagar | B19: 4586 | C19: 790 | D19: 1905 | E19: 6573 | F19: 6573 | G19: 27463 | H19: 0 | I19: 0 | J19: 0 | K19: 0 | L19: 5967 | M19: 8232 | N19: 1925 | O19: 3960 | P19: 0 | Q19: 20070 | R19: 20070 | S19: 0 | T19: 0 | U19: 34234 | V19: 34234 | W19: 0 | X19: 0 | Y19: 27034 | Z19: 27034 | AA19: 0 | AB19: 0 | AC19: 27119 | AD19: 27119 | AE19: 0 | AF19: 0 | AG19: 6063 | AH19: 6063 | AI19: 20372 | AJ19: 20372 | AK19: 24718 | AL19: 11197 | AM19: 15893 | AN19: 15893 | AO19: 0 | AP19: 0 | AQ19: 0 | AR19: 0 | AS19: 0
A20: Recompras de Ações a Liquidar | B20: 0 | C20: 0 | D20: 0 | E20: 0 | F20: 0 | G20: 0 | H20: 0 | I20: 0 | J20: 0 | K20: 0 | L20: 0 | M20: 0 | N20: 0 | O20: 0 | P20: 0 | Q20: 0 | R20: 0 | S20: 0 | T20: 0 | U20: 0 | V20: 0 | W20: 0 | X20: 0 | Y20: 0 | Z20: 0 | AA20: 0 | AB20: 26949 | AC20: 0 | AD20: 0 | AE20: 0 | AF20: 0 | AG20: 0 | AH20: 0 | AI20: 0 | AJ20: 0 | AK20: 0 | AL20: 0 | AM20: 0 | AN20: 0 | AO20: 0 | AP20: 0 | AQ20: 0 | AR20: 0 | AS20: 0
A21: Outros Passivos | B21: 2864 | C21: 151 | D21: 2529 | E21: 737 | F21: 924 | G21: 2185 | H21: 2240 | I21: 3585 | J21: 2520 | K21: 4002 | L21: 2999 | M21: 10183 | N21: 10504 | O21: 5942 | P21: 6967 | Q21: 13342 | R21: 13442 | S21: 15683 | T21: 17872 | U21: 17692 | V21: 22652 | W21: 19702 | X21: 19629 | Y21: 19309 | Z21: 21137 | AA21: 18441 | AB21: 20913 | AC21: 23460 | AD21: 27261 | AE21: 26524 | AF21: 27231 | AG21: 31582 | AH21: 30379 | AI21: 29494 | AJ21: 30172 | AK21: 29388 | AL21: 37206 | AM21: 32580 | AN21: 38835 | AO21: 37004 | AP21: 52591 | AQ21: 38673 | AR21: 47378 | AS21: 43064
A22: Passivo Não Circulante | B22: 63361 | C22: 70434 | D22: 103377 | E22: 99962 | F22: 111303 | G22: 162302 | H22: 259107 | I22: 259557 | J22: 257132 | K22: 253649 | L22: 252629 | M22: 425832 | N22: 561100 | O22: 555482 | P22: 821000 | Q22: 820589 | R22: 776355 | S22: 744622 | T22: 730359 | U22: 703116 | V22: 654299 | W22: 627107 | X22: 612544 | Y22: 704297 | Z22: 673123 | AA22: 665309 | AB22: 561731 | AC22: 551752 | AD22: 753452 | AE22: 814558 | AF22: 811431 | AG22: 844229 | AH22: 828894 | AI22: 1303633 | AJ22: 1251850 | AK22: 1215254 | AL22: 1231282 | AM22: 1233456 | AN22: 1167706 | AO22: 1110772 | AP22: 1323657 | AQ22: 1392369 | AR22: 1575648 | AS22: 1602319
A23: Empréstimos e financiamentos | B23: 8627 | C23: 11443 | D23: 47245 | E23: 42542 | F23: 40550 | G23: 91598 | H23: 89286 | I23: 90000 | J23: 87653 | K23: 86672 | L23: 83970 | M23: 74673 | N23: 87422 | O23: 81365 | P23: 194372 | Q23: 185591 | R23: 177128 | S23: 161578 | T23: 156354 | U23: 140534 | V23: 135421 | W23: 119602 | X23: 114244 | Y23: 87410 | Z23: 86922 | AA23: 75645 | AB23: 75157 | AC23: 63880 | AD23: 63392 | AE23: 52115 | AF23: 51627 | AG23: 40351 | AH23: 39862 | AI23: 528146 | AJ23: 527765 | AK23: 427268 | AL23: 376845 | AM23: 326419 | AN23: 275326 | AO23: 234758 | AP23: 426057 | AQ23: 488062 | AR23: 443629 | AS23: 375280
A24: Instrumentos financeiros derivativos - swap | B24: 0 | C24: 0 | D24: 0 | E24: 0 | F24: 0 | G24: 0 | H24: 0 | I24: 0 | J24: 0 | K24: 0 | L24: 0 | M24: 0 | N24: 0 | O24: 0 | P24: 0 | Q24: 0 | R24: 0 | S24: 0 | T24: 0 | U24: 0 | V24: 0 | W24: 0 | X24: 0 | Y24: 0 | Z24: 0 | AA24: 0 | AB24: 0 | AC24: 0 | AD24: 0 | AE24: 0 | AF24: 0 | AG24: 0 | AH24: 0 | AI24: 0 | AJ24: 0 | AK24: 0 | AL24: 0 | AM24: 0 | AN24: 0 | AO24: 0 | AP24: 36105 | AQ24: 28993 | AR24: 35036 | AS24: 26336
A25: Debêntures | P25: 148375 | Q25: 147649 | R25: 147649 | S25: 130079 | T25: 119537 | U25: 108995 | V25: 98453 | W25: 87911 | X25: 77369 | Y25: 198245 | Z25: 204932 | AA25: 209007 | AB25: 106765 | AC25: 108892 | AD25: 74381 | AE25: 74484 | AF25: 49587 | AG25: 49690 | AH25: 24794 | AI25: 24897 | AJ25: 0 | AK25: 0 | AL25: 0 | AM25: 0 | AN25: 0 | AO25: 0 | AP25: 0 | AQ25: 0 | AR25: 199049 | AS25: 199111
A26: Obrigações de Arrendamento Mercantil | B26: 52393 | C26: 55009 | D26: 54136 | E26: 54981 | F26: 54673 | G26: 54357 | H26: 158464 | I26: 158355 | J26: 157808 | K26: 157016 | L26: 156201 | M26: 217531 | N26: 253103 | O26: 251951 | P26: 250761 | Q26: 249534 | R26: 237866 | S26: 236549 | T26: 235194 | U26: 233798 | V26: 232363 | W26: 230883 | X26: 229361 | Y26: 227794 | Z26: 226181 | AA26: 224521 | AB26: 222811 | AC26: 221050 | AD26: 492505 | AE26: 565712 | AF26: 588381 | AG26: 623946 | AH26: 637018 | AI26: 622866 | AJ26: 597198 | AK26: 601707 | AL26: 617130 | AM26: 607650 | AN26: 588294 | AO26: 556599 | AP26: 541019 | AQ26: 556444 | AR26: 564296 | AS26: 638817
A27: Compromissos a pagar | B27: 1210 | C27: 3100 | D27: 1471 | E27: 1396 | F27: 11535 | G27: 11535 | H27: 5568 | I27: 5097 | J27: 5590 | K27: 3765 | L27: 4887 | M27: 12952 | N27: 99479 | O27: 101390 | P27: 106160 | Q27: 109675 | R27: 81491 | S27: 84394 | T27: 85735 | U27: 88888 | V27: 56886 | W27: 59017 | X27: 61250 | Y27: 63566 | Z27: 31002 | AA27: 32177 | AB27: 33408 | AC27: 34684 | AD27: 0 | AE27: 0 | AF27: 0 | AG27: 0 | AH27: 0 | AI27: 0 | AJ27: 0 | AK27: 59600 | AL27: 109792 | AM27: 170223 | AN27: 176999 | AO27: 185239 | AP27: 183507 | AQ27: 184114 | AR27: 197540 | AS27: 228624
A28: Tributos a recolher | B28: 0 | C28: 0 | D28: 352 | E28: 78 | F28: 64 | G28: 180 | H28: 0 | I28: 0 | J28: 0 | K28: 0 | L28: 0 | M28: 0 | N28: 0 | O28: 0 | P28: 0 | Q28: 331 | R28: 331 | S28: 953 | T28: 2081 | U28: 1661 | V28: 2333 | W28: 1413 | X28: 1917 | Y28: 1777 | Z28: 1634 | AA28: 1483 | AB28: 1341 | AC28: 1154 | AD28: 1020 | AE28: 962 | AF28: 829 | AG28: 7127 | AH28: 4758 | AI28: 6101 | AJ28: 5668 | AK28: 5261 | AL28: 4853 | AM28: 4848 | AN28: 5216 | AO28: 4804 | AP28: 4459 | AQ28: 3823 | AR28: 3284 | AS28: 2790
A29: Imposto de renda e contribuição social a recolher | B29: 0 | C29: 0 | D29: 0 | E29: 0 | F29: 0 | G29: 0 | H29: 0 | I29: 0 | J29: 0 | K29: 0 | L29: 0 | M29: 0 | N29: 0 | O29: 0 | P29: 0 | Q29: 0 | R29: 4594 | S29: 4075 | T29: 3977 | U29: 3902 | V29: 3815 | W29: 3729 | X29: 3642 | Y29: 0 | Z29: 0 | AA29: 0 | AB29: 0 | AC29: 0 | AD29: 0 | AE29: 0 | AF29: 0 | AG29: 0 | AH29: 0 | AI29: 0 | AJ29: 0 | AK29: 0 | AL29: 0 | AM29: 0 | AN29: 0 | AO29: 0 | AP29: 0 | AQ29: 0 | AR29: 0 | AS29: 0
A30: Parcelamentos de tributos | B30: 1123 | C30: 861 | D30: 0 | E30: 0 | F30: 0 | G30: 0 | H30: 1157 | I30: 99 | J30: 75 | K30: 50 | L30: 374 | M30: 409 | N30: 409 | O30: 517 | P30: 645 | Q30: 0 | R30: 0 | S30: 0 | T30: 0 | U30: 0 | V30: 0 | W30: 0 | X30: 0 | Y30: 0 | Z30: 0 | AA30: 0 | AB30: 0 | AC30: 0 | AD30: 0 | AE30: 0 | AF30: 0 | AG30: 0 | AH30: 0 | AI30: 0 | AJ30: 0 | AK30: 0 | AL30: 0 | AM30: 0 | AN30: 0 | AO30: 0 | AP30: 0 | AQ30: 0 | AR30: 0 | AS30: 0
A31: Provisão para contingências | B31: 8 | C31: 21 | D31: 173 | E31: 965 | F31: 4481 | G31: 4632 | H31: 4632 | I31: 6006 | J31: 6006 | K31: 6146 | L31: 7197 | M31: 120267 | N31: 120687 | O31: 120259 | P31: 120687 | Q31: 121253 | R31: 120735 | S31: 121288 | T31: 122128 | U31: 120346 | V31: 120346 | W31: 120227 | X31: 120751 | Y31: 121845 | Z31: 119106 | AA31: 119464 | AB31: 119602 | AC31: 119759 | AD31: 120140 | AE31: 119614 | AF31: 119670 | AG31: 122111 | AH31: 121783 | AI31: 121181 | AJ31: 121207 | AK31: 121406 | AL31: 122650 | AM31: 124304 | AN31: 121859 | AO31: 129360 | AP31: 132498 | AQ31: 130703 | AR31: 131499 | AS31: 131349
A32: Outros Passivos | B32: 0 | C32: 0 | D32: 0 | E32: 0 | F32: 0 | G32: 0 | H32: 0 | I32: 0 | J32: 0 | K32: 0 | L32: 0 | M32: 0 | N32: 0 | O32: 0 | P32: 0 | Q32: 6556 | R32: 6561 | S32: 5706 | T32: 5353 | U32: 4992 | V32: 4682 | W32: 4325 | X32: 4010 | Y32: 3660 | Z32: 3346 | AA32: 3012 | AB32: 2647 | AC32: 2333 | AD32: 2014 | AE32: 1671 | AF32: 1337 | AG32: 1004 | AH32: 679 | AI32: 442 | AJ32: 12 | AK32: 12 | AL32: 12 | AM32: 12 | AN32: 12 | AO32: 12 | AP32: 12 | AQ32: 230 | AR32: 1315 | AS32: 12
A33: Patrimônio Líquido Consolidado | B33: 96968 | C33: 115830 | D33: 140936 | E33: 193198 | F33: 232932 | G33: 108840 | H33: 134798 | I33: 451366 | J33: 510072 | K33: 559734 | L33: 315849 | M33: 626652 | N33: 703279 | O33: 748325 | P33: 772481 | Q33: 757233 | R33: 843146 | S33: 903858 | T33: 952479 | U33: 950400 | V33: 1030625 | W33: 1095520 | X33: 1143553 | Y33: 1508390 | Z33: 1540853 | AA33: 1572856 | AB33: 1545057 | AC33: 1470543 | AD33: 1526635 | AE33: 1326080 | AF33: 1317114 | AG33: 1308488 | AH33: 1325254 | AI33: 1359598 | AJ33: 1331620 | AK33: 1426487 | AL33: 1456555 | AM33: 1466360 | AN33: 1459583 | AO33: 1463077 | AP33: 1443671 | AQ33: 1403267 | AR33: 1363922 | AS33: 1237531
A34: Capital Social Realizado | B34: 70971 | C34: 70971 | D34: 70971 | E34: 70971 | F34: 70971 | G34: 82010 | H34: 82010 | I34: 100751 | J34: 100751 | K34: 100751 | L34: 100751 | M34: 377048 | N34: 377048 | O34: 377048 | P34: 377048 | Q34: 377048 | R34: 377048 | S34: 377048 | T34: 377048 | U34: 377048 | V34: 377048 | W34: 377048 | X34: 600000 | Y34: 987549 | Z34: 987549 | AA34: 987549 | AB34: 987549 | AC34: 987549 | AD34: 987549 | AE34: 987549 | AF34: 987549 | AG34: 987549 | AH34: 987549 | AI34: 987549 | AJ34: 987549 | AK34: 987549 | AL34: 987549 | AM34: 987549 | AN34: 987549 | AO34: 987549 | AP34: 987549 | AQ34: 987549 | AR34: 987549 | AS34: 987549
A35: Reservas de Capital | B35: 0 | C35: 0 | D35: 0 | E35: 0 | F35: 0 | G35: 0 | H35: 0 | I35: 276297 | J35: 276297 | K35: 276297 | L35: 0 | M35: 0 | N35: 0 | O35: 0 | P35: 0 | Q35: 0 | R35: 0 | S35: 0 | T35: 0 | U35: 0 | V35: 0 | W35: 0 | X35: 0 | Y35: 0 | Z35: 0 | AA35: 0 | AB35: 0 | AC35: 0 | AD35: 0 | AE35: 0 | AF35: 0 | AG35: 0 | AH35: 0 | AI35: 0 | AJ35: 0 | AK35: 0 | AL35: 0 | AM35: 0 | AN35: 0 | AO35: 0 | AP35: 0 | AQ35: 0 | AR35: 0 | AS35: 0
A36: Reservas de Lucros | B36: 37497 | C36: 54163 | D36: 77079 | E36: 127133 | F36: 135156 | G36: 6872 | H36: 9548 | I36: - | J36: 92673 | K36: 92924 | L36: 102301 | M36: 250190 | N36: 260665 | O36: 263825 | P36: 264323 | Q36: 386639 | R36: 394609 | S36: 394750 | T36: 398228 | U36: 579806 | V36: 588438 | W36: 592654 | X36: 372681 | Y36: 527295 | Z36: 504450 | AA36: 499198 | AB36: 501046 | AC36: 548521 | AD36: 551326 | AE36: 229188 | AF36: 197577 | AG36: 320939 | AH36: 321777 | AI36: 324513 | AJ36: 323114 | AK36: 438938 | AL36: 440441 | AM36: 441726 | AN36: 441387 | AO36: 475528 | AP36: 475528 | AQ36: 475528 | AR36: 475528 | AS36: 253380
A37: Lucros acumulados | B37: 0 | C37: 0 | D37: 0 | E37: 0 | F37: 31186 | G37: 23793 | H37: 46525 | I37: 77059 | J37: 42544 | K37: 91407 | L37: 113925 | M37: 0 | N37: 71783 | O37: 113669 | P37: 137327 | Q37: 0 | R37: 77943 | S37: 138514 | T37: 183657 | U37: 0 | V37: 71593 | W37: 132272 | X37: 177326 | Y37: 0 | Z37: 55308 | AA37: 122770 | AB37: 137168 | AC37: 0 | AD37: 53287 | AE37: 109343 | AF37: 131988 | AG37: 0 | AH37: 15928 | AI37: 47536 | AJ37: 20957 | AK37: 0 | AL37: 28565 | AM37: 37085 | AN37: 30647 | AO37: 0 | AP37: -18319 | AQ37: -57412 | AR37: -96757 | AS37: 0
A38: Ajustes de Avaliação Patrimonial | B38: -11500 | C38: -9311 | D38: -7120 | E38: -4929 | F38: -4381 | G38: -3835 | H38: -3285 | I38: -2741 | J38: -2193 | K38: -1645 | L38: -1128 | M38: -586 | N38: 0 | O38: 0 | P38: 0 | Q38: 0 | R38: 0 | S38: 0 | T38: 0 | U38: 0 | V38: 0 | W38: 0 | X38: 0 | Y38: 0 | Z38: 0 | AA38: 0 | AB38: 0 | AC38: 0 | AD38: 0 | AE38: 0 | AF38: 0 | AG38: 0 | AH38: 0 | AI38: 0 | AJ38: 0 | AK38: 0 | AL38: 0 | AM38: 0 | AN38: 0 | AO38: 0 | AP38: 0 | AQ38: 0 | AR38: 0 | AS38: 0
A39: Participação dos Acionistas Não Controladores | B39: 0 | C39: 7 | D39: 6 | E39: 23 | F39: 0 | G39: 0 | H39: 0 | I39: 0 | J39: 0 | K39: 0 | L39: 0 | M39: 0 | N39: 0 | O39: 0 | P39: 0 | Q39: 0 | R39: 0 | S39: 0 | T39: 0 | U39: 0 | V39: 0 | W39: 0 | X39: 0 | Y39: 0 | Z39: 0 | AA39: 0 | AB39: 0 | AC39: 0 | AD39: 0 | AE39: 0 | AF39: 0 | AG39: 0 | AH39: 0 | AI39: 0 | AJ39: 0 | AK39: 0 | AL39: 0 | AM39: 0 | AN39: 0 | AO39: 0 | AP39: 0 | AQ39: 0 | AR39: 0 | AS39: 0
A40: Ações em Tesouraria | B40: 0 | C40: 0 | D40: 0 | E40: 0 | F40: 0 | G40: 0 | H40: 0 | I40: 0 | J40: 0 | K40: 0 | L40: 0 | M40: 0 | N40: -6217 | O40: -6217 | P40: -6217 | Q40: -6454 | R40: -6454 | S40: -6454 | T40: -6454 | U40: -6454 | V40: -6454 | W40: -6454 | X40: -6454 | Y40: -6454 | Z40: -6454 | AA40: -36661 | AB40: -80706 | AC40: -65527 | AD40: -65527 | AE40: 0 | AF40: 0 | AG40: 0 | AH40: 0 | AI40: 0 | AJ40: 0 | AK40: 0 | AL40: 0 | AM40: 0 | AN40: 0 | AO40: 0 | AP40: -1087 | AQ40: -2398 | AR40: -2398 | AS40: -3398
A41: Total do Passivo e do Patrimonio Líquido | B41: 183772 | C41: 211031 | D41: 286912 | E41: 379291 | F41: 454827 | G41: 373594 | H41: 488205 | I41: 803365 | J41: 874403 | K41: 932469 | L41: 701766 | M41: 1249163 | N41: 1501718 | O41: 1543685 | P41: 1843160 | Q41: 1848588 | R41: 1929063 | S41: 1972461 | T41: 2023206 | U41: 2018564 | V41: 2055916 | W41: 2071153 | X41: 2102770 | Y41: 2507874 | Z41: 2517109 | AA41: 2519244 | AB41: 2522888 | AC41: 2429560 | AD41: 2742672 | AE41: 2599205 | AF41: 2503973 | AG41: 2559156 | AH41: 2482046 | AI41: 3026129 | AJ41: 2929329 | AK41: 3091485 | AL41: 3151606 | AM41: 3257810 | AN41: 3174687 | AO41: 3092589 | AP41: 3333740 | AQ41: 3293902 | AR41: 3476907 | AS41: 3392077

Sheet Fluxo de Caixa_v.1 (hidden)
A2: GRUPO SER EDUCACIONAL
A3: FLUXO DE CAIXA (CONSOLIDADO)
A6: Fluxo de Caixa (Valores em R$ ('000)) | B6: 2016-03-31 | C6: 2015-12-31 | D6: 2015-09-30 | E6: 2015-06-30 | F6: 2015-03-31 | G6: 2014-12-31 | H6: 2014-09-30 | I6: 2014-06-30 | J6: 2014-03-31 | K6: 2013-12-31 | L6: 2013-09-30 | M6: 2013-06-30 | N6: 2013-03-31 | O6: 2012-12-31 | P6: 2012-09-30 | Q6: 2011-12-31 | R6: 2010-12-31 | S6: 2009-12-31
A7: Lucro Líquido Consolidado do Período Antes do I.R. e da Cont. Social | C7: =VLOOKUP($A7,[1]FDC!$B$2:$C$62,2,0) -> 172543 | D7: 163019 | E7: 136835 | F7: 85948 | G7: 230162 | H7: 183011 | I7: 121992 | J7: 62049 | K7: 121496 | L7: 97750 | M7: 70868 | N7: 40708 | O7: 66987 | P7: 59063 | Q7: 33284 | R7: 36755 | S7: 30167
A8: Caixa Líquido Atividades Operacionais | C8: =VLOOKUP($A8,[1]FDC!$B$2:$C$62,2,0) -> 77060 | D8: 84596 | E8: 20581 | F8: 9554 | G8: 177040 | H8: 143956 | I8: 63014 | J8: 48760 | K8: 130934 | L8: 107194 | M8: 77261 | N8: 27404 | O8: 71411 | P8: 63218 | Q8: 33578 | R8: 58224 | S8: 24427
A9: Caixa Gerado nas Operações | C9: =VLOOKUP($A9,[1]FDC!$B$2:$C$62,2,0) -> -24082 | D9: -15495 | E9: -82648 | F9: =SUM(F10:F15) -> -60763 | G9: -3941 | H9: -752 | I9: -35270 | J9: -2917 | K9: 35937 | L9: 16814 | M9: 11709 | N9: -10338 | O9: 16765 | P9: 9339 | Q9: 11168 | R9: 31518 | S9: 6454
A10: Depreciações e Amortizações | C10: =VLOOKUP($A10,[1]FDC!$B$2:$C$62,2,0) -> 56100 | D10: 41833 | E10: 27290 | F10: 12326 | G10: 24623 | H10: 16955 | I10: 10381 | J10: 4641 | K10: 19659 | L10: 13531 | M10: 8406 | N10: 3549 | O10: 13453 | P10: 8311 | Q10: 11134 | R10: 9070 | S10: 7388
A11: Provisão para Créditos de Liquidação Duvidosa | C11: =VLOOKUP($A11,[1]FDC!$B$2:$C$62,2,0) -> 47659 | D11: 29504 | E11: 18834 | F11: 4595 | G11: 25468 | H11: 17388 | I11: 12399 | J11: 4843 | K11: 20001 | L11: 11775 | M11: 9065 | N11: 2622 | O11: 15566 | P11: 7281 | Q11: 6741 | R11: 2197 | S11: -1645
A12: Ajuste a valor presente do contas a receber | C12: =VLOOKUP($A12,[1]FDC!$B$2:$C$62,2,0) -> 12187 | D12: 0 | E12: 0 | F12: 0 | G12: 0 | H12: 0 | I12: 0 | J12: 0 | K12: 0 | L12: 0 | M12: 0 | N12: 0 | O12: 0 | P12: 0 | Q12: 0 | R12: 0 | S12: 0
A13: Provisão para Contingências | C13: =VLOOKUP($A13,[1]FDC!$B$2:$C$62,2,0) -> 986 | D13: 424 | E13: -5 | F13: 421 | G13: -603 | H13: 221 | I13: 140 | J13: 0 | K13: 931 | L13: 418 | M13: 418 | N13: 267 | O13: 2354 | P13: -3421 | Q13: 0 | R13: 0 | S13: 0
A14: Juros e Variação Cambial Líquida | C14: =VLOOKUP($A14,[1]FDC!$B$2:$C$62,2,0) -> 72222 | D14: 56760 | E14: 28622 | F14: 12170 | G14: 36985 | H14: 26658 | I14: 18014 | J14: 8672 | K14: 24977 | L14: 16292 | M14: 7701 | N14: 3839 | O14: 14688 | P14: 10469 | Q14: 13530 | R14: 12454 | S14: 11339
A15: Variações nos Ativos e Passivos | C15: =VLOOKUP($A15,[1]FDC!$B$2:$C$62,2,0) -> -213236 | D15: -144016 | E15: -157389 | F15: =SUM(F16:F24) -> -90275 | G15: -90414 | H15: -61974 | I15: -76204 | J15: -21073 | K15: -29631 | L15: -25202 | M15: -13881 | N15: -20615 | O15: -58013 | P15: -30545 | Q15: -40474 | R15: -11524 | S15: -22050
A16: Contas a Receber de Clientes | C16: =VLOOKUP($A16,[1]FDC!$B$2:$C$62,2,0) -> -228435 | D16: -171987 | E16: -178272 | F16: -105546 | G16: -100575 | H16: -81988 | I16: -93255 | J16: -30864 | K16: -53597 | L16: -47083 | M16: -24020 | N16: -30042 | O16: -33043 | P16: -30342 | Q16: -20480 | R16: -16440 | S16: 1648
A17: Impostos a Recuperar | C17: =VLOOKUP($A17,[1]FDC!$B$2:$C$62,2,0) -> -4015 | D17: 1703 | E17: -600 | F17: -2139 | G17: -485 | H17: -780 | I17: -46 | J17: 359 | K17: 2413 | L17: 732 | M17: 3055 | N17: 2207 | O17: 1784 | P17: -765 | Q17: -2563 | R17: -468 | S17: -1491
A18: Adiantamentos | C18: =VLOOKUP($A18,[1]FDC!$B$2:$C$62,2,0) -> 3481 | D18: 5759 | E18: 5709 | F18: 5384 | G18: -2413 | H18: -835 | I18: 2437 | J18: -2904 | K18: -3374 | L18: -3853 | M18: -2228 | N18: -856 | O18: -26942 | P18: -16722 | Q18: -20237 | R18: -5762 | S18: -11025
A19: Outros ativos | C19: =VLOOKUP($A19,[1]FDC!$B$2:$C$62,2,0) -> 657 | D19: -64 | E19: -74 | F19: -612 | G19: -3430 | H19: -1958 | I19: -5032 | J19: -416 | K19: -1236 | L19: -2545 | M19: -2901 | N19: -961 | O19: 1852 | P19: 1300 | Q19: -4714 | R19: -1393 | S19: -2655
A20: Fornecedores | C20: =VLOOKUP($A20,[1]FDC!$B$2:$C$62,2,0) -> 519 | D20: 3457 | E20: -1164 | F20: 1231 | G20: 5264 | H20: 715 | I20: 2489 | J20: 1545 | K20: 7317 | L20: 7259 | M20: 1806 | N20: 682 | O20: -2733 | P20: 8467 | Q20: 4152 | R20: -180 | S20: -1067
A21: Salários, Encargos e Contr. Social | C21: =VLOOKUP($A21,[1]FDC!$B$2:$C$62,2,0) -> 1453 | D21: 20591 | E21: 19673 | F21: 11815 | G21: 7100 | H21: 18428 | I21: 14607 | J21: 4211 | K21: 12631 | L21: 16365 | M21: 11068 | N21: 7510 | O21: 4280 | P21: 8036 | Q21: 1468 | R21: 3592 | S21: 166
A22: Tributos a recolher | C22: =VLOOKUP($A22,[1]FDC!$B$2:$C$62,2,0) -> 2568 | D22: 4508 | E22: 4030 | F22: 4637 | G22: -1417 | H22: -418 | I22: 1966 | J22: 4558 | K22: 1527 | L22: 206 | M22: 216 | N22: 415 | O22: -1401 | P22: -38 | Q22: -10 | R22: 1142 | S22: -1337
A23: Imposto de Renda e Contribuição Social a Recolher | C23: =VLOOKUP($A23,[1]FDC!$B$2:$C$62,2,0) -> 5377 | D23: 0 | E23: 0 | F23: 0 | G23: 0 | H23: 0 | I23: 0 | J23: 0 | K23: 0 | L23: 0 | M23: 0 | N23: 0 | O23: 0 | P23: 0 | Q23: 0 | R23: 0 | S23: 0
A24: Outros passivos | C24: =VLOOKUP($A24,[1]FDC!$B$2:$C$62,2,0) -> 5159 | D24: -7983 | E24: -5769 | F24: -5045 | G24: 5542 | H24: 4862 | I24: 630 | J24: 2438 | K24: 4688 | L24: 3717 | M24: -877 | N24: 430 | O24: -1810 | P24: -481 | Q24: 1910 | R24: 7985 | S24: -6289
A25: Outros | C25: =VLOOKUP($A25,[1]FDC!$B$2:$C$62,2,0) -> -71401 | D25: -62928 | E25: -33606 | F25: -15274 | G25: -50247 | H25: -39579 | I25: -24974 | J25: -10372 | K25: -27025 | L25: -8149 | M25: -6095 | N25: -2926 | O25: -12341 | P25: -5184 | Q25: -10874 | R25: -10049 | S25: -12194
A26: Juros pagos de empréstimos | C26: =VLOOKUP($A26,[1]FDC!$B$2:$C$62,2,0) -> -62366 | D26: -54270 | E26: -28622 | F26: -12170 | G26: -33949 | H26: -26658 | I26: -15409 | J26: -6996 | K26: -21868 | L26: -5184 | M26: -3961 | N26: -1956 | O26: -9610 | P26: -3962 | Q26: -9142 | R26: -8947 | S26: -11734
A27: Imposto de Renda e Contribuição Social Pagos | C27: =VLOOKUP($A27,[1]FDC!$B$2:$C$62,2,0) -> -9035 | D27: -8658 | E27: =-4984-922 -> -5906 | F27: =-3104-357 -> -3461 | G27: =-16298+1066 -> -15232 | H27: =-12921+1276 -> -11645 | I27: =-9565+1266 -> -8299 | J27: -3376 | K27: =-5157+526 -> -4631 | L27: =-2965+779 -> -2186 | M27: =-2134+779 -> -1355 | N27: =-970-40 -> -1010 | O27: =-2731+961 -> -1770 | P27: =-1222+522 -> -700 | Q27: -1732 | R27: -1102 | S27: -460
A28: Caixa Líquido Atividades de Investimento | C28: =VLOOKUP($A28,[1]FDC!$B$2:$C$62,2,0) -> -319839 | D28: -317218 | E28: -49151 | F28: =SUM(F29:F33) -> -37056 | G28: -274675 | H28: -261106 | I28: -77095 | J28: -44039 | K28: -203833 | L28: -83638 | M28: -44735 | N28: -21675 | O28: -72959 | P28: -63423 | Q28: -58891 | R28: -63304 | S28: -24950
A29: Títulos e valores mobiliários | C29: =VLOOKUP($A29,[1]FDC!$B$2:$C$62,2,0) -> -149717 | D29: -193479 | E29: 63418 | F29: 63418 | G29: 20893 | H29: -123005 | I29: -4308 | J29: -2066 | K29: -84291 | L29: 0 | M29: 0 | N29: 0 | O29: 9175 | P29: 0 | Q29: -9175 | R29: 0 | S29: 0
A30: Adições de Investimentos | C30: =VLOOKUP($A30,[1]FDC!$B$2:$C$62,2,0) -> -18840 | D30: 0 | E30: 0 | F30: 0 | G30: 0 | H30: 0 | I30: 0 | J30: 0 | K30: 0 | L30: 0 | M30: 0 | N30: 0 | O30: 0 | P30: 0 | Q30: 0 | R30: 0 | S30: 0
A31: Adições ao imobilizado | C31: =VLOOKUP($A31,[1]FDC!$B$2:$C$62,2,0) -> -72042 | D31: -48102 | E31: -41836 | F31: -35584 | G31: -150800 | H31: -89388 | I31: -59997 | J31: -31969 | K31: -95528 | L31: -65053 | M31: -34373 | N31: -12954 | O31: -77797 | P31: -59594 | Q31: -47010 | R31: -60758 | S31: -23953
A32: Adições ao intangível | C32: =VLOOKUP($A32,[1]FDC!$B$2:$C$62,2,0) -> -26971 | D32: -13266 | E32: -8362 | F32: -2519 | G32: -10474 | H32: -7705 | I32: -4577 | J32: -2975 | K32: -6937 | L32: -5845 | M32: -3147 | N32: -1451 | O32: -2213 | P32: -1705 | Q32: -2706 | R32: -2546 | S32: -997
A33: Aquisição de Controladas | C33: =VLOOKUP($A33,[1]FDC!$B$2:$C$62,2,0) -> -52269 | D33: -62371 | E33: -62371 | F33: -62371 | G33: -134294 | H33: -41008 | I33: -8213 | J33: -7029 | K33: -17077 | L33: -12740 | M33: -7215 | N33: -7270 | O33: -2124 | P33: -2124 | Q33: 0 | R33: 0 | S33: 0
A34: Caixa Líquido Atividades de Financiamento | C34: =VLOOKUP($A34,[1]FDC!$B$2:$C$62,2,0) -> 239530 | D34: 242198 | E34: -10550 | F34: =SUM(F35:F42) -> -35 | G34: -46377 | H34: -29843 | I34: -7360 | J34: -377 | K34: 272977 | L34: -20851 | M34: 11768 | N34: -3078 | O34: 15343 | P34: -10542 | Q34: 26297 | R34: -10002 | S34: -5302
A35: Captação de Debêntures | C35: =VLOOKUP($A35,[1]FDC!$B$2:$C$62,2,0) -> 147649 | D35: 148375 | E35: 0 | F35: 0 | G35: 0 | H35: 0 | I35: 0 | J35: 0 | K35: 0 | L35: 0 | M35: 0 | N35: 0 | O35: 0 | P35: 0 | Q35: 0 | R35: 0 | S35: 0
A36: Captação de empréstimos e financiamentos | C36: =VLOOKUP($A36,[1]FDC!$B$2:$C$62,2,0) -> 137213 | D36: 141431 | E36: 18376 | F36: 18674 | G36: 0 | H36: 0 | I36: 0 | J36: 0 | K36: 54669 | L36: 54380 | M36: 54380 | N36: 0 | O36: 25175 | P36: 168 | Q36: 35061 | R36: 6234 | S36: -
A37: Amortização de empréstimos e financiamentos | C37: =VLOOKUP($A37,[1]FDC!$B$2:$C$62,2,0) -> -22653 | D37: -22602 | E37: -7119 | F37: -1779 | G37: -8815 | H37: -5657 | I37: -4405 | J37: -2188 | K37: -39565 | L37: -38271 | M37: -35677 | N37: -2831 | O37: -1508 | P37: -2214 | Q37: -2679 | R37: -3012 | S37: -1863
A38: Amortização de arrendamentos mercantis | C38: =VLOOKUP($A38,[1]FDC!$B$2:$C$62,2,0) -> -4033 | D38: -9444 | E38: -6245 | F38: -3199 | G38: -8328 | H38: -1895 | I38: -1166 | J38: -459 | K38: -859 | L38: -2925 | M38: -533 | N38: -255 | O38: -996 | P38: -725 | Q38: -754 | R38: -759 | S38: -140
A39: Partes relacionadas | C39: =VLOOKUP($A39,[1]FDC!$B$2:$C$62,2,0) -> 0 | D39: 0 | E39: 0 | F39: -95 | G39: 0 | H39: 0 | I39: 2270 | J39: 2270 | K39: -2271 | L39: 0 | M39: 171 | N39: 8 | O39: -2 | P39: -441 | Q39: - | R39: 7168 | S39: -3299
A40: Ações em Tesouraria | C40: =VLOOKUP($A40,[1]FDC!$B$2:$C$62,2,0) -> -6454 | D40: -6217 | E40: -6217 | F40: -6217 | G40: 0 | H40: 0 | I40: 0 | J40: 0 | K40: 0 | L40: 0 | M40: 0 | N40: 0 | O40: 0 | P40: 0 | Q40: 0 | R40: 0 | S40: 0
A41: Patrimônio Líquido | C41: =IFERROR(VLOOKUP($A41,[1]FDC!$B$2:$C$62,2,0),0) -> 0 | D41: 0 | E41: 0 | F41: 0 | G41: 0 | H41: 0 | I41: 0 | J41: 0 | K41: 295038 | L41: 0 | M41: 0 | N41: 0 | O41: 0 | P41: 0 | Q41: 0 | R41: 0 | S41: 0
A42: Dividendos | C42: =VLOOKUP($A42,[1]FDC!$B$2:$C$62,2,0) -> -12192 | D42: -9345 | E42: -9345 | F42: -7419 | G42: -29234 | H42: -22291 | I42: -4059 | J42: - | K42: -34035 | L42: -34035 | M42: -6573 | N42: 0 | O42: -7326 | P42: -7330 | Q42: -5331 | R42: -19633 | S42: -
A43: Aumento (Redução) de Caixa e Equivalentes | C43: =VLOOKUP($A43,[1]FDC!$B$2:$C$62,2,0) -> -3249 | D43: 9576 | E43: -39120 | F43: =F45-F44 -> -27537 | G43: -144012 | H43: -146993 | I43: -21441 | J43: 4344 | K43: 200078 | L43: 2705 | M43: 44294 | N43: 2651 | O43: 13795 | P43: -10747 | Q43: 984 | R43: -15082 | S43: -5825
A44: Saldo Inicial de Caixa e Equivalentes | C44: =VLOOKUP($A44,[1]FDC!$B$2:$C$62,2,0) -> 73248 | D44: 73248 | E44: 73248 | F44: 73248 | G44: 217260 | H44: 217260 | I44: 217260 | J44: 217260 | K44: 17182 | L44: 17182 | M44: 17182 | N44: 17182 | O44: 3387 | P44: 12744 | Q44: 2403 | R44: 17485 | S44: 23311
A45: Saldo Final de Caixa e Equivalentes | C45: =VLOOKUP($A45,[1]FDC!$B$2:$C$62,2,0) -> 69999 | D45: 82824 | E45: 34128 | F45: 45711 | G45: 73248 | H45: 70267 | I45: 195819 | J45: 221604 | K45: 217260 | L45: 19887 | M45: 61476 | N45: 19833 | O45: 17182 | P45: 1997 | Q45: 3387 | R45: 2403 | S45: 17486

Sheet Fluxo de Caixa
A2: GRUPO SER EDUCACIONAL
A3: FLUXO DE CAIXA (CONSOLIDADO)
A6: Fluxo de Caixa (Valores em R$ ('000)) | B6: 12M09 | C6: 12M10 | D6: 12M11 | E6: 9M12 | F6: 4T12 | G6: 12M12 | H6: 3M13 | I6: 2T13 | J6: 6M13 | K6: 3T13 | L6: 9M13 | M6: 4T13 | N6: 12M13 | O6: 3M14 | P6: 2T14 | Q6: 6M14 | R6: 3T14 | S6: 9M14 | T6: 4T14 | U6: 12M14 | V6: 3M15 | W6: 2T15 | X6: 6M15 | Y6: 3T15 | Z6: 9M15 | AA6: 4T15 | AB6: 12M15 | AC6: 3M16 | AD6: 2T16 | AE6: 6M16 | AF6: 3T16 | AG6: 9M16 | AH6: 4T16 | AI6: 12M16 | AJ6: 3M17 | AK6: 2T17 | AL6: 6M17 | AM6: 3T17 | AN6: 9M17 | AO6: 4T17 | AP6: 12M17 | AQ6: 3M18 | AR6: 2T18 | AS6: 6M18 | AT6: 3T18 | AU6: 9M18 | AV6: 4T18 | AW6: 12M18 | AX6: 3M19 | AY6: 2T19 | AZ6: 6M19 | BA6: 3T19 | BB6: 9M19 | BC6: 4T19 | BD6: 12M19 | BE6: 3M20 | BF6: 2T20 | BG6: 6M20 | BH6: 3T20 | BI6: 9M20 | BJ6: 4T20 | BK6: 12M20 | BL6: 3M21 | BM6: 2T21 | BN6: 6M21 | BO6: 3T21 | BP6: 9M21 | BQ6: 4T21 | BR6: 12M21 | BS6: 3M22 | BT6: 2T22 | BU6: 6M22 | BV6: 3T22 | BW6: 9M22 | BX6: 4T22 | BY6: 12M22
A7: Lucro Líquido Consolidado do Período Antes do I.R. e da Cont. Social | B7: 30167 | C7: 36755 | D7: 33284 | E7: 59063 | F7: 7924 | G7: 66987 | H7: 40708 | I7: 30160 | J7: 70868 | K7: 26882 | L7: 97750 | M7: 23746 | N7: 121496 | O7: 62049 | P7: 59943 | Q7: 121992 | R7: 61019 | S7: 183011 | T7: 47151 | U7: 230162 | V7: 85948 | W7: 50887 | X7: 136835 | Y7: 26184 | Z7: 163019 | AA7: 9524 | AB7: 172543 | AC7: 87983 | AD7: 65473 | AE7: 153456 | AF7: 49649 | AG7: 203105 | AH7: 32788 | AI7: 235893 | AJ7: 81514 | AK7: 63471 | AL7: 144985 | AM7: 47715 | AN7: 192700 | AO7: 9215 | AP7: 201915 | AQ7: 59648 | AR7: 74159 | AS7: 133807 | AT7: 39185 | AU7: 172992 | AV7: 35619 | AW7: 208611 | AX7: 58877 | AY7: 60792 | AZ7: 119669 | BA7: 25501 | BB7: 145170 | BC7: -8260 | BD7: 136910 | BE7: 18435 | BF7: 60572 | BG7: 79007 | BH7: -23039 | BI7: 55968 | BJ7: 153591 | BK7: 209559 | BL7: 25019 | BM7: 23088 | BN7: 48107 | BO7: -5201 | BP7: 42906 | BQ7: 3392 | BR7: 46298 | BS7: -19967 | BT7: -37039 | BU7: -57006 | BV7: -35383 | BW7: -92389 | BX7: -122522 | BY7: -214911
A8: Depreciações e Amortizações | B8: 7388 | C8: 9070 | D8: 11134 | E8: 8311 | F8: 5142 | G8: 13453 | H8: 3549 | I8: 4857 | J8: 8406 | K8: 5125 | L8: 13531 | M8: 6128 | N8: 19659 | O8: 4641 | P8: 5740 | Q8: 10381 | R8: 6574 | S8: 16955 | T8: 7668 | U8: 24623 | V8: 12326 | W8: 14964 | X8: 27290 | Y8: 14543 | Z8: 41833 | AA8: 14267 | AB8: 56100 | AC8: 14512 | AD8: 14811 | AE8: 29323 | AF8: 15271 | AG8: 44594 | AH8: 15683 | AI8: 60277 | AJ8: 14528 | AK8: 16491 | AL8: 31019 | AM8: 16764 | AN8: 47783 | AO8: 17307 | AP8: 65090 | AQ8: 17384 | AR8: 18076 | AS8: 35460 | AT8: 18839 | AU8: 54299 | AV8: 22049 | AW8: 76348 | AX8: 26488 | AY8: 34298 | AZ8: 60786 | BA8: 30251 | BB8: 91037 | BC8: 39869 | BD8: 130906 | BE8: 43897 | BF8: 44373 | BG8: 88270 | BH8: 43773 | BI8: 132043 | BJ8: 43608 | BK8: 175651 | BL8: 42634 | BM8: 46525 | BN8: 89159 | BO8: 46864 | BP8: 136023 | BQ8: 48847 | BR8: 184870 | BS8: 49569 | BT8: 51965 | BU8: 101534 | BV8: 55929 | BW8: 157463 | BX8: 56855 | BY8: 214318
A9: Ganho ou perda na alienação de imobilizado e intangível | B9: 397 | C9: 13559 | D9: 0 | E9: 0 | F9: 0 | G9: 0 | H9: 0 | I9: 0 | J9: 0 | K9: 0 | L9: 0 | M9: 0 | N9: 0 | O9: 0 | P9: 0 | Q9: 0 | R9: 0 | S9: 0 | T9: 0 | U9: 0 | V9: 0 | W9: 0 | X9: 0 | Y9: 0 | Z9: 0 | AA9: 0 | AB9: 0 | AC9: 0 | AD9: 0 | AE9: 0 | AF9: 0 | AG9: 0 | AH9: 0 | AI9: 0 | AJ9: 0 | AK9: 0 | AL9: 0 | AM9: 0 | AN9: 0 | AO9: 0 | AP9: 0 | AQ9: 0 | AR9: 0 | AS9: 0 | AT9: 0 | AU9: 0 | AV9: 0 | AW9: 0 | AX9: 0 | AY9: 0 | AZ9: 0 | BA9: 0 | BB9: 0 | BC9: 0 | BD9: 0 | BE9: 0 | BF9: 0 | BG9: 0 | BH9: 0 | BI9: 0 | BJ9: 0 | BK9: 0 | BL9: 0 | BM9: 0 | BN9: 0 | BO9: 0 | BP9: 0 | BQ9: 0 | BR9: 0 | BS9: 0 | BT9: 0 | BU9: 0 | BV9: 0 | BW9: 0 | BX9: 0 | BY9: 0
A10: Provisão para Contingências | B10: 0 | C10: 0 | D10: 0 | E10: -3421 | F10: 4235 | G10: 814 | H10: 267 | I10: 151 | J10: 418 | K10: 0 | L10: 418 | M10: 513 | N10: 931 | O10: 0 | P10: 140 | Q10: 140 | R10: 81 | S10: 221 | T10: -824 | U10: -603 | V10: 421 | W10: -426 | X10: -5 | Y10: 429 | Z10: 424 | AA10: 562 | AB10: 986 | AC10: -518 | AD10: 553 | AE10: 35 | AF10: 840 | AG10: 875 | AH10: -1782 | AI10: -907 | AJ10: 0 | AK10: -119 | AL10: -119 | AM10: 524 | AN10: 405 | AO10: 1094 | AP10: 1499 | AQ10: -2739 | AR10: 358 | AS10: -2381 | AT10: 138 | AU10: -2243 | AV10: 157 | AW10: -2086 | AX10: 381 | AY10: -526 | AZ10: -145 | BA10: 56 | BB10: -89 | BC10: -351 | BD10: -440 | BE10: -328 | BF10: -602 | BG10: -930 | BH10: 26 | BI10: -904 | BJ10: 199 | BK10: -705 | BL10: 1244 | BM10: 1654 | BN10: 2898 | BO10: 804 | BP10: 3702 | BQ10: 985 | BR10: 4687 | BS10: -16 | BT10: -1795 | BU10: -1811 | BV10: 796 | BW10: -1015 | BX10: -150 | BY10: -1165
A11: Participação nos lucros de controladas | B11: 0 | C11: 0 | D11: 0 | E11: 0 | F11: 0 | G11: 0 | H11: 0 | I11: 0 | J11: 0 | K11: 0 | L11: 0 | M11: 0 | N11: 0 | O11: 0 | P11: 0 | Q11: 0 | R11: 0 | S11: 0 | T11: 0 | U11: 0 | V11: 0 | W11: 0 | X11: 0 | Y11: 0 | Z11: 0 | AA11: 0 | AB11: 0 | AC11: 0 | AD11: 0 | AE11: 0 | AF11: 0 | AG11: 0 | AH11: 0 | AI11: 0 | AJ11: 0 | AK11: 0 | AL11: 0 | AM11: 0 | AN11: 0 | AO11: 0 | AP11: 0 | AQ11: 0 | AR11: 0 | AS11: 0 | AT11: 0 | AU11: 0 | AV11: 0 | AW11: 0 | AX11: 0 | AY11: 0 | AZ11: 0 | BA11: 0 | BB11: 0 | BC11: 0 | BD11: 0 | BE11: 0 | BF11: 0 | BG11: 0 | BH11: 0 | BI11: 0 | BJ11: 0 | BK11: 0 | BL11: 0 | BM11: 106 | BN11: 106 | BO11: 125 | BP11: 231 | BQ11: -231 | BR11: 0 | BS11: 0 | BT11: 0 | BU11: 0 | BV11: 0 | BW11: 0 | BX11: 0 | BY11: 0
A12: Ajuste a valor presente do contas a receber | B12: 0 | C12: 0 | D12: 0 | E12: 0 | F12: 0 | G12: 0 | H12: 0 | I12: 0 | J12: 0 | K12: 0 | L12: 0 | M12: 0 | N12: 0 | O12: 0 | P12: 0 | Q12: 0 | R12: 0 | S12: 0 | T12: 0 | U12: 0 | V12: 0 | W12: 0 | X12: 0 | Y12: 0 | Z12: 0 | AA12: 12187 | AB12: 12187 | AC12: 0 | AD12: 0 | AE12: 0 | AF12: 0 | AG12: 0 | AH12: 0 | AI12: 0 | AJ12: 0 | AK12: 0 | AL12: 0 | AM12: 0 | AN12: 0 | AO12: 0 | AP12: 0 | AQ12: 0 | AR12: -2727 | AS12: -2727 | AT12: -1938 | AU12: -4665 | AV12: 7392 | AW12: 2727 | AX12: 1294 | AY12: 1196 | AZ12: 2490 | BA12: 0 | BB12: 2490 | BC12: 0 | BD12: 2490 | BE12: 376 | BF12: 3794 | BG12: 4170 | BH12: 1204 | BI12: 5374 | BJ12: 2749 | BK12: 8123 | BL12: 524 | BM12: 1789 | BN12: 2313 | BO12: -377 | BP12: 1936 | BQ12: 718 | BR12: 2654 | BS12: 1752 | BT12: -425 | BU12: 1327 | BV12: 2650 | BW12: 3977 | BX12: -400 | BY12: 3577
A13: Ajuste a valor presente de compromissos | B13: 0 | C13: 0 | D13: 0 | E13: 0 | F13: 0 | G13: 0 | H13: 0 | I13: 0 | J13: 0 | K13: 0 | L13: 0 | M13: 0 | N13: 0 | O13: 0 | P13: 0 | Q13: 0 | R13: 0 | S13: 0 | T13: 0 | U13: 0 | V13: 0 | W13: 0 | X13: 0 | Y13: 0 | Z13: 0 | AA13: 0 | AB13: 0 | AC13: 0 | AD13: 0 | AE13: 0 | AF13: 0 | AG13: 0 | AH13: 0 | AI13: 0 | AJ13: 0 | AK13: 0 | AL13: 0 | AM13: 0 | AN13: 0 | AO13: 0 | AP13: 0 | AQ13: 0 | AR13: 0 | AS13: 0 | AT13: 0 | AU13: 0 | AV13: 0 | AW13: 0 | AX13: 0 | AY13: 0 | AZ13: 0 | BA13: 0 | BB13: 0 | BC13: 0 | BD13: 0 | BE13: 0 | BF13: 0 | BG13: 0 | BH13: 0 | BI13: 0 | BJ13: 0 | BK13: 0 | BL13: 0 | BM13: 793 | BN13: 793 | BO13: 927 | BP13: 1720 | BQ13: 749 | BR13: 2469 | BS13: 5475 | BT13: 640 | BU13: 6115 | BV13: 640 | BW13: 6755 | BX13: 640 | BY13: 7395
A14: Provisão para Créditos de Liquidação Duvidosa | B14: -1645 | C14: 2197 | D14: 6741 | E14: 7281 | F14: 8285 | G14: 15566 | H14: 2622 | I14: 6443 | J14: 9065 | K14: 2710 | L14: 11775 | M14: 8226 | N14: 20001 | O14: 4843 | P14: 7556 | Q14: 12399 | R14: 4989 | S14: 17388 | T14: 8080 | U14: 25468 | V14: 4595 | W14: 14239 | X14: 18834 | Y14: 10670 | Z14: 29504 | AA14: 18155 | AB14: 47659 | AC14: 6390 | AD14: 13058 | AE14: 19448 | AF14: 14849 | AG14: 34297 | AH14: 14435 | AI14: 48732 | AJ14: 7303 | AK14: 15169 | AL14: 22472 | AM14: 14929 | AN14: 37401 | AO14: 26794 | AP14: 64195 | AQ14: 15689 | AR14: 21880 | AS14: 37569 | AT14: 18321 | AU14: 55890 | AV14: 32353 | AW14: 88243 | AX14: 6528 | AY14: 22311 | AZ14: 28839 | BA14: 17923 | BB14: 46762 | BC14: 33278 | BD14: 80040 | BE14: 13741 | BF14: 47475 | BG14: 61216 | BH14: 28925 | BI14: 90141 | BJ14: 32825 | BK14: 122966 | BL14: 17306 | BM14: 40314 | BN14: 57620 | BO14: 22195 | BP14: 79815 | BQ14: 38008 | BR14: 117823 | BS14: 28787 | BT14: 27463 | BU14: 56250 | BV14: 16535 | BW14: 72785 | BX14: 40485 | BY14: 113270
A15: Baixa de ativos não circulantes | B15: 0 | C15: 0 | D15: 0 | E15: 0 | F15: 0 | G15: 0 | H15: 0 | I15: 0 | J15: 0 | K15: 0 | L15: 0 | M15: 0 | N15: 0 | O15: 0 | P15: 0 | Q15: 0 | R15: 0 | S15: 0 | T15: 0 | U15: 0 | V15: 0 | W15: 0 | X15: 0 | Y15: 0 | Z15: 0 | AA15: 0 | AB15: 0 | AC15: 0 | AD15: 37 | AE15: 37 | AF15: 340 | AG15: 377 | AH15: 3573 | AI15: 3950 | AJ15: 782 | AK15: 1435 | AL15: 2217 | AM15: 1109 | AN15: 3326 | AO15: 5766 | AP15: 9092 | AQ15: 46 | AR15: 120 | AS15: 166 | AT15: 0 | AU15: 166 | AV15: 1900 | AW15: 2066 | AX15: 95 | AY15: 6582 | AZ15: 6677 | BA15: 11038 | BB15: 17715 | BC15: -1176 | BD15: 16539 | BE15: -2544 | BF15: -7 | BG15: -2551 | BH15: 12500 | BI15: 9949 | BJ15: 10478 | BK15: 20427 | BL15: 2571 | BM15: 99 | BN15: 2670 | BO15: 8 | BP15: 2678 | BQ15: 4109 | BR15: 6787 | BS15: 0 | BT15: 63754 | BU15: 63754 | BV15: 6782 | BW15: 70536 | BX15: 111425 | BY15: 181961
A16: Rendimentos de aplicações financeiras | B16: 0 | C16: 0 | D16: 0 | E16: 0 | F16: 0 | G16: 0 | H16: 0 | I16: 0 | J16: 0 | K16: 0 | L16: 0 | M16: 0 | N16: 0 | O16: 0 | P16: 0 | Q16: 0 | R16: 0 | S16: 0 | T16: 0 | U16: 0 | V16: 0 | W16: 0 | X16: 0 | Y16: 0 | Z16: 0 | AA16: 0 | AB16: 0 | AC16: 0 | AD16: 0 | AE16: 0 | AF16: 0 | AG16: 0 | AH16: 0 | AI16: 0 | AJ16: 0 | AK16: 0 | AL16: 0 | AM16: 0 | AN16: 0 | AO16: 0 | AP16: 0 | AQ16: 0 | AR16: 0 | AS16: 0 | AT16: 0 | AU16: 0 | AV16: 0 | AW16: 0 | AX16: 0 | AY16: 0 | AZ16: 0 | BA16: 0 | BB16: 0 | BC16: 0 | BD16: 0 | BE16: 0 | BF16: 0 | BG16: 0 | BH16: 0 | BI16: 0 | BJ16: 0 | BK16: 0 | BL16: 0 | BM16: -128 | BN16: -128 | BO16: -186 | BP16: -314 | BQ16: -612 | BR16: -926 | BS16: -1756 | BT16: -709 | BU16: -2465 | BV16: -13649 | BW16: -16114 | BX16: -8835 | BY16: -24949
A17: Juros e Variação Cambial Líquida | B17: 11339 | C17: 12454 | D17: 13530 | E17: 10469 | F17: 4219 | G17: 14688 | H17: 3839 | I17: 3862 | J17: 7701 | K17: 8591 | L17: 16292 | M17: 8685 | N17: 24977 | O17: 8672 | P17: 9342 | Q17: 18014 | R17: 8644 | S17: 26658 | T17: 10327 | U17: 36985 | V17: 12170 | W17: 16452 | X17: 28622 | Y17: 28138 | Z17: 56760 | AA17: 15462 | AB17: 72222 | AC17: 26147 | AD17: 10829 | AE17: 36976 | AF17: 26563 | AG17: 63539 | AH17: 25792 | AI17: 89331 | AJ17: 20960 | AK17: 19111 | AL17: 40071 | AM17: 18900 | AN17: 58971 | AO17: 19268 | AP17: 78239 | AQ17: 15624 | AR17: 16235 | AS17: 31859 | AT17: 16051 | AU17: 47910 | AV17: 18494 | AW17: 66404 | AX17: 21311 | AY17: 29167 | AZ17: 50478 | BA17: 25750 | BB17: 76228 | BC17: 41410 | BD17: 117638 | BE17: 21986 | BF17: 23667 | BG17: 45653 | BH17: 25287 | BI17: 70940 | BJ17: 22017 | BK17: 92957 | BL17: 23472 | BM17: 26364 | BN17: 49836 | BO17: 27957 | BP17: 77793 | BQ17: 39490 | BR17: 117283 | BS17: 38696 | BT17: 43986 | BU17: 82682 | BV17: 49961 | BW17: 132643 | BX17: 52515 | BY17: 185158
A18: Lucro Líquido Ajustado | B18: 47646 | C18: 74035 | D18: 64689 | E18: 81703 | F18: 29805 | G18: 111508 | H18: 50985 | I18: 45473 | J18: 96458 | K18: 43308 | L18: 139766 | M18: 47298 | N18: 187064 | O18: 80205 | P18: 82721 | Q18: 162926 | R18: 81307 | S18: 244233 | T18: 72402 | U18: 316635 | V18: 115460 | W18: 96116 | X18: 211576 | Y18: 79964 | Z18: 291540 | AA18: 70157 | AB18: 361697 | AC18: 134514 | AD18: 104761 | AE18: 239275 | AF18: 107512 | AG18: 346787 | AH18: 90489 | AI18: 437276 | AJ18: 125087 | AK18: 115558 | AL18: 240645 | AM18: 99941 | AN18: 340586 | AO18: 79444 | AP18: 420030 | AQ18: 105652 | AR18: 128101 | AS18: 233753 | AT18: 90596 | AU18: 324349 | AV18: 117964 | AW18: 442313 | AX18: 114974 | AY18: 153820 | AZ18: 268794 | BA18: 110519 | BB18: 379313 | BC18: 104770 | BD18: 484083 | BE18: 95563 | BF18: 179272 | BG18: 274835 | BH18: 88676 | BI18: 363511 | BJ18: 265467 | BK18: 628978 | BL18: 112770 | BM18: 140604 | BN18: 253374 | BO18: 93116 | BP18: 346490 | BQ18: 135455 | BR18: 481945 | BS18: 102540 | BT18: 147840 | BU18: 250380 | BV18: 84261 | BW18: 334641 | BX18: 130013 | BY18: 464654
A20: Variações nos Ativos e Passivos | B20: -11025 | C20: -5762 | D20: -20237 | E20: -13823 | F20: -13933 | G20: -27756 | H20: -20615 | I20: 6734 | J20: -13881 | K20: -11321 | L20: -25202 | M20: -4429 | N20: -29631 | O20: -21073 | P20: -55131 | Q20: -76204 | R20: 14230 | S20: -61974 | T20: -28440 | U20: -90414 | V20: -90275 | W20: -66192 | X20: -156467 | Y20: 12451 | Z20: -144016 | AA20: -69220 | AB20: -213236 | AC20: -132048 | AD20: 412 | AE20: -131636 | AF20: 66982 | AG20: -64654 | AH20: 16298 | AI20: -48356 | AJ20: -77663 | AK20: 7955 | AL20: -69708 | AM20: 43784 | AN20: -25924 | AO20: 32857 | AP20: 6933 | AQ20: -83891 | AR20: -53027 | AS20: -136918 | AT20: 143064 | AU20: 6146 | AV20: -12687 | AW20: -6541 | AX20: -82508 | AY20: -123606 | AZ20: -206114 | BA20: 41269 | BB20: -164845 | BC20: -32385 | BD20: -197230 | BE20: -62694 | BF20: -78254 | BG20: -140948 | BH20: -5041 | BI20: -145989 | BJ20: -87738 | BK20: -233727 | BL20: -21816 | BM20: -57943 | BN20: -79759 | BO20: 14514 | BP20: -65245 | BQ20: -90366 | BR20: -155611 | BS20: -18233 | BT20: -72405 | BU20: -90638 | BV20: -14636 | BW20: -105274 | BX20: -76490 | BY20: -181764
A21: Contas a Receber de Clientes | B21: 1648 | C21: -16440 | D21: -20480 | E21: -30342 | F21: -2701 | G21: -33043 | H21: -30042 | I21: 6022 | J21: -24020 | K21: -23063 | L21: -47083 | M21: -6514 | N21: -53597 | O21: -30864 | P21: -62391 | Q21: -93255 | R21: 11267 | S21: -81988 | T21: -18587 | U21: -100575 | V21: -105546 | W21: -72726 | X21: -178272 | Y21: 6285 | Z21: -171987 | AA21: -56448 | AB21: -228435 | AC21: -138899 | AD21: -4236 | AE21: -143135 | AF21: 55171 | AG21: -87964 | AH21: 35425 | AI21: -52539 | AJ21: -74181 | AK21: 6952 | AL21: -67229 | AM21: 38265 | AN21: -28964 | AO21: 50192 | AP21: 21228 | AQ21: -93215 | AR21: -50973 | AS21: -144188 | AT21: 136977 | AU21: -7211 | AV21: 7183 | AW21: -28 | AX21: -83372 | AY21: -103444 | AZ21: -186816 | BA21: 36916 | BB21: -149900 | BC21: -19067 | BD21: -168967 | BE21: -50299 | BF21: -116256 | BG21: -166555 | BH21: 5421 | BI21: -161134 | BJ21: -61464 | BK21: -222598 | BL21: -13566 | BM21: -84016 | BN21: -97582 | BO21: 25573 | BP21: -72009 | BQ21: -69344 | BR21: -141353 | BS21: -3229 | BT21: -87637 | BU21: -90866 | BV21: -2355 | BW21: -93221 | BX21: -56289 | BY21: -149510
A22: Tributos a Recuperar | B22: -1491 | C22: -468 | D22: -2563 | E22: -765 | F22: 2549 | G22: 1784 | H22: 2207 | I22: 848 | J22: 3055 | K22: -2323 | L22: 732 | M22: 1681 | N22: 2413 | O22: 359 | P22: -405 | Q22: -46 | R22: -734 | S22: -780 | T22: 295 | U22: -485 | V22: -2139 | W22: 1539 | X22: -600 | Y22: 2303 | Z22: 1703 | AA22: -5718 | AB22: -4015 | AC22: -1908 | AD22: -2203 | AE22: -4111 | AF22: -2180 | AG22: -6291 | AH22: 2841 | AI22: -3450 | AJ22: 1553 | AK22: -2790 | AL22: -1237 | AM22: -2284 | AN22: -3521 | AO22: 2735 | AP22: -786 | AQ22: 552 | AR22: -1743 | AS22: -1191 | AT22: 2507 | AU22: 1316 | AV22: 1974 | AW22: 3290 | AX22: -891 | AY22: -3993 | AZ22: -4884 | BA22: 2151 | BB22: -2733 | BC22: 1767 | BD22: -966 | BE22: -899 | BF22: -5293 | BG22: -6192 | BH22: 885 | BI22: -5307 | BJ22: 2447 | BK22: -2860 | BL22: -3388 | BM22: -399 | BN22: -3787 | BO22: -680 | BP22: -4467 | BQ22: -2823 | BR22: -7290 | BS22: 4278 | BT22: -1459 | BU22: 2819 | BV22: 119 | BW22: 2938 | BX22: -3225 | BY22: -287
A23: Tributos Diferidos | B23: 0 | C23: 0 | D23: 0 | E23: 0 | F23: 0 | G23: 0 | H23: 0 | I23: 0 | J23: 0 | K23: 0 | L23: 0 | M23: 0 | N23: 0 | O23: 0 | P23: 0 | Q23: 0 | R23: 0 | S23: 0 | T23: 0 | U23: 0 | V23: 0 | W23: 0 | X23: 0 | Y23: 0 | Z23: 0 | AA23: 0 | AB23: 0 | AC23: 0 | AD23: 0 | AE23: 0 | AF23: 0 | AG23: 0 | AH23: 0 | AI23: 0 | AJ23: 0 | AK23: 0 | AL23: 0 | AM23: 0 | AN23: 0 | AO23: 0 | AP23: 0 | AQ23: 0 | AR23: 0 | AS23: 0 | AT23: 0 | AU23: 0 | AV23: 0 | AW23: 0 | AX23: 0 | AY23: 0 | AZ23: 0 | BA23: 0 | BC23: -7897 | BD23: -7897 | BE23: 0 | BF23: 0 | BG23: 0 | BH23: 0 | BI23: 0 | BJ23: 0 | BK23: 0 | BL23: 0 | BM23: 0 | BN23: 0 | BO23: 0 | BP23: 0 | BQ23: 0 | BR23: 0 | BS23: 0 | BT23: 0 | BU23: 0 | BV23: 0 | BW23: 0 | BX23: 0 | BY23: 0
A24: Partes relacionadas (Contas a Receber) | B24: 0 | C24: 0 | D24: 0 | E24: 0 | F24: 0 | G24: 0 | H24: 0 | I24: 0 | J24: 0 | K24: 0 | L24: 0 | M24: 0 | N24: 0 | O24: 0 | P24: 0 | Q24: 0 | R24: 0 | S24: 0 | T24: 0 | U24: 0 | V24: 0 | W24: 0 | X24: 0 | Y24: 0 | Z24: 0 | AA24: 0 | AB24: 0 | AC24: 0 | AD24: 0 | AE24: 0 | AF24: 0 | AG24: 0 | AH24: 0 | AI24: 0 | AJ24: 0 | AK24: 0 | AL24: 0 | AM24: 0 | AN24: 0 | AO24: 0 | AP24: 0 | AQ24: 0 | AR24: 0 | AS24: 0 | AT24: 0 | AU24: 0 | AV24: 0 | AW24: 0 | AX24: 0 | AY24: -10901 | AZ24: -10901 | BA24: 488 | BB24: -10413 | BC24: 489 | BD24: -9924 | BE24: 0 | BF24: 0 | BG24: 0 | BH24: 0 | BI24: 0 | BJ24: 0 | BK24: 0 | BL24: 0 | BM24: 0 | BN24: 0 | BO24: 0 | BP24: 0 | BQ24: 0 | BR24: 0 | BS24: 0 | BT24: 0 | BU24: 0 | BV24: 0 | BW24: 0 | BX24: 0 | BY24: 0
A25: Adiantamentos a Fornecedores | B25: 0 | C25: 0 | D25: 0 | E25: 0 | F25: 2354 | G25: 2354 | H25: -856 | I25: -1372 | J25: -2228 | K25: -1625 | L25: -3853 | M25: 479 | N25: -3374 | O25: -2904 | P25: 5341 | Q25: 2437 | R25: -3272 | S25: -835 | T25: -1578 | U25: -2413 | V25: 5384 | W25: 325 | X25: 5709 | Y25: 50 | Z25: 5759 | AA25: -2278 | AB25: 3481 | AC25: 494 | AD25: 4032 | AE25: 4526 | AF25: -96 | AG25: 4430 | AH25: -2081 | AI25: 2349 | AJ25: -1456 | AK25: 1456 | AL25: 0 | AM25: 0 | AN25: 0 | AO25: 0 | AP25: 0 | AQ25: 0 | AR25: 0 | AS25: 0 | AT25: 0 | AU25: 0 | AV25: 0 | AW25: 0 | AX25: 0 | AY25: 0 | AZ25: 0 | BA25: 0 | BB25: 0 | BC25: 0 | BD25: 0 | BE25: 0 | BF25: 0 | BG25: 0 | BH25: 0 | BI25: 0 | BJ25: 0 | BK25: 0 | BL25: 0 | BM25: 0 | BN25: 0 | BO25: 0 | BP25: 0 | BQ25: 0 | BR25: 0 | BS25: 0 | BT25: 0 | BU25: 0 | BV25: 0 | BW25: 0 | BX25: 0 | BY25: 0
A26: Outros ativos | B26: -2655 | C26: -1393 | D26: -4714 | E26: 1300 | F26: 552 | G26: 1852 | H26: -961 | I26: -1940 | J26: -2901 | K26: 356 | L26: -2545 | M26: 1309 | N26: -1236 | O26: -416 | P26: -4616 | Q26: -5032 | R26: 3074 | S26: -1958 | T26: -1472 | U26: -3430 | V26: -612 | W26: 538 | X26: -74 | Y26: 10 | Z26: -64 | AA26: 721 | AB26: 657 | AC26: -1390 | AD26: -11333 | AE26: -12723 | AF26: 9201 | AG26: -3522 | AH26: -10244 | AI26: -13766 | AJ26: -12363 | AK26: -17026 | AL26: -29389 | AM26: 11457 | AN26: -17932 | AO26: 1333 | AP26: -16599 | AQ26: -1639 | AR26: -6308 | AS26: -7947 | AT26: 6115 | AU26: -1832 | AV26: -9687 | AW26: -11519 | AX26: -2314 | AY26: -19268 | AZ26: -21582 | BA26: 5952 | BB26: -15630 | BC26: -2608 | BD26: -18238 | BE26: -12000 | BF26: 3969 | BG26: -8031 | BH26: 8645 | BI26: 614 | BJ26: -5662 | BK26: -5048 | BL26: -4694 | BM26: 6513 | BN26: 1819 | BO26: -10234 | BP26: -8415 | BQ26: 4752 | BR26: -3663 | BS26: -10890 | BT26: -3142 | BU26: -14032 | BV26: -16982 | BW26: -31014 | BX26: -3645 | BY26: -34659
A27: Fornecedores | B27: -1067 | C27: -180 | D27: 4152 | E27: 8467 | F27: -11200 | G27: -2733 | H27: 682 | I27: 1124 | J27: 1806 | K27: 5453 | L27: 7259 | M27: 58 | N27: 7317 | O27: 1545 | P27: 944 | Q27: 2489 | R27: -1774 | S27: 715 | T27: 4549 | U27: 5264 | V27: 1231 | W27: -2395 | X27: -1164 | Y27: 4621 | Z27: 3457 | AA27: -2938 | AB27: 519 | AC27: 934 | AD27: 5786 | AE27: 6720 | AF27: 1664 | AG27: 8384 | AH27: 3131 | AI27: 11515 | AJ27: -1248 | AK27: 3008 | AL27: 1760 | AM27: -1846 | AN27: -86 | AO27: 1774 | AP27: 1688 | AQ27: 4427 | AR27: -5065 | AS27: -638 | AT27: 46 | AU27: -592 | AV27: 3091 | AW27: 2499 | AX27: -2393 | AY27: 3946 | AZ27: 1553 | BA27: -4448 | BB27: -2895 | BC27: -810 | BD27: -3705 | BE27: -328 | BF27: 7666 | BG27: 7338 | BH27: -8668 | BI27: -1330 | BJ27: 6659 | BK27: 5329 | BL27: -1754 | BM27: 6381 | BN27: 4627 | BO27: -11364 | BP27: -6737 | BQ27: -2016 | BR27: -8753 | BS27: -13509 | BT27: 4193 | BU27: -9316 | BV27: -3867 | BW27: -13183 | BX27: 3094 | BY27: -10089
A28: Aluguéis a pagar | B28: 0 | C28: 0 | D28: 0 | E28: 0 | F28: 0 | G28: 0 | H28: 0 | I28: 0 | J28: 0 | K28: 0 | L28: 0 | M28: 0 | N28: 0 | O28: 0 | P28: 0 | Q28: 0 | R28: 0 | S28: 0 | T28: 0 | U28: 0 | V28: 0 | W28: 0 | X28: 0 | Y28: 0 | Z28: 0 | AA28: 0 | AB28: 0 | AC28: 0 | AD28: 0 | AE28: 0 | AF28: 0 | AG28: 0 | AH28: 0 | AI28: 0 | AJ28: 0 | AK28: 0 | AL28: 0 | AM28: 0 | AN28: 0 | AO28: 0 | AP28: 0 | AQ28: 0 | AR28: 0 | AS28: 0 | AT28: 0 | AU28: 0 | AV28: 0 | AW28: 0 | AX28: 0 | AY28: 0 | AZ28: 0 | BA28: 0 | BB28: 0 | BC28: 0 | BD28: 0 | BE28: 0 | BF28: 0 | BG28: 0 | BH28: 0 | BI28: 0 | BJ28: 0 | BK28: 0 | BL28: 0 | BM28: 0 | BN28: 0 | BO28: 0 | BP28: 0 | BQ28: 0 | BR28: 0 | BS28: 0 | BT28: 0 | BU28: 0 | BV28: 0 | BW28: 0 | BX28: 0 | BY28: 0
A29: Salários, Encargos e Contr. Social | B29: 166 | C29: 3592 | D29: 1468 | E29: 8036 | F29: -3756 | G29: 4280 | H29: 7510 | I29: 3558 | J29: 11068 | K29: 5297 | L29: 16365 | M29: -3734 | N29: 12631 | O29: 4211 | P29: 10396 | Q29: 14607 | R29: 3821 | S29: 18428 | T29: -11328 | U29: 7100 | V29: 11815 | W29: 7858 | X29: 19673 | Y29: 918 | Z29: 20591 | AA29: -19138 | AB29: 1453 | AC29: 7039 | AD29: 16379 | AE29: 23418 | AF29: -4517 | AG29: 18901 | AH29: -13434 | AI29: 5467 | AJ29: 5115 | AK29: 17430 | AL29: 22545 | AM29: -3539 | AN29: 19006 | AO29: -16048 | AP29: 2958 | AQ29: 4760 | AR29: 14255 | AS29: 19015 | AT29: -3412 | AU29: 15603 | AV29: -16742 | AW29: -1139 | AX29: 3618 | AY29: 14740 | AZ29: 18358 | BA29: -1242 | BB29: 17116 | BC29: -19691 | BD29: -2575 | BE29: 7758 | BF29: 35023 | BG29: 42781 | BH29: -7854 | BI29: 34927 | BJ29: -30763 | BK29: 4164 | BL29: -3221 | BM29: 21091 | BN29: 17870 | BO29: 5095 | BP29: 22965 | BQ29: -20855 | BR29: 2110 | BS29: -8200 | BT29: 29794 | BU29: 21594 | BV29: 4411 | BW29: 26005 | BX29: -14062 | BY29: 11943
A30: Tributos a recolher | B30: -1337 | C30: 1142 | D30: -10 | E30: -38 | F30: -402 | G30: -440 | H30: 415 | I30: -199 | J30: 216 | K30: -10 | L30: 206 | M30: 1321 | N30: 1527 | O30: 4558 | P30: -2592 | Q30: 1966 | R30: -2384 | S30: -418 | T30: -999 | U30: -1417 | V30: 4637 | W30: -607 | X30: 4030 | Y30: 478 | Z30: 4508 | AA30: -1940 | AB30: 2568 | AC30: 1796 | AD30: -5863 | AE30: -4067 | AF30: 7542 | AG30: 3475 | AH30: -3734 | AI30: -259 | AJ30: 363 | AK30: -503 | AL30: -140 | AM30: -201 | AN30: -341 | AO30: -3697 | AP30: -4038 | AQ30: -301 | AR30: -491 | AS30: -792 | AT30: -848 | AU30: -1640 | AV30: 445 | AW30: -1195 | AX30: -222 | AY30: -4723 | AZ30: -4945 | BA30: 242 | BB30: -4703 | BC30: 6701 | BD30: 1998 | BE30: -5899 | BF30: 2317 | BG30: -3582 | BH30: -2925 | BI30: -6507 | BJ30: 27406 | BK30: 20899 | BL30: -2640 | BM30: -1481 | BN30: -4121 | BO30: -122 | BP30: -4243 | BQ30: 1774 | BR30: -2469 | BS30: 1266 | BT30: 1004 | BU30: 2270 | BV30: -4028 | BW30: -1758 | BX30: 2127 | BY30: 369
A31: Imposto de Renda e Contribuição Social a Recolher | B31: 0 | C31: 0 | D31: 0 | E31: 0 | F31: 0 | G31: 0 | H31: 0 | I31: 0 | J31: 0 | K31: 0 | L31: 0 | M31: 0 | N31: 0 | O31: 0 | P31: 0 | Q31: 0 | R31: 0 | S31: 0 | T31: 0 | U31: 0 | V31: 0 | W31: 0 | X31: 0 | Y31: 0 | Z31: 0 | AA31: 5377 | AB31: 5377 | AC31: -219 | AD31: -2562 | AE31: -2781 | AF31: 2725 | AG31: -56 | AH31: -403 | AI31: -459 | AJ31: -96 | AK31: 2735 | AL31: 2639 | AM31: 2320 | AN31: 4959 | AO31: -2762 | AP31: 2197 | AQ31: 11 | AR31: 328 | AS31: 339 | AT31: -428 | AU31: -89 | AV31: -1184 | AW31: -1273 | AX31: -416 | AY31: 1117 | AZ31: 701 | BA31: 837 | BB31: 1538 | BC31: 7306 | BD31: 8844 | BE31: 501 | BF31: -4558 | BG31: -4057 | BH31: -793 | BI31: -4850 | BJ31: -25052 | BK31: -29902 | BL31: 0 | BM31: 0 | BN31: 0 | BO31: 0 | BP31: 0 | BQ31: 0 | BR31: 0 | BS31: 0 | BT31: 0 | BU31: 0 | BV31: 0 | BW31: 0 | BX31: 0 | BY31: 0
A32: Outros passivos | B32: -6289 | C32: 7985 | D32: 1910 | E32: -481 | F32: -1329 | G32: -1810 | H32: 430 | I32: -1307 | J32: -877 | K32: 4594 | L32: 3717 | M32: 971 | N32: 4688 | O32: 2438 | P32: -1808 | Q32: 630 | R32: 4232 | S32: 4862 | T32: 680 | U32: 5542 | V32: -5045 | W32: -724 | X32: -5769 | Y32: -2214 | Z32: -7983 | AA32: 13142 | AB32: 5159 | AC32: 105 | AD32: 412 | AE32: 517 | AF32: -2528 | AG32: -2011 | AH32: 4797 | AI32: 2786 | AJ32: 4650 | AK32: -3307 | AL32: 1343 | AM32: -388 | AN32: 955 | AO32: -670 | AP32: 285 | AQ32: 1514 | AR32: -3030 | AS32: -1516 | AT32: 2107 | AU32: 591 | AV32: 2233 | AW32: 2824 | AX32: 3482 | AY32: -1080 | AZ32: 2402 | BA32: 373 | BB32: 2775 | BC32: 1425 | BD32: 4200 | BE32: -1528 | BF32: -1122 | BG32: -2650 | BH32: 248 | BI32: -2402 | BJ32: -1309 | BK32: -3711 | BL32: 7447 | BM32: -6032 | BN32: 1415 | BO32: 6246 | BP32: 7661 | BQ32: -1854 | BR32: 5807 | BS32: 12051 | BT32: -15158 | BU32: -3107 | BV32: 8066 | BW32: 4959 | BX32: -4490 | BY32: 469
A33: Caixa aplicado nas (gerado pelas) operações | B33: 36621 | C33: 68273 | D33: 44452 | E33: 67880 | F33: 15872 | G33: 83752 | H33: 30370 | I33: 52207 | J33: 82577 | K33: 31987 | L33: 114564 | M33: 42869 | N33: 157433 | O33: 59132 | P33: 27590 | Q33: 86722 | R33: 95537 | S33: 182259 | T33: 43962 | U33: 226221 | V33: 25185 | W33: 29924 | X33: 55109 | Y33: 92415 | Z33: 147524 | AA33: 937 | AB33: 148461 | AC33: 2466 | AD33: 105173 | AE33: 107639 | AF33: 174494 | AG33: 282133 | AH33: 106787 | AI33: 388920 | AJ33: 47424 | AK33: 123513 | AL33: 170937 | AM33: 143725 | AN33: 314662 | AO33: 112301 | AP33: 426963 | AQ33: 21761 | AR33: 75074 | AS33: 96835 | AT33: 233660 | AU33: 330495 | AV33: 105277 | AW33: 435772 | AX33: 32466 | AY33: 30214 | AZ33: 62680 | BA33: 151788 | BB33: 214468 | BC33: 72385 | BD33: 286853 | BE33: 32869 | BF33: 101018 | BG33: 133887 | BH33: 83635 | BI33: 217522 | BJ33: 177729 | BK33: 395251 | BL33: 90954 | BM33: 82661 | BN33: 173615 | BO33: 107630 | BP33: 281245 | BQ33: 45089 | BR33: 326334 | BS33: 84307 | BT33: 75435 | BU33: 159742 | BV33: 69625 | BW33: 229367 | BX33: 53523 | BY33: 282890
A34: Outros | B34: -12194 | C34: -10049 | D34: -10874 | E34: -4662 | F34: -7679 | G34: -12341 | H34: -2966 | I34: -2350 | J34: -5316 | K34: -2054 | L34: -7370 | M34: -19129 | N34: -26499 | O34: -10372 | P34: -13336 | Q34: -23708 | R34: -14595 | S34: -38303 | T34: -10878 | U34: -49181 | V34: -15631 | W34: -18897 | X34: -34528 | Y34: -28400 | Z34: -62928 | AA34: -8473 | AB34: -71401 | AC34: -23745 | AD34: -27064 | AE34: -50809 | AF34: -26156 | AG34: -76965 | AH34: -24185 | AI34: -101150 | AJ34: -33206 | AK34: -30430 | AL34: -63636 | AM34: -598 | AN34: -64234 | AO34: -6131 | AP34: -70365 | AQ34: -9761 | AR34: -14044 | AS34: -23805 | AT34: -10058 | AU34: -33863 | AV34: -13179 | AW34: -47042 | AX34: -15876 | AY34: -27592 | AZ34: -43468 | BA34: -33192 | BB34: -76660 | BC34: -21753 | BD34: -98413 | BE34: -39555 | BF34: -21626 | BG34: -61181 | BH34: -25463 | BI34: -86644 | BJ34: -35355 | BK34: -121999 | BL34: -52412 | BM34: -21432 | BN34: -73844 | BO34: -25312 | BP34: -99156 | BQ34: -31463 | BR34: -130619 | BS34: -30681 | BT34: -37836 | BU34: -68517 | BV34: -42281 | BW34: -110798 | BX34: -25325 | BY34: -136123
A35: Juros pagos de empréstimos e arrendamentos | B35: -11734 | C35: -8947 | D35: -9142 | E35: -3962 | F35: -5648 | G35: -9610 | H35: -1956 | I35: -2005 | J35: -3961 | K35: -1223 | L35: -5184 | M35: -16684 | N35: -21868 | O35: -6996 | P35: -8413 | Q35: -15409 | R35: -11249 | S35: -26658 | T35: -7291 | U35: -33949 | V35: -12170 | W35: -16452 | X35: -28622 | Y35: -25648 | Z35: -54270 | AA35: -8096 | AB35: -62366 | AC35: -22519 | AD35: -23696 | AE35: -46215 | AF35: -22274 | AG35: -68489 | AH35: -21820 | AI35: -90309 | AJ35: -31566 | AK35: -29093 | AL35: -60659 | AM35: 1061 | AN35: -59598 | AO35: -4130 | AP35: -63728 | AQ35: -8322 | AR35: -12580 | AS35: -20902 | AT35: -8232 | AU35: -29134 | AV35: -11849 | AW35: -40983 | AX35: -13507 | AY35: -24689 | AZ35: -38196 | BA35: -30691 | BB35: -68887 | BC35: -20144 | BD35: -89031 | BE35: -37385 | BF35: -20328 | BG35: -57713 | BH35: -21317 | BI35: -79030 | BJ35: -28346 | BK35: -107376 | BL35: -19729 | BM35: -20168 | BN35: -39897 | BO35: -24833 | BP35: -64730 | BQ35: -28614 | BR35: -93344 | BS35: -29007 | BT35: -33343 | BU35: -62350 | BV35: -41001 | BW35: -103351 | BX35: -22802 | BY35: -126153
A36: Juros pagos sobre aquisição de controladas | B36: 0 | C36: 0 | D36: 0 | E36: 0 | F36: 0 | G36: 0 | H36: 0 | I36: 0 | J36: 0 | K36: 0 | L36: 0 | M36: 0 | N36: 0 | O36: 0 | P36: 0 | Q36: 0 | R36: 0 | S36: 0 | T36: 0 | U36: 0 | V36: 0 | W36: 0 | X36: 0 | Y36: 0 | Z36: 0 | AA36: 0 | AB36: 0 | AC36: 0 | AD36: 0 | AE36: 0 | AF36: 0 | AG36: 0 | AH36: 0 | AI36: 0 | AJ36: 0 | AK36: 0 | AL36: 0 | AM36: 0 | AN36: 0 | AO36: 0 | AP36: 0 | AQ36: 0 | AR36: 0 | AS36: 0 | AT36: 0 | AU36: 0 | AV36: 0 | AW36: 0 | AX36: 0 | AY36: 0 | AZ36: 0 | BA36: 0 | BB36: 0 | BC36: 0 | BD36: 0 | BE36: 0 | BF36: 0 | BG36: 0 | BH36: 0 | BI36: 0 | BJ36: 0 | BK36: 0 | BL36: 0 | BM36: 0 | BN36: 0 | BO36: 0 | BP36: 0 | BQ36: 0 | BR36: 0 | BS36: 0 | BT36: -3101 | BU36: -3101 | BV36: -78 | BW36: -3179 | BX36: -1219 | BY36: -4398
A37: Imposto de Renda e Contribuição Social Pagos | B37: -460 | C37: -1102 | D37: -1732 | E37: -700 | F37: -2031 | G37: -2731 | H37: -1010 | I37: -345 | J37: -1355 | K37: -831 | L37: -2186 | M37: -2445 | N37: -4631 | O37: -3376 | P37: -4923 | Q37: -8299 | R37: -3346 | S37: -11645 | T37: -3587 | U37: -15232 | V37: -3461 | W37: -2445 | X37: -5906 | Y37: -2752 | Z37: -8658 | AA37: -377 | AB37: -9035 | AC37: -1226 | AD37: -3368 | AE37: -4594 | AF37: -3882 | AG37: -8476 | AH37: -2365 | AI37: -10841 | AJ37: -1640 | AK37: -1337 | AL37: -2977 | AM37: -1659 | AN37: -4636 | AO37: -2001 | AP37: -6637 | AQ37: -1439 | AR37: -1464 | AS37: -2903 | AT37: -1826 | AU37: -4729 | AV37: -1330 | AW37: -6059 | AX37: -2369 | AY37: -2903 | AZ37: -5272 | BA37: -2501 | BB37: -7773 | BC37: -1609 | BD37: -9382 | BE37: -2170 | BF37: -1298 | BG37: -3468 | BH37: -4146 | BI37: -7614 | BJ37: -7009 | BK37: -14623 | BL37: -32683 | BM37: -1264 | BN37: -33947 | BO37: -479 | BP37: -34426 | BQ37: -2849 | BR37: -37275 | BS37: -1674 | BT37: -1392 | BU37: -3066 | BV37: -1202 | BW37: -4268 | BX37: -1304 | BY37: -5572
A38: Caixa Líquido Atividades Operacionais | B38: 24427 | C38: 58224 | D38: 33578 | E38: 63218 | F38: 8193 | G38: 71411 | H38: 27404 | I38: 49857 | J38: 77261 | K38: 29933 | L38: 107194 | M38: 23740 | N38: 130934 | O38: 48760 | P38: 14254 | Q38: 63014 | R38: 80942 | S38: 143956 | T38: 33084 | U38: 177040 | V38: 9554 | W38: 11027 | X38: 20581 | Y38: 64015 | Z38: 84596 | AA38: -7536 | AB38: 77060 | AC38: -21279 | AD38: 78109 | AE38: 56830 | AF38: 148338 | AG38: 205168 | AH38: 82602 | AI38: 287770 | AJ38: 14218 | AK38: 93083 | AL38: 107301 | AM38: 143127 | AN38: 250428 | AO38: 106170 | AP38: 356598 | AQ38: 12000 | AR38: 61030 | AS38: 73030 | AT38: 223602 | AU38: 296632 | AV38: 92098 | AW38: 388730 | AX38: 16590 | AY38: 2622 | AZ38: 19212 | BA38: 118596 | BB38: 137808 | BC38: 50632 | BD38: 188440 | BE38: -6686 | BF38: 79392 | BG38: 72706 | BH38: 58172 | BI38: 130878 | BJ38: 142374 | BK38: 273252 | BL38: 38542 | BM38: 61229 | BN38: 99771 | BO38: 82318 | BP38: 182089 | BQ38: 13626 | BR38: 195715 | BS38: 53626 | BT38: 37599 | BU38: 91225 | BV38: 27344 | BW38: 118569 | BX38: 28198 | BY38: 146767
A40: Caixa Líquido Atividades de Investimento | B40: -24950 | C40: -63304 | D40: -58891 | E40: -63423 | F40: -9536 | G40: -72959 | H40: -21675 | I40: -23060 | J40: -44735 | K40: -38903 | L40: -83638 | M40: -120195 | N40: -203833 | O40: -44039 | P40: -33056 | Q40: -77095 | R40: -184011 | S40: -261106 | T40: -13569 | U40: -274675 | V40: -37056 | W40: -12095 | X40: -49151 | Y40: -268067 | Z40: -317218 | AA40: -2621 | AB40: -319839 | AC40: 12761 | AD40: -32649 | AE40: -19888 | AF40: -108156 | AG40: -128044 | AH40: -106139 | AI40: -234183 | AJ40: -18800 | AK40: -17928 | AL40: -36728 | AM40: -12770 | AN40: -49498 | AO40: -394296 | AP40: -443794 | AQ40: 11679 | AR40: 2053 | AS40: 13732 | AT40: -107243 | AU40: -93511 | AV40: -14879 | AW40: -108390 | AX40: 191039 | AY40: 102215 | AZ40: 293254 | BA40: -5848 | BB40: 287406 | BC40: -101235 | BD40: 186171 | BE40: -2756 | BF40: -20233 | BG40: -22989 | BH40: -16850 | BI40: -39839 | BJ40: -123291 | BK40: -163130 | BL40: -116049 | BM40: -120276 | BN40: -236325 | BO40: -57969 | BP40: -294294 | BQ40: -104568 | BR40: -398862 | BS40: -320135 | BT40: -19152 | BU40: -339287 | BV40: -50841 | BW40: -390128 | BX40: -32135 | BY40: -422263
A41: Títulos e valores mobiliários | B41: 0 | C41: 0 | D41: -9175 | E41: 0 | F41: 9175 | G41: 9175 | H41: 0 | I41: 0 | J41: 0 | K41: 0 | L41: 0 | M41: -84291 | N41: -84291 | O41: -2066 | P41: -2242 | Q41: -4308 | R41: -118697 | S41: -123005 | T41: 143898 | U41: 20893 | V41: 63418 | W41: 0 | X41: 63418 | Y41: -256897 | Z41: -193479 | AA41: 43762 | AB41: -149717 | AC41: 44478 | AD41: -14380 | AE41: 30098 | AF41: -88103 | AG41: -58005 | AH41: -66407 | AI41: -124412 | AJ41: 51881 | AK41: 13070 | AL41: 64951 | AM41: 13158 | AN41: 78109 | AO41: -372989 | AP41: -294880 | AQ41: 75914 | AR41: 23533 | AS41: 99447 | AT41: -85159 | AU41: 14288 | AV41: 11972 | AW41: 26260 | AX41: 246707 | AY41: 116475 | AZ41: 363182 | BA41: 14229 | BB41: 377411 | BC41: 137466 | BD41: 514877 | BE41: 79934 | BF41: 10732 | BG41: 90666 | BH41: -30 | BI41: 90636 | BJ41: -522 | BK41: 90114 | BL41: -35819 | BM41: 35819 | BN41: 0 | BO41: 0 | BP41: 0 | BQ41: 0 | BR41: 0 | BS41: 0 | BT41: 0 | BU41: 0 | BV41: 0 | BW41: 0 | BX41: 0 | BY41: 0
A42: Aplicações de títulos e valores mobiliários | B42: 0 | C42: 0 | D42: 0 | E42: 0 | F42: 0 | G42: 0 | H42: 0 | I42: 0 | J42: 0 | K42: 0 | L42: 0 | M42: 0 | N42: 0 | O42: 0 | P42: 0 | Q42: 0 | R42: 0 | S42: 0 | T42: 0 | U42: 0 | V42: 0 | W42: 0 | X42: 0 | Y42: 0 | Z42: 0 | AA42: 0 | AB42: 0 | AC42: 0 | AD42: 0 | AE42: 0 | AF42: 0 | AG42: 0 | AH42: 0 | AI42: 0 | AJ42: 0 | AK42: 0 | AL42: 0 | AM42: 0 | AN42: 0 | AO42: 0 | AP42: 0 | AQ42: 0 | AR42: 0 | AS42: 0 | AT42: 0 | AU42: 0 | AV42: 0 | AW42: 0 | AX42: 0 | AY42: 0 | AZ42: 0 | BA42: 0 | BB42: 0 | BC42: 0 | BD42: 0 | BE42: 0 | BF42: 0 | BG42: 0 | BH42: 0 | BI42: 0 | BJ42: 0 | BK42: 0 | BL42: 0 | BM42: -150081 | BN42: -150081 | BO42: -50086 | BP42: -200167 | BQ42: -203552 | BR42: -403719 | BS42: -566536 | BT42: -102767 | BU42: -669303 | BV42: -93855 | BW42: -763158 | BX42: -120711 | BY42: -883869
A43: Resgate de títulos e valores mobiliários | B43: 0 | C43: 0 | D43: 0 | E43: 0 | F43: 0 | G43: 0 | H43: 0 | I43: 0 | J43: 0 | K43: 0 | L43: 0 | M43: 0 | N43: 0 | O43: 0 | P43: 0 | Q43: 0 | R43: 0 | S43: 0 | T43: 0 | U43: 0 | V43: 0 | W43: 0 | X43: 0 | Y43: 0 | Z43: 0 | AA43: 0 | AB43: 0 | AC43: 0 | AD43: 0 | AE43: 0 | AF43: 0 | AG43: 0 | AH43: 0 | AI43: 0 | AJ43: 0 | AK43: 0 | AL43: 0 | AM43: 0 | AN43: 0 | AO43: 0 | AP43: 0 | AQ43: 0 | AR43: 0 | AS43: 0 | AT43: 0 | AU43: 0 | AV43: 0 | AW43: 0 | AX43: 0 | AY43: 0 | AZ43: 0 | BA43: 0 | BB43: 0 | BC43: 0 | BD43: 0 | BE43: 0 | BF43: 0 | BG43: 0 | BH43: 0 | BI43: 0 | BJ43: 0 | BK43: 0 | BL43: 0 | BM43: 136363 | BN43: 136363 | BO43: 48296 | BP43: 184659 | BQ43: 143802 | BR43: 328461 | BS43: 502310 | BT43: 130276 | BU43: 632586 | BV43: 79792 | BW43: 712378 | BX43: 146367 | BY43: 858745
A44: Adições de Investimentos | B44: 0 | C44: 0 | D44: 0 | E44: 0 | F44: 0 | G44: 0 | H44: 0 | I44: 0 | J44: 0 | K44: 0 | L44: 0 | M44: 0 | N44: 0 | O44: 0 | P44: 0 | Q44: 0 | R44: 0 | S44: 0 | T44: 0 | U44: 0 | V44: 0 | W44: 0 | X44: 0 | Y44: 0 | Z44: 0 | AA44: -18840 | AB44: -18840 | AC44: 0 | AD44: 0 | AE44: 0 | AF44: 0 | AG44: 0 | AH44: 0 | AI44: 0 | AJ44: 0 | AK44: 0 | AL44: 0 | AM44: 0 | AN44: 0 | AO44: 0 | AP44: 0 | AQ44: 0 | AR44: 0 | AS44: 0 | AT44: 0 | AU44: 0 | AV44: 0 | AW44: 0 | AX44: 0 | AY44: 0 | AZ44: 0 | BA44: 0 | BB44: 0 | BC44: 0 | BD44: 0 | BE44: 0 | BF44: 0 | BG44: 0 | BH44: 0 | BI44: 0 | BJ44: 0 | BK44: 0 | BL44: 0 | BM44: 0 | BN44: 0 | BO44: 0 | BP44: 0 | BQ44: 0 | BR44: 0 | BS44: 0 | BT44: 0 | BU44: 0 | BV44: 0 | BW44: 0 | BX44: 0 | BY44: 0
A45: Adições ao imobilizado | B45: -23953 | C45: -60758 | D45: -47010 | E45: -59594 | F45: -18203 | G45: -77797 | H45: -12954 | I45: -21419 | J45: -34373 | K45: -30680 | L45: -65053 | M45: -30475 | N45: -95528 | O45: -31969 | P45: -28028 | Q45: -59997 | R45: -29391 | S45: -89388 | T45: -61412 | U45: -150800 | V45: -35584 | W45: -6252 | X45: -41836 | Y45: -6266 | Z45: -48102 | AA45: -23940 | AB45: -72042 | AC45: -14297 | AD45: -12895 | AE45: -27192 | AF45: -13733 | AG45: -40925 | AH45: -23626 | AI45: -64551 | AJ45: -29301 | AK45: -25994 | AL45: -55295 | AM45: -23247 | AN45: -78542 | AO45: -19493 | AP45: -98035 | AQ45: -23777 | AR45: -19433 | AS45: -43210 | AT45: -19293 | AU45: -62503 | AV45: -20893 | AW45: -83396 | AX45: -13658 | AY45: -11788 | AZ45: -25446 | BA45: -11275 | BB45: -36721 | BC45: -10584 | BD45: -47305 | BE45: -10425 | BF45: -3836 | BG45: -14261 | BH45: -4963 | BI45: -19224 | BJ45: -5535 | BK45: -24759 | BL45: -6238 | BM45: -12534 | BN45: -18772 | BO45: -18181 | BP45: -36953 | BQ45: -16897 | BR45: -53850 | BS45: -9370 | BT45: -19656 | BU45: -29026 | BV45: -23010 | BW45: -52036 | BX45: -18520 | BY45: -70556
A46: Adições ao intangível | B46: -997 | C46: -2546 | D46: -2706 | E46: -1705 | F46: -508 | G46: -2213 | H46: -1451 | I46: -1696 | J46: -3147 | K46: -2698 | L46: -5845 | M46: -1092 | N46: -6937 | O46: -2975 | P46: -1602 | Q46: -4577 | R46: -3128 | S46: -7705 | T46: -2769 | U46: -10474 | V46: -2519 | W46: -5843 | X46: -8362 | Y46: -4904 | Z46: -13266 | AA46: -13705 | AB46: -26971 | AC46: -1805 | AD46: -5104 | AE46: -6909 | AF46: -5354 | AG46: -12263 | AH46: -4289 | AI46: -16552 | AJ46: -3901 | AK46: -3934 | AL46: -7835 | AM46: -2680 | AN46: -10515 | AO46: -1816 | AP46: -12331 | AQ46: -3134 | AR46: -2047 | AS46: -5181 | AT46: -2791 | AU46: -7972 | AV46: -5958 | AW46: -13930 | AX46: -1997 | AY46: -2472 | AZ46: -4469 | BA46: -7433 | BB46: -11902 | BC46: -6028 | BD46: -17930 | BE46: -3305 | BF46: -7040 | BG46: -10345 | BH46: -9911 | BI46: -20256 | BJ46: -5830 | BK46: -26086 | BL46: -3992 | BM46: -5802 | BN46: -9794 | BO46: -4871 | BP46: -14665 | BQ46: -3431 | BR46: -18096 | BS46: -6313 | BT46: -7338 | BU46: -13651 | BV46: -13048 | BW46: -26699 | BX46: -11371 | BY46: -38070
A47: Caixa líquido oriundo da combinação de negócios | B47: 0 | C47: 0 | D47: 0 | E47: 0 | F47: 0 | G47: 0 | H47: 0 | I47: 0 | J47: 0 | K47: 0 | L47: 0 | M47: 0 | N47: 0 | O47: 0 | P47: 0 | Q47: 0 | R47: 0 | S47: 0 | T47: 0 | U47: 0 | V47: 0 | W47: 0 | X47: 0 | Y47: 0 | Z47: 0 | AA47: 0 | AB47: 0 | AC47: 0 | AD47: 0 | AE47: 0 | AF47: 0 | AG47: 0 | AH47: 0 | AI47: 0 | AJ47: 0 | AK47: 0 | AL47: 0 | AM47: 0 | AN47: 0 | AO47: 0 | AP47: 0 | AQ47: 0 | AR47: 0 | AS47: 0 | AT47: 0 | AU47: 0 | AV47: 0 | AW47: 0 | AX47: 0 | AY47: 0 | AZ47: 0 | BA47: 0 | BB47: 0 | BC47: 0 | BD47: 0 | BE47: 0 | BF47: 0 | BG47: 0 | BH47: 0 | BI47: 0 | BJ47: 2591 | BK47: 2591 | BL47: 0 | BM47: 5959 | BN47: 5959 | BO47: 1897 | BP47: 7856 | BQ47: 215 | BR47: 8071 | BS47: 6697 | BT47: 0 | BU47: 6697 | BV47: 0 | BW47: 6697 | BX47: 0 | BY47: 6697
A48: Pagamento de aquisição de controladas | B48: 0 | C48: 0 | D48: 0 | E48: 0 | F48: 0 | G48: 0 | H48: 0 | I48: 0 | J48: 0 | K48: 0 | L48: 0 | M48: 0 | N48: 0 | O48: 0 | P48: 0 | Q48: 0 | R48: 0 | S48: 0 | T48: 0 | U48: 0 | V48: 0 | W48: 0 | X48: 0 | Y48: 0 | Z48: 0 | AA48: 0 | AB48: 0 | AC48: -15615 | AD48: -270 | AE48: -15885 | AF48: -966 | AG48: -16851 | AH48: -11817 | AI48: -28668 | AJ48: -37479 | AK48: -1070 | AL48: -38549 | AM48: -1 | AN48: -38550 | AO48: 2 | AP48: -38548 | AQ48: -37324 | AR48: 37324 | AS48: 0 | AT48: 0 | AU48: 0 | AV48: 0 | AW48: 0 | AX48: 0 | AY48: -40013 | AZ48: -40013 | BA48: -1369 | BB48: -41382 | BC48: -222089 | BD48: -263471 | BE48: -68960 | BF48: -20089 | BG48: -89049 | BH48: -1946 | BI48: -90995 | BJ48: -113995 | BK48: -204990 | BL48: -70000 | BM48: -130000 | BN48: -200000 | BO48: -35024 | BP48: -235024 | BQ48: -24705 | BR48: -259729 | BS48: -246923 | BT48: -19667 | BU48: -266590 | BV48: -720 | BW48: -267310 | BX48: -27900 | BY48: -295210
A49: Aquisição de Controladas | B49: 0 | C49: 0 | D49: 0 | E49: -2124 | F49: 0 | G49: -2124 | H49: -7270 | I49: 55 | J49: -7215 | K49: -5525 | L49: -12740 | M49: -4337 | N49: -17077 | O49: -7029 | P49: -1184 | Q49: -8213 | R49: -32795 | S49: -41008 | T49: -93286 | U49: -134294 | V49: -62371 | W49: 0 | X49: -62371 | Y49: 0 | Z49: -62371 | AA49: 10102 | AB49: -52269 | AC49: 0 | AD49: 0 | AE49: 0 | AF49: 0 | AG49: 0 | AH49: 0 | AI49: 0 | AJ49: 0 | AK49: 0 | AL49: 0 | AM49: 0 | AN49: 0 | AO49: 0 | AP49: 0 | AQ49: 0 | AR49: -37324 | AS49: -37324 | AT49: 0 | AU49: -37324 | AV49: 0 | AW49: -37324 | AX49: -40013 | AY49: 40013 | AZ49: 0 | BA49: 0 | BB49: 0 | BC49: 0 | BD49: 0 | BE49: 0 | BF49: 0 | BG49: 0 | BH49: 0 | BI49: 0 | BJ49: 0 | BK49: 0 | BL49: 0 | BM49: 0 | BN49: 0 | BO49: 0 | BP49: 0 | BQ49: 0 | BR49: 0 | BS49: 0 | BT49: 0 | BU49: 0 | BV49: 0 | BW49: 0 | BX49: 0 | BY49: 0
A50: Caixa Líquido Atividades de Financiamento | B50: -5302 | C50: -10002 | D50: 26297 | E50: -10542 | F50: 25885 | G50: 15343 | H50: -3078 | I50: 14846 | J50: 11768 | K50: -32619 | L50: -20851 | M50: 293828 | N50: 272977 | O50: -377 | P50: -6983 | Q50: -7360 | R50: -22483 | S50: -29843 | T50: -16534 | U50: -46377 | V50: -35 | W50: -10515 | X50: -10550 | Y50: 252748 | Z50: 242198 | AA50: -2668 | AB50: 239530 | AC50: -4508 | AD50: -36668 | AE50: -41176 | AF50: -5205 | AG50: -46381 | AH50: -15169 | AI50: -61550 | AJ50: -6330 | AK50: -57560 | AL50: -63890 | AM50: -32688 | AN50: -96578 | AO50: 401024 | AP50: 304446 | AQ50: -2736 | AR50: -81321 | AS50: -84057 | AT50: -40167 | AU50: -124224 | AV50: -120671 | AW50: -244895 | AX50: -5371 | AY50: -308001 | AZ50: -313372 | BA50: -149723 | BB50: -463095 | BC50: -11074 | BD50: -474169 | BE50: -34797 | BF50: 469444 | BG50: 434647 | BH50: -36847 | BI50: 397800 | BJ50: -43162 | BK50: 354638 | BL50: -50435 | BM50: -35433 | BN50: -85868 | BO50: -91492 | BP50: -177360 | BQ50: -85445 | BR50: -262805 | BS50: 164262 | BT50: -41560 | BU50: 122702 | BV50: 162444 | BW50: 283906 | BX50: -42590 | BY50: 242556
A51: Caixa liquido gerado pela emissão de ações | B51: 0 | C51: 0 | D51: 0 | E51: 0 | F51: 0 | G51: 0 | H51: 0 | I51: 0 | J51: 0 | K51: 0 | L51: 0 | M51: 0 | N51: 0 | O51: 0 | P51: 0 | Q51: 0 | R51: 0 | S51: 0 | T51: 0 | U51: 0 | V51: 0 | W51: 0 | X51: 0 | Y51: 0 | Z51: 0 | AA51: 0 | AB51: 0 | AC51: 0 | AD51: 0 | AE51: 0 | AF51: 0 | AG51: 0 | AH51: 0 | AI51: 0 | AJ51: 0 | AK51: 0 | AL51: 0 | AM51: 0 | AN51: 0 | AO51: 387549 | AP51: 387549 | AQ51: 0 | AR51: 0 | AS51: 0 | AT51: 0 | AU51: 0 | AV51: 0 | AW51: 0 | AX51: 0 | AY51: 0 | AZ51: 0 | BA51: 0 | BB51: 0 | BC51: 3474 | BD51: 3474 | BE51: 0 | BF51: 0 | BG51: 0 | BH51: 0 | BI51: 0 | BJ51: 0 | BK51: 0 | BL51: 480 | BM51: -480 | BN51: 0 | BO51: 0 | BP51: 0 | BQ51: 0 | BR51: 0 | BS51: 0 | BT51: 0 | BU51: 0 | BV51: 0 | BW51: 0 | BX51: 0 | BY51: 0
A52: Captação de Debêntures | B52: 0 | C52: 0 | D52: 0 | E52: 0 | F52: 0 | G52: 0 | H52: 0 | I52: 0 | J52: 0 | K52: 0 | L52: 0 | M52: 0 | N52: 0 | O52: 0 | P52: 0 | Q52: 0 | R52: 0 | S52: 0 | T52: 0 | U52: 0 | V52: 0 | W52: 0 | X52: 0 | Y52: 148375 | Z52: 148375 | AA52: -726 | AB52: 147649 | AC52: 0 | AD52: 0 | AE52: 0 | AF52: 0 | AG52: 0 | AH52: 0 | AI52: 0 | AJ52: 0 | AK52: 0 | AL52: 0 | AM52: 0 | AN52: 0 | AO52: 196335 | AP52: 196335 | AQ52: 0 | AR52: 0 | AS52: 0 | AT52: 0 | AU52: 0 | AV52: 0 | AW52: 0 | AX52: 0 | AY52: 0 | AZ52: 0 | BA52: 0 | BB52: 0 | BC52: 0 | BD52: 0 | BE52: 0 | BF52: 0 | BG52: 0 | BH52: 0 | BI52: 0 | BJ52: 0 | BK52: 0 | BL52: 0 | BM52: 0 | BN52: 0 | BO52: 0 | BP52: 0 | BQ52: 0 | BR52: 0 | BS52: 0 | BT52: 0 | BU52: 0 | BV52: 200000 | BW52: 200000 | BX52: -1240 | BY52: 198760
A53: Custo de Transação | BW53: -1240 | BY53: 0
A54: Captação de empréstimos e financiamentos | B54: 0 | C54: 6234 | D54: 35061 | E54: 168 | F54: 25007 | G54: 25175 | H54: 0 | I54: 54380 | J54: 54380 | K54: 0 | L54: 54380 | M54: 289 | N54: 54669 | O54: 0 | P54: 0 | Q54: 0 | R54: 0 | S54: 0 | T54: 0 | U54: 0 | V54: 18674 | W54: -298 | X54: 18376 | Y54: 123055 | Z54: 141431 | AA54: -4218 | AB54: 137213 | AC54: 0 | AD54: 0 | AE54: 0 | AF54: 0 | AG54: 0 | AH54: 0 | AI54: 0 | AJ54: 0 | AK54: 0 | AL54: 0 | AM54: 0 | AN54: 0 | AO54: 0 | AP54: 0 | AQ54: 0 | AR54: 0 | AS54: 0 | AT54: 0 | AU54: 0 | AV54: 0 | AW54: 0 | AX54: 0 | AY54: 0 | AZ54: 0 | BA54: 0 | BB54: 0 | BC54: 0 | BD54: 0 | BE54: 0 | BF54: 499299 | BG54: 499299 | BH54: 0 | BI54: 499299 | BJ54: 0 | BK54: 499299 | BL54: 0 | BM54: 0 | BN54: 0 | BO54: 0 | BP54: 0 | BQ54: 0 | BR54: 0 | BS54: 231000 | BT54: 0 | BU54: 231000 | BV54: 50000 | BW54: 281000 | BX54: 0 | BY54: 281000
A55: Amortização de debêntures | B55: 0 | C55: 0 | D55: 0 | E55: 0 | F55: 0 | G55: 0 | H55: 0 | I55: 0 | J55: 0 | K55: 0 | L55: 0 | M55: 0 | N55: 0 | O55: 0 | P55: 0 | Q55: 0 | R55: 0 | S55: 0 | T55: 0 | U55: 0 | V55: 0 | W55: 0 | X55: 0 | Y55: 0 | Z55: 0 | AA55: 0 | AB55: 0 | AC55: 0 | AD55: 0 | AE55: 0 | AF55: 0 | AG55: 0 | AH55: 0 | AI55: 0 | AJ55: 0 | AK55: 0 | AL55: 0 | AM55: -28560 | AN55: -28560 | AO55: -124950 | AP55: -153510 | AQ55: 0 | AR55: 0 | AS55: 0 | AT55: 0 | AU55: 0 | AV55: 0 | AW55: 0 | AX55: 0 | AY55: 0 | AZ55: 0 | BA55: -100000 | BB55: -100000 | BC55: 0 | BD55: -100000 | BE55: -25000 | BF55: 0 | BG55: -25000 | BH55: -25000 | BI55: -50000 | BJ55: 0 | BK55: -50000 | BL55: -25000 | BM55: 0 | BN55: -25000 | BO55: -25000 | BP55: -50000 | BQ55: 0 | BR55: -50000 | BS55: 0 | BT55: 0 | BU55: 0 | BV55: 0 | BW55: 0 | BX55: 0 | BY55: 0
A56: Amortização de empréstimos e financiamentos | B56: -1863 | C56: -3012 | D56: -2679 | E56: -2214 | F56: 706 | G56: -1508 | H56: -2831 | I56: -32846 | J56: -35677 | K56: -2594 | L56: -38271 | M56: -1294 | N56: -39565 | O56: -2188 | P56: -2217 | Q56: -4405 | R56: -1252 | S56: -5657 | T56: -3158 | U56: -8815 | V56: -1779 | W56: -5340 | X56: -7119 | Y56: -15483 | Z56: -22602 | AA56: -51 | AB56: -22653 | AC56: -3387 | AD56: -12396 | AE56: -15783 | AF56: -4018 | AG56: -19801 | AH56: -13942 | AI56: -33743 | AJ56: -5067 | AK56: -22022 | AL56: -27089 | AM56: -2785 | AN56: -29874 | AO56: -56525 | AP56: -86399 | AQ56: -1309 | AR56: -11795 | AS56: -13104 | AT56: -869 | AU56: -13973 | AV56: -11657 | AW56: -25630 | AX56: -654 | AY56: -11564 | AZ56: -12218 | BA56: -645 | BB56: -12863 | BC56: -11384 | BD56: -24247 | BE56: -631 | BF56: -11531 | BG56: -12162 | BH56: -678 | BI56: -12840 | BJ56: -11576 | BK56: -24416 | BL56: -657 | BM56: -11578 | BN56: -12235 | BO56: -53951 | BP56: -66186 | BQ56: -56497 | BR56: -122683 | BS56: -53537 | BT56: -23854 | BU56: -77391 | BV56: -64917 | BW56: -142308 | BX56: -15267 | BY56: -157575
A57: Amortização de arrendamentos mercantis | B57: -140 | C57: -759 | D57: -754 | E57: -725 | F57: -271 | G57: -996 | H57: -255 | I57: -278 | J57: -533 | K57: -2392 | L57: -2925 | M57: 2066 | N57: -859 | O57: -459 | P57: -707 | Q57: -1166 | R57: -729 | S57: -1895 | T57: -6433 | U57: -8328 | V57: -3199 | W57: -3046 | X57: -6245 | Y57: -3199 | Z57: -9444 | AA57: 5411 | AB57: -4033 | AC57: -1121 | AD57: -1155 | AE57: -2276 | AF57: -1187 | AG57: -3463 | AH57: -1227 | AI57: -4690 | AJ57: -1263 | AK57: -1304 | AL57: -2567 | AM57: -1343 | AN57: -3910 | AO57: -1385 | AP57: -5295 | AQ57: -1427 | AR57: -1472 | AS57: -2899 | AT57: -1517 | AU57: -4416 | AV57: -1565 | AW57: -5981 | AX57: -4717 | AY57: -9757 | AZ57: -14474 | BA57: -16275 | BB57: -30749 | BC57: -3164 | BD57: -33913 | BE57: -9654 | BF57: -12749 | BG57: -22403 | BH57: -11657 | BI57: -34060 | BJ57: -11737 | BK57: -45797 | BL57: -12226 | BM57: -12666 | BN57: -24892 | BO57: -13029 | BP57: -37921 | BQ57: -13543 | BR57: -51464 | BS57: -13690 | BT57: -15796 | BU57: -29486 | BV57: -23127 | BW57: -52613 | BX57: -25571 | BY57: -78184
A58: Partes relacionadas | B58: -3299 | C58: 7168 | D58: - | E58: -441 | F58: 439 | G58: -2 | H58: 8 | I58: 163 | J58: 171 | K58: -171 | L58: 0 | M58: -2271 | N58: -2271 | O58: 2270 | P58: 0 | Q58: 2270 | R58: -2270 | S58: 0 | T58: 0 | U58: 0 | V58: -95 | W58: 95 | X58: 0 | Y58: 0 | Z58: 0 | AA58: 0 | AB58: 0 | AC58: 0 | AD58: 0 | AE58: 0 | AF58: 0 | AG58: 0 | AH58: 0 | AI58: 0 | AJ58: 0 | AK58: 0 | AL58: 0 | AM58: 0 | AN58: 0 | AO58: 0 | AP58: 0 | AQ58: 0 | AR58: 0 | AS58: 0 | AT58: 0 | AU58: 0 | AV58: 0 | AW58: 0 | AX58: 0 | AY58: 0 | AZ58: 0 | BA58: 0 | BB58: 0 | BC58: 0 | BD58: 0 | BE58: 488 | BF58: 488 | BG58: 976 | BH58: 488 | BI58: 1464 | BJ58: 523 | BK58: 1987 | BL58: 488 | BM58: 488 | BN58: 976 | BO58: 488 | BP58: 1464 | BQ58: 488 | BR58: 1952 | BS58: 489 | BT58: 488 | BU58: 977 | BV58: 488 | BW58: 1465 | BX58: 488 | BY58: 1953
A59: Ações em Tesouraria | B59: 0 | C59: 0 | D59: 0 | E59: 0 | F59: 0 | G59: 0 | H59: 0 | I59: 0 | J59: 0 | K59: 0 | L59: 0 | M59: 0 | N59: 0 | O59: 0 | P59: 0 | Q59: 0 | R59: 0 | S59: 0 | T59: 0 | U59: 0 | V59: -6217 | W59: 0 | X59: -6217 | Y59: 0 | Z59: -6217 | AA59: -237 | AB59: -6454 | AC59: 0 | AD59: 0 | AE59: 0 | AF59: 0 | AG59: 0 | AH59: 0 | AI59: 0 | AJ59: 0 | AK59: 0 | AL59: 0 | AM59: 0 | AN59: 0 | AO59: 0 | AP59: 0 | AQ59: 0 | AR59: -30207 | AS59: -30207 | AT59: -17096 | AU59: -47303 | AV59: -107449 | AW59: -154752 | AX59: 0 | AY59: 0 | AZ59: 0 | BA59: 0 | BB59: 0 | BC59: 0 | BD59: 0 | BE59: 0 | BF59: 0 | BG59: 0 | BH59: 0 | BI59: 0 | BJ59: 0 | BK59: 0 | BL59: 0 | BM59: 0 | BN59: 0 | BO59: 0 | BP59: 0 | BQ59: 0 | BR59: 0 | BS59: 0 | BT59: -2398 | BU59: -2398 | BV59: 0 | BW59: -2398 | BX59: -1000 | BY59: -3398
A60: Patrimônio Líquido | B60: 0 | C60: 0 | D60: 0 | E60: 0 | F60: 0 | G60: 0 | H60: 0 | I60: 0 | J60: 0 | K60: 0 | L60: 0 | M60: 295038 | N60: 295038 | O60: 0 | P60: 0 | Q60: 0 | R60: 0 | S60: 0 | T60: 0 | U60: 0 | V60: 0 | W60: 0 | X60: 0 | Y60: 0 | Z60: 0 | AA60: 0 | AB60: 0 | AC60: 0 | AD60: 0 | AE60: 0 | AF60: 0 | AG60: 0 | AH60: 0 | AI60: 0 | AJ60: 0 | AK60: 0 | AL60: 0 | AM60: 0 | AN60: 0 | AO60: 0 | AP60: 0 | AQ60: 0 | AR60: 0 | AS60: 0 | AT60: 0 | AU60: 0 | AV60: 0 | AW60: 0 | AX60: 0 | AY60: 0 | AZ60: 0 | BA60: 0 | BB60: 0 | BC60: 0 | BD60: 0 | BE60: 0 | BF60: 0 | BG60: 0 | BH60: 0 | BI60: 0 | BJ60: 0 | BK60: 0 | BL60: 0 | BM60: 0 | BN60: 0 | BO60: 0 | BP60: 0 | BQ60: 0 | BR60: 0 | BS60: 0 | BT60: 0 | BU60: 0 | BV60: 0 | BW60: 0 | BX60: 0 | BY60: 0
A61: Dividendos | B61: - | C61: -19633 | D61: -5331 | E61: -7330 | F61: 4 | G61: -7326 | H61: 0 | I61: -6573 | J61: -6573 | K61: -27462 | L61: -34035 | M61: 0 | N61: -34035 | O61: 0 | P61: -4059 | Q61: -4059 | R61: -18232 | S61: -22291 | T61: -6943 | U61: -29234 | V61: -7419 | W61: -1926 | X61: -9345 | Y61: 0 | Z61: -9345 | AA61: -2847 | AB61: -12192 | AC61: 0 | AD61: -23117 | AE61: -23117 | AF61: 0 | AG61: -23117 | AH61: 0 | AI61: -23117 | AJ61: 0 | AK61: -34234 | AL61: -34234 | AM61: 0 | AN61: -34234 | AO61: 0 | AP61: -34234 | AQ61: 0 | AR61: -37847 | AS61: -37847 | AT61: -20685 | AU61: -58532 | AV61: 0 | AW61: -58532 | AX61: 0 | AY61: -286680 | AZ61: -286680 | BA61: -32803 | BB61: -319483 | BC61: 0 | BD61: -319483 | BE61: 0 | BF61: -6063 | BG61: -6063 | BH61: 0 | BI61: -6063 | BJ61: -20372 | BK61: -26435 | BL61: -13520 | BM61: -11197 | BN61: -24717 | BO61: 0 | BP61: -24717 | BQ61: -15893 | BR61: -40610 | BS61: 0 | BT61: 0 | BU61: 0 | BV61: 0 | BW61: 0 | BX61: 0 | BY61: 0
A62: Aumento (Redução) de Caixa e Equivalentes | B62: -5825 | C62: -15082 | D62: 984 | E62: -10747 | F62: 15185 | G62: 13795 | H62: 2651 | I62: 41643 | J62: 44294 | K62: -41589 | L62: 2705 | M62: 197373 | N62: 200078 | O62: 4344 | P62: -25785 | Q62: -21441 | R62: -125552 | S62: -146993 | T62: 2981 | U62: -144012 | V62: -27537 | W62: -11583 | X62: -39120 | Y62: 48696 | Z62: 9576 | AA62: -12825 | AB62: -3249 | AC62: -13026 | AD62: 8792 | AE62: -4234 | AF62: 34977 | AG62: 30743 | AH62: -38706 | AI62: -7963 | AJ62: -10912 | AK62: 17595 | AL62: 6683 | AM62: 97669 | AN62: 104352 | AO62: 112898 | AP62: 217250 | AQ62: 20943 | AR62: -18238 | AS62: 2705 | AT62: 76192 | AU62: 78897 | AV62: -43452 | AW62: 35445 | AX62: 202258 | AY62: -203164 | AZ62: -906 | BA62: -36975 | BB62: -37881 | BC62: -61677 | BD62: -99558 | BE62: -44239 | BF62: 528603 | BG62: 484364 | BH62: 4475 | BI62: 488839 | BJ62: -24079 | BK62: 464760 | BL62: -127942 | BM62: -94480 | BN62: -222422 | BO62: -67143 | BP62: -289565 | BQ62: -176664 | BR62: -466229 | BS62: -106435 | BT62: -18925 | BU62: -125360 | BV62: 137707 | BW62: 12347 | BX62: -45287 | BY62: -32940
A63: Saldo Inicial de Caixa e Equivalentes | B63: 23311 | C63: 17485 | D63: 2403 | E63: 12744 | F63: 1997 | G63: 3387 | H63: 17182 | I63: 19833 | J63: 17182 | K63: 61476 | L63: 17182 | M63: 19887 | N63: 17182 | O63: 217260 | P63: 221604 | Q63: 217260 | R63: 195819 | S63: 217260 | T63: 70267 | U63: 217260 | V63: 73248 | W63: 45711 | X63: 73248 | Y63: 34128 | Z63: 73248 | AA63: 82824 | AB63: 73248 | AC63: 69999 | AD63: 56973 | AE63: 69999 | AF63: 65765 | AG63: 69999 | AH63: 100742 | AI63: 69999 | AJ63: 62036 | AK63: 51124 | AL63: 62036 | AM63: 68719 | AN63: 62036 | AO63: 166388 | AP63: 62036 | AQ63: 279286 | AR63: 300229 | AS63: 279286 | AT63: 281991 | AU63: 279286 | AV63: 358183 | AW63: 279286 | AX63: 314731 | AY63: 516989 | AZ63: 314731 | BA63: 313825 | BB63: 314731 | BC63: 276850 | BD63: 314731 | BE63: 215173 | BF63: 170934 | BG63: 215173 | BH63: 699537 | BI63: 215173 | BJ63: 704012 | BK63: 215173 | BL63: 679933 | BM63: 551991 | BN63: 679933 | BO63: 457511 | BP63: 679933 | BQ63: 390368 | BR63: 679933 | BS63: 213704 | BT63: 107269 | BU63: 213704 | BV63: 88344 | BW63: 213704 | BX63: 226051 | BY63: 213704
A64: Saldo Final de Caixa e Equivalentes | B64: 17486 | C64: 2403 | D64: 3387 | E64: 1997 | F64: 17182 | G64: 17182 | H64: 19833 | I64: 61476 | J64: 61476 | K64: 19887 | L64: 19887 | M64: 217260 | N64: 217260 | O64: 221604 | P64: 195819 | Q64: 195819 | R64: 70267 | S64: 70267 | T64: 73248 | U64: 73248 | V64: 45711 | W64: 34128 | X64: 34128 | Y64: 82824 | Z64: 82824 | AA64: 69999 | AB64: 69999 | AC64: 56973 | AD64: 65765 | AE64: 65765 | AF64: 100742 | AG64: 100742 | AH64: 62036 | AI64: 62036 | AJ64: 51124 | AK64: 68719 | AL64: 68719 | AM64: 166388 | AN64: 166388 | AO64: 279286 | AP64: 279286 | AQ64: 300229 | AR64: 281991 | AS64: 281991 | AT64: 358183 | AU64: 358183 | AV64: 314731 | AW64: 314731 | AX64: 516989 | AY64: 313825 | AZ64: 313825 | BA64: 276850 | BB64: 276850 | BC64: 215173 | BD64: 215173 | BE64: 170934 | BF64: 699537 | BG64: 699537 | BH64: 704012 | BI64: 704012 | BJ64: 679933 | BK64: 679933 | BL64: 551991 | BM64: 457511 | BN64: 457511 | BO64: 390368 | BP64: 390368 | BQ64: 213704 | BR64: 213704 | BS64: 107269 | BT64: 88344 | BU64: 88344 | BV64: 226051 | BW64: 226051 | BX64: 180764 | BY64: 180764
A66: Variação de caixa e Títulos e Valores Mobiliários | B66: -5825 | C66: -15082 | D66: 10159 | E66: -10747 | F66: 6010 | G66: 4620 | H66: 2651 | I66: 41643 | J66: 44294 | K66: -41589 | L66: 2705 | M66: 281664 | N66: 284369 | O66: 6410 | P66: -23543 | Q66: -17133 | R66: -6855 | S66: -23988 | T66: -140917 | U66: -164905 | V66: -90955 | W66: -11583 | X66: -102538 | Y66: 305593 | Z66: 203055 | AA66: -56587 | AB66: 146468 | AC66: -57504 | AD66: 23172 | AE66: -34332 | AF66: 123080 | AG66: 88748 | AH66: 27701 | AI66: 116449 | AJ66: -62793 | AK66: 4525 | AL66: -58268 | AM66: 84511 | AN66: 26243 | AO66: 485887 | AP66: 512130 | AQ66: -54971 | AR66: -41771 | AS66: -96742 | AT66: 161351 | AU66: 64609 | AV66: -55424 | AW66: 9185 | AX66: -44449 | AY66: -319639 | AZ66: -364088 | BA66: -51204 | BB66: -415292 | BC66: -199143 | BD66: -614435 | BE66: -124173 | BF66: 517871 | BG66: 393698 | BH66: 4505 | BI66: 398203 | BJ66: -23557 | BK66: 374646 | BL66: -92123 | BM66: -80634 | BN66: -208576 | BO66: -65167 | BP66: -273743 | BQ66: -116302 | BR66: -390045 | BS66: -40453 | BT66: -45725 | BU66: -86178 | BV66: 165419 | BW66: 79241 | BX66: -62108 | BY66: 17133

Sheet Histórico da Base de Alunos
A2: GRUPO SER EDUCACIONAL
A3: HISTÓRICO DA MOVIMENTAÇÃO DA BASE DE ALUNOS
A7: MOVIMENTAÇÃO DA BASE DE ALUNOS DE GRADUAÇÃO
A8: Número de Alunos | B8: 2013.1 | C8: 3T13 | D8: 4T13 | E8: 2013.2 | F8: 2013 | G8: 1T14 | H8: 2T14 | I8: 2014.1 | J8: 3T14 | K8: 4T14 | L8: 2014.2 | M8: 2014 | N8: 1T15 | O8: 2T15 | P8: 2015.1 | Q8: 3T15 | R8: 4T15 | S8: 2015.2 | T8: 2015 | U8: 1T16 | V8: 2T16 | W8: 2016.1 | X8: 3T16 | Y8: 4T16 | Z8: 2016.2 | AA8: 2016 | AB8: 1T17 | AC8: 2T17 | AD8: 2017.1 | AE8: 3T17 | AF8: 4T17 | AG8: 2017.2 | AH8: 2017 | AI8: 1T18 | AJ8: 2T18 | AK8: 2018.1 | AL8: 3T18 | AM8: 4T18 | AN8: 2018.2 | AO8: 2018 | AP8: 1T19 | AQ8: 2T19 | AR8: 2019.1 | AS8: 3T19 | AT8: 4T19 | AU8: 2019.2 | AV8: 2019 | AW8: 1T20 | AX8: 2T20 | AY8: 2020.1 | AZ8: 3T20 | BA8: 4T20 | BB8: 2020.2 | BC8: 2020 | BD8: 1T21 | BE8: 2T21 | BF8: 2021.1 | BG8: 3T21 | BH8: 4T21 | BI8: 2021.2 | BJ8: 2021 | BK8: 1T22 | BL8: 2T22 | BM8: 2022.1 | BN8: 3T22 | BO8: 4T22 | BP8: 2022.2 | BQ8: 2022
A9: Base Inicial | B9: 48670 | C9: 66857 | D9: 69916 | E9: 66857 | F9: 48670 | G9: 70255 | H9: 84895 | I9: 70255 | J9: 86503 | K9: 87710 | L9: 86503 | M9: 70255 | N9: 101195 | O9: 135622 | P9: 101195 | Q9: 132311 | R9: 122048 | S9: 132311 | T9: 101195 | U9: 123988 | V9: 135359 | W9: 123988 | X9: 136400 | Y9: 129329 | Z9: 136400 | AA9: 123988 | AB9: 131092 | AC9: 140159 | AD9: 131092 | AE9: 142468 | AF9: 131275 | AG9: 142468 | AH9: 131092 | AI9: 133945 | AJ9: 135694 | AK9: 133945 | AL9: 138670 | AM9: 123268 | AN9: 138670 | AO9: 133945 | AP9: 127837 | AQ9: 127829 | AR9: 127837 | AS9: 132546 | AT9: 123800 | AU9: 132546 | AV9: 127837 | AW9: 145496 | AX9: 140671 | AY9: 145496 | AZ9: 138712 | BA9: 124953 | BB9: 138712 | BC9: 145496 | BD9: 131613 | BE9: 129739 | BF9: 131613 | BG9: 134766 | BH9: 132578 | BI9: 134766 | BJ9: 131613 | BK9: 132711 | BL9: 138397 | BM9: 132711 | BN9: 139624 | BO9: 135565 | BP9: 139624 | BQ9: 132711
A10: Captação | B10: 25570 | C10: 13996 | D10: 52 | E10: 14048 | F10: 39618 | G10: 27334 | H10: 1329 | I10: 28663 | J10: 13110 | K10: 2360 | L10: 15470 | M10: 44133 | N10: 39796 | O10: 2709 | P10: 42505 | Q10: 14551 | R10: 1314 | S10: 15865 | T10: 58370 | U10: 37305 | V10: 1803 | W10: 39108 | X10: 15167 | Y10: 859 | Z10: 16026 | AA10: 55134 | AB10: 42044 | AC10: 4675 | AD10: 46719 | AE10: 17441 | AF10: 1933 | AG10: 19374 | AH10: 66093 | AI10: 35553 | AJ10: 5370 | AK10: 40923 | AL10: 16117 | AM10: 1606 | AN10: 17723 | AO10: 58646 | AP10: 37014 | AQ10: 5430 | AR10: 42444 | AS10: 20817 | AT10: 859 | AU10: 21676 | AV10: 64120 | AW10: 41893 | AX10: 2668 | AY10: 44561 | AZ10: 18269 | BA10: 2676 | BB10: 20945 | BC10: 65506 | BD10: 33827 | BE10: 5742 | BF10: 39569 | BG10: 24102 | BH10: 1580 | BI10: 25682 | BJ10: 65251 | BK10: 42801 | BL10: 5847 | BM10: 48648 | BN10: 22004 | BO10: 1757 | BP10: 23761 | BQ10: 72409
A11: Aquisições | B11: 3708 | C11: 0 | D11: 421 | E11: 421 | F11: 4129 | G11: 350 | H11: 0 | I11: 350 | J11: 1550 | K11: 11417 | L11: 12967 | M11: 13317 | N11: 18028 | O11: 0 | P11: 18028 | Q11: 350 | R11: 0 | S11: 350 | T11: 18378 | U11: 0 | V11: 0 | W11: 0 | X11: 0 | Y11: 0 | Z11: 0 | AA11: 0 | AB11: 0 | AC11: 0 | AD11: 0 | AE11: 0 | AF11: 0 | AG11: 0 | AH11: 0 | AI11: 0 | AJ11: 0 | AK11: 0 | AL11: 0 | AM11: 0 | AN11: 0 | AO11: 0 | AP11: 0 | AQ11: 0 | AR11: 0 | AS11: 0 | AT11: 20924 | AU11: 20924 | AV11: 20924 | AW11: 0 | AX11: 0 | AY11: 0 | AZ11: 0 | BA11: 4373 | BB11: 4373 | BC11: 4373 | BD11: 3143 | BE11: 1825 | BF11: 4968 | BG11: 0 | BH11: 0 | BI11: 0 | BJ11: 4968 | BK11: 0 | BL11: 0 | BM11: 0 | BN11: 0 | BO11: 0 | BP11: 0 | BQ11: 0
A12: Egressos | B12: -2078 | C12: -2000 | D12: -119 | E12: -2119 | F12: -4197 | G12: -2733 | H12: -437 | I12: -3170 | J12: -2098 | K12: -324 | L12: -2422 | M12: -5592 | N12: -3693 | O12: -2252 | P12: -5945 | Q12: -4662 | R12: -251 | S12: -4913 | T12: -10858 | U12: -7943 | V12: -544 | W12: -8487 | X12: -6055 | Y12: -196 | Z12: -6251 | AA12: -14738 | AB12: -10569 | AC12: -456 | AD12: -11025 | AE12: -6488 | AF12: -199 | AG12: -6687 | AH12: -17712 | AI12: -12122 | AJ12: -322 | AK12: -12444 | AL12: -7526 | AM12: -186 | AN12: -7712 | AO12: -20156 | AP12: -12677 | AQ12: -387 | AR12: -13064 | AS12: -7656 | AT12: -189 | AU12: -7845 | AV12: -20909 | AW12: -14992 | AX12: -241 | AY12: -15233 | AZ12: -6471 | BA12: -1117 | BB12: -7588 | BC12: -22821 | BD12: -12692 | BE12: -1852 | BF12: -14544 | BG12: -7287 | BH12: -628 | BI12: -7915 | BJ12: -22459 | BK12: -14636 | BL12: -857 | BM12: -15493 | BN12: -5871 | BO12: -281 | BP12: -6152 | BQ12: -21645
A13: Evasão | B13: -9013 | C13: -8937 | D13: -15 | E13: -8952 | F13: -17965 | G13: -10311 | H13: 716 | I13: -9595 | J13: -11355 | K13: 32 | L13: -11323 | M13: -20918 | N13: -19704 | O13: -3768 | P13: -23472 | Q13: -20502 | R13: 877 | S13: -19625 | T13: -43097 | U13: -17991 | V13: -218 | W13: -18209 | X13: -16183 | Y13: 1100 | Z13: -15083 | AA13: -33292 | AB13: -22408 | AC13: -1910 | AD13: -24318 | AE13: -22146 | AF13: 936 | AG13: -21210 | AH13: -45528 | AI13: -21682 | AJ13: -2072 | AK13: -23754 | AL13: -23993 | AM13: 3149 | AN13: -20844 | AO13: -44598 | AP13: -24345 | AQ13: -326 | AR13: -24671 | AS13: -21907 | AT13: 102 | AU13: -21805 | AV13: -46476 | AW13: -31726 | AX13: -4386 | AY13: -36112 | AZ13: -25557 | BA13: 728 | BB13: -24829 | BC13: -60941 | BD13: -26152 | BE13: -688 | BF13: -26840 | BG13: -19003 | BH13: -819 | BI13: -19822 | BJ13: -46662 | BK13: -22479 | BL13: -3763 | BM13: -26242 | BN13: -20192 | BO13: -941 | BP13: -21133 | BQ13: -47375
A14: Base Final | B14: 66857 | C14: 69916 | D14: 70255 | E14: 70255 | F14: 70255 | G14: 84895 | H14: 86503 | I14: 86503 | J14: 87710 | K14: 101195 | L14: 101195 | M14: 101195 | N14: 135622 | O14: 132311 | P14: 132311 | Q14: 122048 | R14: 123988 | S14: 123988 | T14: 123988 | U14: 135359 | V14: 136400 | W14: 136400 | X14: 129329 | Y14: 131092 | Z14: 131092 | AA14: 131092 | AB14: 140159 | AC14: 142468 | AD14: 142468 | AE14: 131275 | AF14: 133945 | AG14: 133945 | AH14: 133945 | AI14: 135694 | AJ14: 138670 | AK14: 138670 | AL14: 123268 | AM14: 127837 | AN14: 127837 | AO14: 127837 | AP14: 127829 | AQ14: 132546 | AR14: 132546 | AS14: 123800 | AT14: 145496 | AU14: 145496 | AV14: 145496 | AW14: 140671 | AX14: 138712 | AY14: 138712 | AZ14: 124953 | BA14: 131613 | BB14: 131613 | BC14: 131613 | BD14: 129739 | BE14: 134766 | BF14: 134766 | BG14: 132578 | BH14: 132711 | BI14: 132711 | BJ14: 132711 | BK14: 138397 | BL14: 139624 | BM14: 139624 | BN14: 135565 | BO14: 136100 | BP14: 136100 | BQ14: 136100
A18: MOVIMENTAÇÃO DA BASE DE ALUNOS DE EAD (GRADUAÇÃO)
A19: Número de Alunos | B19: 2013.1 | C19: 3T13 | D19: 4T13 | E19: 2013.2 | F19: 2013 | G19: 1T14 | H19: 2T14 | I19: 2014.1 | J19: 3T14 | K19: 4T14 | L19: 2014.2 | M19: 2014 | N19: 1T15 | O19: 2T15 | P19: 2015.1 | Q19: 3T15 | R19: 4T15 | S19: 2015.2 | T19: 2015 | U19: 1T16 | V19: 2T16 | W19: 2016.1 | X19: 3T16 | Y19: 4T16 | Z19: 2016.2 | AA19: 2016 | AB19: 1T17 | AC19: 2T17 | AD19: 2017.1 | AE19: 3T17 | AF19: 4T17 | AG19: 2017.2 | AH19: 2017 | AI19: 1T18 | AJ19: 2T18 | AK19: 2018.1 | AL19: 3T18 | AM19: 4T18 | AN19: 2018.2 | AO19: 2018 | AP19: 1T19 | AQ19: 2T19 | AR19: 2019.1 | AS19: 3T19 | AT19: 4T19 | AU19: 2019.2 | AV19: 2019 | AW19: 1T20 | AX19: 2T20 | AY19: 2020.1 | AZ19: 3T20 | BA19: 4T20 | BB19: 2020.2 | BC19: 2020 | BD19: 1T21 | BE19: 2T21 | BF19: 2021.1 | BG19: 3T21 | BH19: 4T21 | BI19: 2021.2 | BJ19: 2021 | BK19: 1T22 | BL19: 2T22 | BM19: 2022.1 | BN19: 3T22 | BO19: 4T22 | BP19: 2022.2 | BQ19: 2022
A20: Base Inicial | B20: 0 | C20: 0 | D20: 0 | E20: 0 | F20: 0 | G20: 0 | H20: 713 | I20: 0 | J20: 998 | K20: 1851 | L20: 998 | M20: 0 | N20: 2048 | O20: 2563 | P20: 2048 | Q20: 2838 | R20: 2752 | S20: 2838 | T20: 2048 | U20: 3089 | V20: 4456 | W20: 3089 | X20: 5006 | Y20: 6335 | Z20: 5006 | AA20: 3089 | AB20: 6102 | AC20: 7652 | AD20: 6102 | AE20: 7389 | AF20: 9869 | AG20: 7389 | AH20: 6102 | AI20: 9462 | AJ20: 15832 | AK20: 9462 | AL20: 14700 | AM20: 14169 | AN20: 14700 | AO20: 9462 | AP20: 13759 | AQ20: 22547 | AR20: 13759 | AS20: 20310 | AT20: 23506 | AU20: 20310 | AV20: 13759 | AW20: 23470 | AX20: 28279 | AY20: 23470 | AZ20: 28343 | BA20: 38171 | BB20: 28343 | BC20: 23470 | BD20: 38997 | BE20: 67262 | BF20: 38997 | BG20: 72591 | BH20: 88537 | BI20: 72591 | BJ20: 38997 | BK20: 74251 | BL20: 162017 | BM20: 74251 | BN20: 153329 | BO20: 137820 | BP20: 153329 | BQ20: 74251
A21: Captação | B21: 0 | C21: 0 | D21: 0 | E21: 0 | F21: 0 | G21: 725 | H21: 530 | I21: 1255 | J21: 1095 | K21: 715 | L21: 1810 | M21: 3065 | N21: 1589 | O21: 647 | P21: 2236 | Q21: 1419 | R21: 588 | S21: 2007 | T21: 4243 | U21: 2634 | V21: 1158 | W21: 3792 | X21: 3224 | Y21: 413 | Z21: 3637 | AA21: 7429 | AB21: 4013 | AC21: 635 | AD21: 4648 | AE21: 5707 | AF21: 877 | AG21: 6584 | AH21: 11232 | AI21: 10243 | AJ21: 2294 | AK21: 12537 | AL21: 5842 | AM21: 1039 | AN21: 6881 | AO21: 19418 | AP21: 14764 | AQ21: 2908 | AR21: 17672 | AS21: 12904 | AT21: 1378 | AU21: 14282 | AV21: 31954 | AW21: 16465 | AX21: 3334 | AY21: 19799 | AZ21: 19113 | BA21: 5631 | BB21: 24744 | BC21: 44543 | BD21: 43680 | BE21: 14433 | BF21: 58113 | BG21: 25241 | BH21: 3498 | BI21: 28739 | BJ21: 86852 | BK21: 32791 | BL21: 8700 | BM21: 41491 | BN21: 24301 | BO21: 3297 | BP21: 27598 | BQ21: 69089
A22: Aquisições | B22: 0 | C22: 0 | D22: 0 | E22: 0 | F22: 0 | G22: 0 | H22: 0 | I22: 0 | J22: 0 | K22: 0 | L22: 0 | M22: 0 | N22: 0 | O22: 0 | P22: 0 | Q22: 0 | R22: 0 | S22: 0 | T22: 0 | U22: 0 | V22: 0 | W22: 0 | X22: 0 | Y22: 0 | Z22: 0 | AA22: 0 | AB22: 0 | AC22: 0 | AD22: 0 | AE22: 0 | AF22: 0 | AG22: 0 | AH22: 0 | AI22: 0 | AJ22: 0 | AK22: 0 | AL22: 0 | AM22: 0 | AN22: 0 | AO22: 0 | AP22: 0 | AQ22: 0 | AR22: 0 | AS22: 0 | AT22: 1892 | AU22: 1892 | AV22: 1892 | AW22: 0 | AX22: 0 | AY22: 0 | AZ22: 0 | BA22: 170 | BB22: 170 | BC22: 170 | BD22: 0 | BE22: 0 | BF22: 0 | BG22: 0 | BH22: 0 | BI22: 0 | BJ22: 0 | BK22: 70034 | BL22: 0 | BM22: 70034 | BN22: 0 | BO22: 0 | BP22: 0 | BQ22: 70034
A23: Egressos | B23: 0 | C23: 0 | D23: 0 | E23: 0 | F23: 0 | G23: 0 | H23: 0 | I23: 0 | J23: 0 | K23: 0 | L23: 0 | M23: 0 | N23: 0 | O23: 0 | P23: 0 | Q23: 0 | R23: 0 | S23: 0 | T23: 0 | U23: 0 | V23: -4 | W23: -4 | X23: -50 | Y23: -4 | Z23: -54 | AA23: -58 | AB23: 0 | AC23: 0 | AD23: 0 | AE23: -27 | AF23: -8 | AG23: -35 | AH23: -35 | AI23: -60 | AJ23: -11 | AK23: -71 | AL23: -99 | AM23: -19 | AN23: -118 | AO23: -189 | AP23: -253 | AQ23: -14 | AR23: -267 | AS23: -216 | AT23: -25 | AU23: -241 | AV23: -508 | AW23: -505 | AX23: -23 | AY23: -528 | AZ23: -501 | BA23: -91 | BB23: -592 | BC23: -1120 | BD23: -729 | BE23: -178 | BF23: -907 | BG23: -697 | BH23: -113 | BI23: -810 | BJ23: -1717 | BK23: -1351 | BL23: -274 | BM23: -1625 | BN23: -2871 | BO23: -853 | BP23: -3724 | BQ23: -5349
A24: Evasão | B24: 0 | C24: 0 | D24: 0 | E24: 0 | F24: 0 | G24: -12 | H24: -245 | I24: -257 | J24: -242 | K24: -518 | L24: -760 | M24: -1017 | N24: -1074 | O24: -372 | P24: -1446 | Q24: -1505 | R24: -251 | S24: -1756 | T24: -3202 | U24: -1267 | V24: -604 | W24: -1871 | X24: -1845 | Y24: -642 | Z24: -2487 | AA24: -4358 | AB24: -2463 | AC24: -898 | AD24: -3361 | AE24: -3200 | AF24: -1276 | AG24: -4476 | AH24: -7837 | AI24: -3813 | AJ24: -3415 | AK24: -7228 | AL24: -6274 | AM24: -1430 | AN24: -7704 | AO24: -14932 | AP24: -5723 | AQ24: -5131 | AR24: -10854 | AS24: -9492 | AT24: -3281 | AU24: -12773 | AV24: -23627 | AW24: -11151 | AX24: -3247 | AY24: -14398 | AZ24: -8784 | BA24: -4884 | BB24: -13668 | BC24: -28066 | BD24: -14686 | BE24: -8926 | BF24: -23612 | BG24: -8598 | BH24: -17671 | BI24: -26269 | BJ24: -49881 | BK24: -13708 | BL24: -17114 | BM24: -30822 | BN24: -36939 | BO24: -13915 | BP24: -50854 | BQ24: -81676
A25: Base Final | B25: 0 | C25: 0 | D25: 0 | E25: 0 | F25: 0 | G25: 713 | H25: 998 | I25: 998 | J25: 1851 | K25: 2048 | L25: 2048 | M25: 2048 | N25: 2563 | O25: 2838 | P25: 2838 | Q25: 2752 | R25: 3089 | S25: 3089 | T25: 3089 | U25: 4456 | V25: 5006 | W25: 5006 | X25: 6335 | Y25: 6102 | Z25: 6102 | AA25: 6102 | AB25: 7652 | AC25: 7389 | AD25: 7389 | AE25: 9869 | AF25: 9462 | AG25: 9462 | AH25: 9462 | AI25: 15832 | AJ25: 14700 | AK25: 14700 | AL25: 14169 | AM25: 13759 | AN25: 13759 | AO25: 13759 | AP25: 22547 | AQ25: 20310 | AR25: 20310 | AS25: 23506 | AT25: 23470 | AU25: 23470 | AV25: 23470 | AW25: 28279 | AX25: 28343 | AY25: 28343 | AZ25: 38171 | BA25: 38997 | BB25: 38997 | BC25: 38997 | BD25: 67262 | BE25: 72591 | BF25: 72591 | BG25: 88537 | BH25: 74251 | BI25: 74251 | BJ25: 74251 | BK25: 162017 | BL25: 153329 | BM25: 153329 | BN25: 137820 | BO25: 126349 | BP25: 126349 | BQ25: 126349
A29: MOVIMENTAÇÃO DA BASE DE ALUNOS DE PÓS-GRADUAÇÃO
A30: Número de Alunos | B30: 2013.1 | C30: 3T13 | D30: 4T13 | E30: 2013.2 | F30: 2013 | G30: 1T14 | H30: 2T14 | I30: 2014.1 | J30: 3T14 | K30: 4T14 | L30: 2014.2 | M30: 2014 | N30: 1T15 | O30: 2T15 | P30: 2015.1 | Q30: 3T15 | R30: 4T15 | S30: 2015.2 | T30: 2015 | U30: 1T16 | V30: 2T16 | W30: 2016.1 | X30: 3T16 | Y30: 4T16 | Z30: 2016.2 | AA30: 2016 | AB30: 1T17 | AC30: 2T17 | AD30: 2017.1 | AE30: 3T17 | AF30: 4T17 | AG30: 2017.2 | AH30: 2017 | AI30: 1T18 | AJ30: 2T18 | AK30: 2018.1 | AL30: 3T18 | AM30: 4T18 | AN30: 2018.2 | AO30: 2018 | AP30: 1T19 | AQ30: 2T19 | AR30: 2019.1 | AS30: 3T19 | AT30: 4T19 | AU30: 2019.2 | AV30: 2019 | AW30: 1T20 | AX30: 2T20 | AY30: 2020.1 | AZ30: 3T20 | BA30: 4T20 | BB30: 2020.2 | BC30: 2020 | BD30: 1T21 | BE30: 2T21 | BF30: 2021.1 | BG30: 3T21 | BH30: 4T21 | BI30: 2021.2 | BJ30: 2021 | BK30: 1T22 | BL30: 2T22 | BM30: 2022.1 | BN30: 3T22 | BO30: 4T22 | BP30: 2022.2 | BQ30: 2022
A31: Base Inicial | B31: 7279 | C31: 8476 | D31: 8187 | E31: 8476 | F31: 7279 | G31: 7678 | H31: 8213 | I31: 7678 | J31: 7834 | K31: 7396 | L31: 7834 | M31: 7678 | N31: 8294 | O31: 8747 | P31: 8294 | Q31: 9812 | R31: 9028 | S31: 9812 | T31: 8294 | U31: 10388 | V31: 10247 | W31: 10388 | X31: 9861 | Y31: 9367 | Z31: 9861 | AA31: 10388 | AB31: 9501 | AC31: 7778 | AD31: 9501 | AE31: 7105 | AF31: 7178 | AG31: 7105 | AH31: 9501 | AI31: 6433 | AJ31: 5531 | AK31: 6433 | AL31: 6320 | AM31: 6166 | AN31: 6320 | AO31: 6433 | AP31: 5235 | AQ31: 4799 | AR31: 5235 | AS31: 4865 | AT31: 5389 | AU31: 4865 | AV31: 5235 | AW31: 6594 | AX31: 5751 | AY31: 6594 | AZ31: 5016 | BA31: 4565 | BB31: 5016 | BC31: 6594 | BD31: 4487 | BE31: 3064 | BF31: 4487 | BG31: 2371 | BH31: 2046 | BI31: 2371 | BJ31: 4487 | BK31: 1421 | BL31: 1301 | BM31: 1421 | BN31: 1181 | BO31: 1170 | BP31: 1181 | BQ31: 1421
A32: Captação | B32: 1226 | C32: 1069 | D32: 0 | E32: 1069 | F32: 2295 | G32: 1991 | H32: 670 | I32: 2661 | J32: 885 | K32: 1393 | L32: 2278 | M32: 4939 | N32: 1066 | O32: 2606 | P32: 3672 | Q32: 1165 | R32: 2480 | S32: 3645 | T32: 7317 | U32: 2173 | V32: 1473 | W32: 3646 | X32: 1642 | Y32: 720 | Z32: 2362 | AA32: 6008 | AB32: 2358 | AC32: 1539 | AD32: 3897 | AE32: 1012 | AF32: 526 | AG32: 1538 | AH32: 5435 | AI32: 939 | AJ32: 1341 | AK32: 2280 | AL32: 576 | AM32: 288 | AN32: 864 | AO32: 3144 | AP32: 448 | AQ32: 1165 | AR32: 1613 | AS32: 977 | AT32: 495 | AU32: 1472 | AV32: 3085 | AW32: 731 | AX32: 161 | AY32: 892 | AZ32: 193 | BA32: 177 | BB32: 370 | BC32: 1262 | BD32: 37 | BE32: 258 | BF32: 295 | BG32: 209 | BH32: 216 | BI32: 425 | BJ32: 720 | BK32: 167 | BL32: 29 | BM32: 196 | BN32: 219 | BO32: 52 | BP32: 271 | BQ32: 467
A33: Aquisições | B33: 554 | C33: 0 | D33: 109 | E33: 109 | F33: 663 | G33: 0 | H33: 0 | I33: 0 | J33: 0 | K33: 1480 | L33: 1480 | M33: 1480 | N33: 527 | O33: 0 | P33: 527 | Q33: 0 | R33: 0 | S33: 0 | T33: 527 | U33: 0 | V33: 0 | W33: 0 | X33: 0 | Y33: 0 | Z33: 0 | AA33: 0 | AB33: 0 | AC33: 0 | AD33: 0 | AE33: 0 | AF33: 0 | AG33: 0 | AH33: 0 | AI33: 0 | AJ33: 0 | AK33: 0 | AL33: 0 | AM33: 0 | AN33: 0 | AO33: 0 | AP33: 0 | AQ33: 0 | AR33: 0 | AS33: 0 | AT33: 1535 | AU33: 1535 | AV33: 1535 | AW33: 0 | AX33: 0 | AY33: 0 | AZ33: 0 | BA33: 0 | BB33: 0 | BC33: 0 | BD33: 0 | BE33: 0 | BF33: 0 | BG33: 0 | BH33: 135 | BI33: 135 | BJ33: 135 | BK33: 0 | BL33: 0 | BM33: 0 | BN33: 0 | BO33: 0 | BP33: 0 | BQ33: 0
A34: Egressos | B34: -533 | C34: -1315 | D34: -618 | E34: -1933 | F34: -2466 | G34: -1439 | H34: -971 | I34: -2410 | J34: -1260 | K34: -1955 | L34: -3215 | M34: -5625 | N34: -1122 | O34: -1517 | P34: -2639 | Q34: -1877 | R34: -1023 | S34: -2900 | T34: -5539 | U34: -2115 | V34: -1245 | W34: -3360 | X34: -1217 | Y34: -328 | Z34: -1545 | AA34: -4905 | AB34: -2770 | AC34: -1783 | AD34: -4553 | AE34: -585 | AF34: -1152 | AG34: -1737 | AH34: -6290 | AI34: -1695 | AJ34: -379 | AK34: -2074 | AL34: -536 | AM34: -1147 | AN34: -1683 | AO34: -3757 | AP34: -817 | AQ34: -1043 | AR34: -1860 | AS34: -393 | AT34: -776 | AU34: -1169 | AV34: -3029 | AW34: -1481 | AX34: -812 | AY34: -2293 | AZ34: -568 | BA34: -99 | BB34: -667 | BC34: -2960 | BD34: -1435 | BE34: -894 | BF34: -2329 | BG34: -507 | BH34: -961 | BI34: -1468 | BJ34: -3797 | BK34: -275 | BL34: -143 | BM34: -418 | BN34: -215 | BO34: -45 | BP34: -260 | BQ34: -678
A35: Evasão | B35: -50 | C35: -43 | D35: 0 | E35: -43 | F35: -93 | G35: -17 | H35: -78 | I35: -95 | J35: -63 | K35: -20 | L35: -83 | M35: -178 | N35: -18 | O35: -24 | P35: -42 | Q35: -72 | R35: -97 | S35: -169 | T35: -211 | U35: -199 | V35: -614 | W35: -813 | X35: -919 | Y35: -258 | Z35: -1177 | AA35: -1990 | AB35: -1311 | AC35: -429 | AD35: -1740 | AE35: -354 | AF35: -119 | AG35: -473 | AH35: -2213 | AI35: -146 | AJ35: -173 | AK35: -319 | AL35: -194 | AM35: -72 | AN35: -266 | AO35: -585 | AP35: -67 | AQ35: -56 | AR35: -123 | AS35: -60 | AT35: -49 | AU35: -109 | AV35: -232 | AW35: -93 | AX35: -84 | AY35: -177 | AZ35: -76 | BA35: -156 | BB35: -232 | BC35: -409 | BD35: -25 | BE35: -57 | BF35: -82 | BG35: -27 | BH35: -15 | BI35: -42 | BJ35: -124 | BK35: -12 | BL35: -6 | BM35: -18 | BN35: -15 | BO35: -38 | BP35: -53 | BQ35: -71
A36: Base Final | B36: 8476 | C36: 8187 | D36: 7678 | E36: 7678 | F36: 7678 | G36: 8213 | H36: 7834 | I36: 7834 | J36: 7396 | K36: 8294 | L36: 8294 | M36: 8294 | N36: 8747 | O36: 9812 | P36: 9812 | Q36: 9028 | R36: 10388 | S36: 10388 | T36: 10388 | U36: 10247 | V36: 9861 | W36: 9861 | X36: 9367 | Y36: 9501 | Z36: 9501 | AA36: 9501 | AB36: 7778 | AC36: 7105 | AD36: 7105 | AE36: 7178 | AF36: 6433 | AG36: 6433 | AH36: 6433 | AI36: 5531 | AJ36: 6320 | AK36: 6320 | AL36: 6166 | AM36: 5235 | AN36: 5235 | AO36: 5235 | AP36: 4799 | AQ36: 4865 | AR36: 4865 | AS36: 5389 | AT36: 6594 | AU36: 6594 | AV36: 6594 | AW36: 5751 | AX36: 5016 | AY36: 5016 | AZ36: 4565 | BA36: 4487 | BB36: 4487 | BC36: 4487 | BD36: 3064 | BE36: 2371 | BF36: 2371 | BG36: 2046 | BH36: 1421 | BI36: 1421 | BJ36: 1421 | BK36: 1301 | BL36: 1181 | BM36: 1181 | BN36: 1170 | BO36: 1139 | BP36: 1139 | BQ36: 1139
A40: MOVIMENTAÇÃO DA BASE DE ALUNOS DE EAD (PÓS-GRADUAÇÃO)
A41: Número de Alunos | B41: 2013.1 | C41: 3T13 | D41: 4T13 | E41: 2013.2 | F41: 2013 | G41: 1T14 | H41: 2T14 | I41: 2014.1 | J41: 3T14 | K41: 4T14 | L41: 2014.2 | M41: 2014 | N41: 1T15 | O41: 2T15 | P41: 2015.1 | Q41: 3T15 | R41: 4T15 | S41: 2015.2 | T41: 2015 | U41: 1T16 | V41: 2T16 | W41: 2016.1 | X41: 3T16 | Y41: 4T16 | Z41: 2016.2 | AA41: 2016 | AB41: 1T17 | AC41: 2T17 | AD41: 2017.1 | AE41: 3T17 | AF41: 4T17 | AG41: 2017.2 | AH41: 2017 | AI41: 1T18 | AJ41: 2T18 | AK41: 2018.1 | AL41: 3T18 | AM41: 4T18 | AN41: 2018.2 | AO41: 2018 | AP41: 1T19 | AQ41: 2T19 | AR41: 2019.1 | AS41: 3T19 | AT41: 4T19 | AU41: 2019.2 | AV41: 2019 | AW41: 1T20 | AX41: 2T20 | AY41: 2020.1 | AZ41: 3T20 | BA41: 4T20 | BB41: 2020.2 | BC41: 2020 | BD41: 1T21 | BE41: 2T21 | BF41: 2021.1 | BG41: 3T21 | BH41: 4T21 | BI41: 2021.2 | BJ41: 2021 | BK41: 1T22 | BL41: 2T22 | BM41: 2022.1 | BN41: 3T22 | BO41: 4T22 | BP41: 2022.2 | BQ41: 2022
A42: Base Inicial | B42: 0 | C42: 0 | D42: 0 | E42: 0 | F42: 0 | G42: 0 | H42: 0 | I42: 0 | J42: 0 | K42: 0 | L42: 0 | M42: 0 | N42: 0 | O42: 0 | P42: 0 | Q42: 81 | R42: 200 | S42: 81 | T42: 0 | U42: 231 | V42: 337 | W42: 231 | X42: 395 | Y42: 523 | Z42: 395 | AA42: 231 | AB42: 805 | AC42: 1256 | AD42: 805 | AE42: 1330 | AF42: 1661 | AG42: 1330 | AH42: 805 | AI42: 2256 | AJ42: 2523 | AK42: 2256 | AL42: 3018 | AM42: 2982 | AN42: 3018 | AO42: 2256 | AP42: 3123 | AQ42: 5452 | AR42: 3123 | AS42: 6419 | AT42: 7894 | AU42: 6419 | AV42: 3123 | AW42: 8017 | AX42: 9285 | AY42: 8017 | AZ42: 10145 | BA42: 12913 | BB42: 10145 | BC42: 8017 | BD42: 14836 | BE42: 16549 | BF42: 14836 | BG42: 12603 | BH42: 15012 | BI42: 12603 | BJ42: 14836 | BK42: 13478 | BL42: 32075 | BM42: 13478 | BN42: 28669 | BO42: 30490 | BP42: 28669 | BQ42: 13478
A43: Captação | B43: 0 | C43: 0 | D43: 0 | E43: 0 | F43: 0 | G43: 0 | H43: 0 | I43: 0 | J43: 0 | K43: 0 | L43: 0 | M43: 0 | N43: 0 | O43: 85 | P43: 85 | Q43: 217 | R43: 43 | S43: 260 | T43: 345 | U43: 141 | V43: 104 | W43: 245 | X43: 128 | Y43: 375 | Z43: 503 | AA43: 748 | AB43: 510 | AC43: 104 | AD43: 614 | AE43: 729 | AF43: 630 | AG43: 1359 | AH43: 1973 | AI43: 680 | AJ43: 628 | AK43: 1308 | AL43: 653 | AM43: 319 | AN43: 972 | AO43: 2280 | AP43: 2617 | AQ43: 1085 | AR43: 3702 | AS43: 1969 | AT43: 203 | AU43: 2172 | AV43: 5874 | AW43: 1404 | AX43: 1509 | AY43: 2913 | AZ43: 3493 | BA43: 3004 | BB43: 6497 | BC43: 9410 | BD43: 4458 | BE43: 1110 | BF43: 5568 | BG43: 3575 | BH43: 445 | BI43: 4020 | BJ43: 9588 | BK43: 3300 | BL43: 1184 | BM43: 4484 | BN43: 3925 | BO43: 729 | BP43: 4654 | BQ43: 9138
A44: Aquisições | B44: 0 | C44: 0 | D44: 0 | E44: 0 | F44: 0 | G44: 0 | H44: 0 | I44: 0 | J44: 0 | K44: 0 | L44: 0 | M44: 0 | N44: 0 | O44: 0 | P44: 0 | Q44: 0 | R44: 0 | S44: 0 | T44: 0 | U44: 0 | V44: 0 | W44: 0 | X44: 0 | Y44: 0 | Z44: 0 | AA44: 0 | AB44: 0 | AC44: 0 | AD44: 0 | AE44: 0 | AF44: 0 | AG44: 0 | AH44: 0 | AI44: 0 | AJ44: 0 | AK44: 0 | AL44: 0 | AM44: 0 | AN44: 0 | AO44: 0 | AP44: 0 | AQ44: 0 | AR44: 0 | AS44: 0 | AT44: 0 | AU44: 0 | AV44: 0 | AW44: 0 | AX44: 0 | AY44: 0 | AZ44: 0 | BA44: 0 | BB44: 0 | BC44: 0 | BD44: 0 | BE44: 0 | BF44: 0 | BG44: 0 | BH44: 0 | BI44: 0 | BJ44: 0 | BK44: 17064 | BL44: 0 | BM44: 17064 | BN44: 0 | BO44: 0 | BP44: 0 | BQ44: 17064
A45: Egressos | B45: 0 | C45: 0 | D45: 0 | E45: 0 | F45: 0 | G45: 0 | H45: 0 | I45: 0 | J45: 0 | K45: 0 | L45: 0 | M45: 0 | N45: 0 | O45: 0 | P45: 0 | Q45: 0 | R45: 0 | S45: 0 | T45: 0 | U45: 0 | V45: 0 | W45: 0 | X45: 0 | Y45: 0 | Z45: 0 | AA45: 0 | AB45: 0 | AC45: 0 | AD45: 0 | AE45: 0 | AF45: 0 | AG45: 0 | AH45: 0 | AI45: 0 | AJ45: -49 | AK45: -49 | AL45: -450 | AM45: -124 | AN45: -574 | AO45: -623 | AP45: -271 | AQ45: -82 | AR45: -353 | AS45: -487 | AT45: -72 | AU45: -559 | AV45: -912 | AW45: -135 | AX45: -609 | AY45: -744 | AZ45: -101 | BA45: -543 | BB45: -644 | BC45: -1388 | BD45: -1512 | BE45: -3978 | BF45: -5490 | BG45: -586 | BH45: -1387 | BI45: -1973 | BJ45: -7463 | BK45: -1453 | BL45: -4134 | BM45: -5587 | BN45: -1435 | BO45: -1107 | BP45: -2542 | BQ45: -8129
A46: Evasão | B46: 0 | C46: 0 | D46: 0 | E46: 0 | F46: 0 | G46: 0 | H46: 0 | I46: 0 | J46: 0 | K46: 0 | L46: 0 | M46: 0 | N46: 0 | O46: -4 | P46: -4 | Q46: -98 | R46: -12 | S46: -110 | T46: -114 | U46: -35 | V46: -46 | W46: -81 | X46: 0 | Y46: -93 | Z46: -93 | AA46: -174 | AB46: -59 | AC46: -30 | AD46: -89 | AE46: -398 | AF46: -35 | AG46: -433 | AH46: -522 | AI46: -413 | AJ46: -84 | AK46: -497 | AL46: -239 | AM46: -54 | AN46: -293 | AO46: -790 | AP46: -17 | AQ46: -36 | AR46: -53 | AS46: -7 | AT46: -8 | AU46: -15 | AV46: -68 | AW46: -1 | AX46: -40 | AY46: -41 | AZ46: -624 | BA46: -538 | BB46: -1162 | BC46: -1203 | BD46: -1233 | BE46: -1078 | BF46: -2311 | BG46: -580 | BH46: -592 | BI46: -1172 | BJ46: -3483 | BK46: -314 | BL46: -456 | BM46: -770 | BN46: -669 | BO46: -479 | BP46: -1148 | BQ46: -1918
A47: Base Final | B47: 0 | C47: 0 | D47: 0 | E47: 0 | F47: 0 | G47: 0 | H47: 0 | I47: 0 | J47: 0 | K47: 0 | L47: 0 | M47: 0 | N47: 0 | O47: 81 | P47: 81 | Q47: 200 | R47: 231 | S47: 231 | T47: 231 | U47: 337 | V47: 395 | W47: 395 | X47: 523 | Y47: 805 | Z47: 805 | AA47: 805 | AB47: 1256 | AC47: 1330 | AD47: 1330 | AE47: 1661 | AF47: 2256 | AG47: 2256 | AH47: 2256 | AI47: 2523 | AJ47: 3018 | AK47: 3018 | AL47: 2982 | AM47: 3123 | AN47: 3123 | AO47: 3123 | AP47: 5452 | AQ47: 6419 | AR47: 6419 | AS47: 7894 | AT47: 8017 | AU47: 8017 | AV47: 8017 | AW47: 9285 | AX47: 10145 | AY47: 10145 | AZ47: 12913 | BA47: 14836 | BB47: 14836 | BC47: 14836 | BD47: 16549 | BE47: 12603 | BF47: 12603 | BG47: 15012 | BH47: 13478 | BI47: 13478 | BJ47: 13478 | BK47: 32075 | BL47: 28669 | BM47: 28669 | BN47: 30490 | BO47: 29633 | BP47: 29633 | BQ47: 29633
A51: MOVIMENTAÇÃO DA BASE DE ALUNOS DE CURSOS TÉCNICOS
A52: Número de Alunos | B52: 2013.1 | C52: 3T13 | D52: 4T13 | E52: 2013.2 | F52: 2013 | G52: 1T14 | H52: 2T14 | I52: 2014.1 | J52: 3T14 | K52: 4T14 | L52: 2014.2 | M52: 2014 | N52: 1T15 | O52: 2T15 | P52: 2015.1 | Q52: 3T15 | R52: 4T15 | S52: 2015.2 | T52: 2015 | U52: 1T16 | V52: 2T16 | W52: 2016.1 | X52: 3T16 | Y52: 4T16 | Z52: 2016.2 | AA52: 2016 | AB52: 1T17 | AC52: 2T17 | AD52: 2017.1 | AE52: 3T17 | AF52: 4T17 | AG52: 2017.2 | AH52: 2017 | AI52: 1T18 | AJ52: 2T18 | AK52: 2018.1 | AL52: 3T18 | AM52: 4T18 | AN52: 2018.2 | AO52: 2018 | AP52: 1T19 | AQ52: 2T19 | AR52: 2019.1 | AS52: 3T19 | AT52: 4T19 | AU52: 2019.2 | AV52: 2019 | AW52: 1T20 | AX52: 2T20 | AY52: 2020.1 | AZ52: 3T20 | BA52: 4T20 | BB52: 2020.2 | BC52: 2020 | BD52: 1T21 | BE52: 2T21 | BF52: 2021.1 | BG52: 3T21 | BH52: 4T21 | BI52: 2021.2 | BJ52: 2021 | BK52: 1T22 | BL52: 2T22 | BM52: 2022.1 | BN52: 3T22 | BO52: 4T22 | BP52: 2022.2 | BQ52: 2022
A53: Base Inicial | B53: 738 | C53: 873 | D53: 35477 | E53: 873 | F53: 738 | G53: 20880 | H53: 19702 | I53: 20880 | J53: 20552 | K53: 21987 | L53: 20552 | M53: 20880 | N53: 16921 | O53: 16032 | P53: 16921 | Q53: 4809 | R53: 4701 | S53: 4809 | T53: 16921 | U53: 3005 | V53: 791 | W53: 3005 | X53: 772 | Y53: 366 | Z53: 772 | AA53: 3005 | AB53: 362 | AC53: 104 | AD53: 362 | AE53: 82 | AF53: 207 | AG53: 82 | AH53: 362 | AI53: 229 | AJ53: 329 | AK53: 229 | AL53: 199 | AM53: 239 | AN53: 199 | AO53: 229 | AP53: 183 | AQ53: 1204 | AR53: 183 | AS53: 1281 | AT53: 1179 | AU53: 1281 | AV53: 183 | AW53: 1169 | AX53: 1148 | AY53: 1169 | AZ53: 1291 | BA53: 1294 | BB53: 1291 | BC53: 1169 | BD53: 1276 | BE53: 1468 | BF53: 1276 | BG53: 1471 | BH53: 1792 | BI53: 1471 | BJ53: 1276 | BK53: 1726 | BL53: 2025 | BM53: 1726 | BN53: 1860 | BO53: 1661 | BP53: 1860 | BQ53: 1726
A54: Captação | B54: 739 | C54: 35183 | D54: 370 | E54: 35553 | F54: 36292 | G54: 20 | H54: 5235 | I54: 5255 | J54: 6207 | K54: 0 | L54: 6207 | M54: 11462 | N54: 0 | O54: 0 | P54: 0 | Q54: 1418 | R54: 0 | S54: 1418 | T54: 1418 | U54: 0 | V54: 0 | W54: 0 | X54: 0 | Y54: 0 | Z54: 0 | AA54: 0 | AB54: 121 | AC54: 0 | AD54: 121 | AE54: 127 | AF54: 22 | AG54: 149 | AH54: 270 | AI54: 155 | AJ54: 3 | AK54: 158 | AL54: 156 | AM54: 12 | AN54: 168 | AO54: 326 | AP54: 1021 | AQ54: 209 | AR54: 1230 | AS54: 86 | AT54: 91 | AU54: 177 | AV54: 1407 | AW54: 63 | AX54: 244 | AY54: 307 | AZ54: 224 | BA54: 148 | BB54: 372 | BC54: 679 | BD54: 312 | BE54: 121 | BF54: 433 | BG54: 409 | BH54: 58 | BI54: 467 | BJ54: 900 | BK54: 374 | BL54: 152 | BM54: 526 | BN54: 338 | BO54: 63 | BP54: 401 | BQ54: 927
A55: Aquisições | B55: 0 | C55: 0 | D55: 0 | E55: 0 | F55: 0 | G55: 0 | H55: 0 | I55: 0 | J55: 0 | K55: 0 | L55: 0 | M55: 0 | N55: 290 | O55: 0 | P55: 290 | Q55: 0 | R55: 0 | S55: 0 | T55: 290 | U55: 0 | V55: 0 | W55: 0 | X55: 0 | Y55: 0 | Z55: 0 | AA55: 0 | AB55: 0 | AC55: 0 | AD55: 0 | AE55: 0 | AF55: 0 | AG55: 0 | AH55: 0 | AI55: 0 | AJ55: 0 | AK55: 0 | AL55: 0 | AM55: 0 | AN55: 0 | AO55: 0 | AP55: 0 | AQ55: 0 | AR55: 0 | AS55: 0 | AT55: 0 | AU55: 0 | AV55: 0 | AW55: 0 | AX55: 0 | AY55: 0 | AZ55: 0 | BA55: 0 | BB55: 0 | BC55: 0 | BD55: 0 | BE55: 0 | BF55: 0 | BG55: 0 | BH55: 0 | BI55: 0 | BJ55: 0 | BK55: 0 | BL55: 0 | BM55: 0 | BN55: 0 | BO55: 0 | BP55: 0 | BQ55: 0
A56: Egressos | B56: -243 | C56: -516 | D56: 0 | E56: -516 | F56: -759 | G56: -126 | H56: 0 | I56: -126 | J56: 0 | K56: -2579 | L56: -2579 | M56: -2705 | N56: 0 | O56: -10556 | P56: -10556 | Q56: -1015 | R56: -1526 | S56: -2541 | T56: -13097 | U56: -1966 | V56: 0 | W56: -1966 | X56: -374 | Y56: 0 | Z56: -374 | AA56: -2340 | AB56: -362 | AC56: 0 | AD56: -362 | AE56: 0 | AF56: 0 | AG56: 0 | AH56: -362 | AI56: 0 | AJ56: -92 | AK56: -92 | AL56: 0 | AM56: 0 | AN56: 0 | AO56: -92 | AP56: 0 | AQ56: -14 | AR56: -14 | AS56: -61 | AT56: -40 | AU56: -101 | AV56: -115 | AW56: -59 | AX56: -20 | AY56: -79 | AZ56: -152 | BA56: -134 | BB56: -286 | BC56: -365 | BD56: -28 | BE56: -39 | BF56: -67 | BG56: -21 | BH56: -99 | BI56: -120 | BJ56: -187 | BK56: -59 | BL56: -77 | BM56: -136 | BN56: -432 | BO56: -41 | BP56: -473 | BQ56: -609
A57: Evasão | B57: -361 | C57: -63 | D57: -14967 | E57: -15030 | F57: -15391 | G57: -1072 | H57: -4385 | I57: -5457 | J57: -4772 | K57: -2487 | L57: -7259 | M57: -12716 | N57: -1179 | O57: -667 | P57: -1846 | Q57: -511 | R57: -170 | S57: -681 | T57: -2527 | U57: -248 | V57: -19 | W57: -267 | X57: -32 | Y57: -4 | Z57: -36 | AA57: -303 | AB57: -17 | AC57: -22 | AD57: -39 | AE57: -2 | AF57: 0 | AG57: -2 | AH57: -41 | AI57: -55 | AJ57: -41 | AK57: -96 | AL57: -116 | AM57: -68 | AN57: -184 | AO57: -280 | AP57: 0 | AQ57: -118 | AR57: -118 | AS57: -127 | AT57: -61 | AU57: -188 | AV57: -306 | AW57: -25 | AX57: -81 | AY57: -106 | AZ57: -69 | BA57: -32 | BB57: -101 | BC57: -207 | BD57: -92 | BE57: -79 | BF57: -171 | BG57: -67 | BH57: -25 | BI57: -92 | BJ57: -263 | BK57: -16 | BL57: -240 | BM57: -256 | BN57: -105 | BO57: -174 | BP57: -279 | BQ57: -535
A58: Base Final | B58: 873 | C58: 35477 | D58: 20880 | E58: 20880 | F58: 20880 | G58: 19702 | H58: 20552 | I58: 20552 | J58: 21987 | K58: 16921 | L58: 16921 | M58: 16921 | N58: 16032 | O58: 4809 | P58: 4809 | Q58: 4701 | R58: 3005 | S58: 3005 | T58: 3005 | U58: 791 | V58: 772 | W58: 772 | X58: 366 | Y58: 362 | Z58: 362 | AA58: 362 | AB58: 104 | AC58: 82 | AD58: 82 | AE58: 207 | AF58: 229 | AG58: 229 | AH58: 229 | AI58: 329 | AJ58: 199 | AK58: 199 | AL58: 239 | AM58: 183 | AN58: 183 | AO58: 183 | AP58: 1204 | AQ58: 1281 | AR58: 1281 | AS58: 1179 | AT58: 1169 | AU58: 1169 | AV58: 1169 | AW58: 1148 | AX58: 1291 | AY58: 1291 | AZ58: 1294 | BA58: 1276 | BB58: 1276 | BC58: 1276 | BD58: 1468 | BE58: 1471 | BF58: 1471 | BG58: 1792 | BH58: 1726 | BI58: 1726 | BJ58: 1726 | BK58: 2025 | BL58: 1860 | BM58: 1860 | BN58: 1661 | BO58: 1509 | BP58: 1509 | BQ58: 1509
A62: MOVIMENTAÇÃO DA BASE DE ALUNOS DE EAD (CURSOS TÉCNICOS)
A63: Número de Alunos | B63: 2013.1 | C63: 3T13 | D63: 4T13 | E63: 2013.2 | F63: 2013 | G63: 1T14 | H63: 2T14 | I63: 2014.1 | J63: 3T14 | K63: 4T14 | L63: 2014.2 | M63: 2014 | N63: 1T15 | O63: 2T15 | P63: 2015.1 | Q63: 3T15 | R63: 4T15 | S63: 2015.2 | T63: 2015 | U63: 1T16 | V63: 2T16 | W63: 2016.1 | X63: 3T16 | Y63: 4T16 | Z63: 2016.2 | AA63: 2016 | AB63: 1T17 | AC63: 2T17 | AD63: 2017.1 | AE63: 3T17 | AF63: 4T17 | AG63: 2017.2 | AH63: 2017 | AI63: 1T18 | AJ63: 2T18 | AK63: 2018.1 | AL63: 3T18 | AM63: 4T18 | AN63: 2018.2 | AO63: 2018 | AP63: 1T19 | AQ63: 2T19 | AR63: 2019.1 | AS63: 3T19 | AT63: 4T19 | AU63: 2019.2 | AV63: 2019 | AW63: 1T20 | AX63: 2T20 | AY63: 2020.1 | AZ63: 3T20 | BA63: 4T20 | BB63: 2020.2 | BC63: 2020 | BD63: 1T21 | BE63: 2T21 | BF63: 2021.1 | BG63: 3T21 | BH63: 4T21 | BI63: 2021.2 | BJ63: 2021 | BK63: 1T22 | BL63: 2T22 | BM63: 2022.1 | BN63: 3T22 | BO63: 4T22 | BP63: 2022.2 | BQ63: 2022
A64: Base Inicial | B64: 0 | C64: 0 | D64: 0 | E64: 0 | F64: 0 | G64: 0 | H64: 0 | I64: 0 | J64: 0 | K64: 0 | L64: 0 | M64: 0 | N64: 0 | O64: 0 | P64: 0 | Q64: 0 | R64: 0 | S64: 0 | T64: 0 | U64: 0 | V64: 0 | W64: 0 | X64: 0 | Y64: 0 | Z64: 0 | AA64: 0 | AB64: 0 | AC64: 54 | AD64: 0 | AE64: 44 | AF64: 80 | AG64: 44 | AH64: 0 | AI64: 98 | AJ64: 110 | AK64: 98 | AL64: 69 | AM64: 73 | AN64: 69 | AO64: 98 | AP64: 72 | AQ64: 78 | AR64: 72 | AS64: 61 | AT64: 67 | AU64: 61 | AV64: 72 | AW64: 65 | AX64: 73 | AY64: 65 | AZ64: 29 | BA64: 28 | BB64: 29 | BC64: 65 | BD64: 28 | BE64: 27 | BF64: 28 | BG64: 0 | BH64: 3 | BI64: 0 | BJ64: 28 | BK64: 0 | BL64: 408 | BM64: 0 | BN64: 408 | BO64: 446 | BP64: 408 | BQ64: 0
A65: Captação | B65: 0 | C65: 0 | D65: 0 | E65: 0 | F65: 0 | G65: 0 | H65: 0 | I65: 0 | J65: 0 | K65: 0 | L65: 0 | M65: 0 | N65: 0 | O65: 0 | P65: 0 | Q65: 0 | R65: 0 | S65: 0 | T65: 0 | U65: 0 | V65: 0 | W65: 0 | X65: 0 | Y65: 0 | Z65: 0 | AA65: 0 | AB65: 81 | AC65: 0 | AD65: 81 | AE65: 94 | AF65: 18 | AG65: 112 | AH65: 193 | AI65: 38 | AJ65: 5 | AK65: 43 | AL65: 50 | AM65: 0 | AN65: 50 | AO65: 93 | AP65: 6 | AQ65: 8 | AR65: 14 | AS65: 6 | AT65: 2 | AU65: 8 | AV65: 22 | AW65: 8 | AX65: 0 | AY65: 8 | AZ65: 0 | BA65: 0 | BB65: 0 | BC65: 8 | BD65: 2 | BE65: 0 | BF65: 2 | BG65: 3 | BH65: 11 | BI65: 14 | BJ65: 16 | BK65: 0 | BL65: 0 | BM65: 0 | BN65: 43 | BO65: 0 | BP65: 43 | BQ65: 43
A66: Aquisições | B66: 0 | C66: 0 | D66: 0 | E66: 0 | F66: 0 | G66: 0 | H66: 0 | I66: 0 | J66: 0 | K66: 0 | L66: 0 | M66: 0 | N66: 0 | O66: 0 | P66: 0 | Q66: 0 | R66: 0 | S66: 0 | T66: 0 | U66: 0 | V66: 0 | W66: 0 | X66: 0 | Y66: 0 | Z66: 0 | AA66: 0 | AB66: 0 | AC66: 0 | AD66: 0 | AE66: 0 | AF66: 0 | AG66: 0 | AH66: 0 | AI66: 0 | AJ66: 0 | AK66: 0 | AL66: 0 | AM66: 0 | AN66: 0 | AO66: 0 | AP66: 0 | AQ66: 0 | AR66: 0 | AS66: 0 | AT66: 0 | AU66: 0 | AV66: 0 | AW66: 0 | AX66: 0 | AY66: 0 | AZ66: 0 | BA66: 0 | BB66: 0 | BC66: 0 | BD66: 0 | BE66: 0 | BF66: 0 | BG66: 0 | BH66: 0 | BI66: 0 | BJ66: 0 | BK66: 408 | BL66: 0 | BM66: 408 | BN66: 0 | BO66: 0 | BP66: 0 | BQ66: 408
A67: Egressos | B67: 0 | C67: 0 | D67: 0 | E67: 0 | F67: 0 | G67: 0 | H67: 0 | I67: 0 | J67: 0 | K67: 0 | L67: 0 | M67: 0 | N67: 0 | O67: 0 | P67: 0 | Q67: 0 | R67: 0 | S67: 0 | T67: 0 | U67: 0 | V67: 0 | W67: 0 | X67: 0 | Y67: 0 | Z67: 0 | AA67: 0 | AB67: 0 | AC67: 0 | AD67: 0 | AE67: 0 | AF67: 0 | AG67: 0 | AH67: 0 | AI67: 0 | AJ67: 0 | AK67: 0 | AL67: 0 | AM67: 0 | AN67: 0 | AO67: 0 | AP67: 0 | AQ67: 0 | AR67: 0 | AS67: 0 | AT67: 0 | AU67: 0 | AV67: 0 | AW67: 0 | AX67: -44 | AY67: -44 | AZ67: 0 | BA67: 0 | BB67: 0 | BC67: -44 | BD67: -1 | BE67: -27 | BF67: -28 | BG67: 0 | BH67: 0 | BI67: 0 | BJ67: -28 | BK67: 0 | BL67: 0 | BM67: 0 | BN67: 0 | BO67: -2 | BP67: -2 | BQ67: -2
A68: Evasão | B68: 0 | C68: 0 | D68: 0 | E68: 0 | F68: 0 | G68: 0 | H68: 0 | I68: 0 | J68: 0 | K68: 0 | L68: 0 | M68: 0 | N68: 0 | O68: 0 | P68: 0 | Q68: 0 | R68: 0 | S68: 0 | T68: 0 | U68: 0 | V68: 0 | W68: 0 | X68: 0 | Y68: 0 | Z68: 0 | AA68: 0 | AB68: -27 | AC68: -10 | AD68: -37 | AE68: -58 | AF68: 0 | AG68: -58 | AH68: -95 | AI68: -26 | AJ68: -46 | AK68: -72 | AL68: -46 | AM68: -1 | AN68: -47 | AO68: -119 | AP68: 0 | AQ68: -25 | AR68: -25 | AS68: 0 | AT68: -4 | AU68: -4 | AV68: -29 | AW68: 0 | AX68: 0 | AY68: 0 | AZ68: -1 | BA68: 0 | BB68: -1 | BC68: -1 | BD68: -2 | BE68: 0 | BF68: -2 | BG68: 0 | BH68: -14 | BI68: -14 | BJ68: -16 | BK68: 0 | BL68: 0 | BM68: 0 | BN68: -5 | BO68: -12 | BP68: -17 | BQ68: -17
A69: Base Final | B69: 0 | C69: 0 | D69: 0 | E69: 0 | F69: 0 | G69: 0 | H69: 0 | I69: 0 | J69: 0 | K69: 0 | L69: 0 | M69: 0 | N69: 0 | O69: 0 | P69: 0 | Q69: 0 | R69: 0 | S69: 0 | T69: 0 | U69: 0 | V69: 0 | W69: 0 | X69: 0 | Y69: 0 | Z69: 0 | AA69: 0 | AB69: 54 | AC69: 44 | AD69: 44 | AE69: 80 | AF69: 98 | AG69: 98 | AH69: 98 | AI69: 110 | AJ69: 69 | AK69: 69 | AL69: 73 | AM69: 72 | AN69: 72 | AO69: 72 | AP69: 78 | AQ69: 61 | AR69: 61 | AS69: 67 | AT69: 65 | AU69: 65 | AV69: 65 | AW69: 73 | AX69: 29 | AY69: 29 | AZ69: 28 | BA69: 28 | BB69: 28 | BC69: 28 | BD69: 27 | BE69: 0 | BF69: 0 | BG69: 3 | BH69: 0 | BI69: 0 | BJ69: 0 | BK69: 408 | BL69: 408 | BM69: 408 | BN69: 446 | BO69: 432 | BP69: 432 | BQ69: 432
A73: MOVIMENTAÇÃO DA BASE DE ALUNOS TOTAL
A74: Número de Alunos | B74: 2013.1 | C74: 3T13 | D74: 4T13 | E74: 2013.2 | F74: 2013 | G74: 1T14 | H74: 2T14 | I74: 2014.1 | J74: 3T14 | K74: 4T14 | L74: 2014.2 | M74: 2014 | N74: 1T15 | O74: 2T15 | P74: 2015.1 | Q74: 3T15 | R74: 4T15 | S74: 2015.2 | T74: 2015 | U74: 1T16 | V74: 2T16 | W74: 2016.1 | X74: 3T16 | Y74: 4T16 | Z74: 2016.2 | AA74: 2016 | AB74: 1T17 | AC74: 2T17 | AD74: 2017.1 | AE74: 3T17 | AF74: 4T17 | AG74: 2017.2 | AH74: 2017 | AI74: 1T18 | AJ74: 2T18 | AK74: 2018.1 | AL74: 3T18 | AM74: 4T18 | AN74: 2018.2 | AO74: 2018 | AP74: 1T19 | AQ74: 2T19 | AR74: 2019.1 | AS74: 3T19 | AT74: 4T19 | AU74: 2019.2 | AV74: 2019 | AW74: 1T20 | AX74: 2T20 | AY74: 2020.1 | AZ74: 3T20 | BA74: 4T20 | BB74: 2020.2 | BC74: 2020 | BD74: 1T21 | BE74: 2T21 | BF74: 2021.1 | BG74: 3T21 | BH74: 4T21 | BI74: 2021.2 | BJ74: 2021 | BK74: 1T22 | BL74: 2T22 | BM74: 2022.1 | BN74: 3T22 | BO74: 4T22 | BP74: 2022.2 | BQ74: 2022
A75: Base Inicial | B75: 56687 | C75: 76206 | D75: 113580 | E75: 76206 | F75: 56687 | G75: 98813 | H75: 113523 | I75: 98813 | J75: 115887 | K75: 118944 | L75: 115887 | M75: 98813 | N75: 128458 | O75: 162964 | P75: 128458 | Q75: 149851 | R75: 138729 | S75: 149851 | T75: 128458 | U75: 140701 | V75: 151190 | W75: 140701 | X75: 152434 | Y75: 145920 | Z75: 152434 | AA75: 140701 | AB75: 147862 | AC75: 157003 | AD75: 147862 | AE75: 158418 | AF75: 150270 | AG75: 158418 | AH75: 147862 | AI75: 152423 | AJ75: 160019 | AK75: 152423 | AL75: 162976 | AM75: 146897 | AN75: 162976 | AO75: 152423 | AP75: 150209 | AQ75: 161909 | AR75: 150209 | AS75: 165482 | AT75: 161835 | AU75: 165482 | AV75: 150209 | AW75: 184811 | AX75: 185207 | AY75: 184811 | AZ75: 183536 | BA75: 181924 | BB75: 183536 | BC75: 184811 | BD75: 191237 | BE75: 218109 | BF75: 191237 | BG75: 223802 | BH75: 239968 | BI75: 223802 | BJ75: 191237 | BK75: 223587 | BL75: 336223 | BM75: 223587 | BN75: 325071 | BO75: 307152 | BP75: 325071 | BQ75: 223587
A76: Captação | B76: 27535 | C76: 50248 | D76: 422 | E76: 50670 | F76: 78205 | G76: 30070 | H76: 7764 | I76: 37834 | J76: 21297 | K76: 4468 | L76: 25765 | M76: 63599 | N76: 42451 | O76: 6047 | P76: 48498 | Q76: 18770 | R76: 4425 | S76: 23195 | T76: 71693 | U76: 42253 | V76: 4538 | W76: 46791 | X76: 20161 | Y76: 2367 | Z76: 22528 | AA76: 69319 | AB76: 49127 | AC76: 6953 | AD76: 56080 | AE76: 25110 | AF76: 4006 | AG76: 29116 | AH76: 85196 | AI76: 47608 | AJ76: 9641 | AK76: 57249 | AL76: 23394 | AM76: 3264 | AN76: 26658 | AO76: 83907 | AP76: 55870 | AQ76: 10805 | AR76: 66675 | AS76: 36759 | AT76: 3028 | AU76: 39787 | AV76: 106462 | AW76: 60564 | AX76: 7916 | AY76: 68480 | AZ76: 41292 | BA76: 11636 | BB76: 52928 | BC76: 121408 | BD76: 82316 | BE76: 21664 | BF76: 103980 | BG76: 53539 | BH76: 5808 | BI76: 59347 | BJ76: 163327 | BK76: 79433 | BL76: 15912 | BM76: 95345 | BN76: 50830 | BO76: 5898 | BP76: 56728 | BQ76: 152073
A77: Aquisições | B77: 4262 | C77: 0 | D77: 530 | E77: 530 | F77: 4792 | G77: 350 | H77: 0 | I77: 350 | J77: 1550 | K77: 12897 | L77: 14447 | M77: 14797 | N77: 18845 | O77: 0 | P77: 18845 | Q77: 350 | R77: 0 | S77: 350 | T77: 19195 | U77: 0 | V77: 0 | W77: 0 | X77: 0 | Y77: 0 | Z77: 0 | AA77: 0 | AB77: 0 | AC77: 0 | AD77: 0 | AE77: 0 | AF77: 0 | AG77: 0 | AH77: 0 | AI77: 0 | AJ77: 0 | AK77: 0 | AL77: 0 | AM77: 0 | AN77: 0 | AO77: 0 | AP77: 0 | AQ77: 0 | AR77: 0 | AS77: 0 | AT77: 24351 | AU77: 24351 | AV77: 24351 | AW77: 0 | AX77: 0 | AY77: 0 | AZ77: 0 | BA77: 4543 | BB77: 4543 | BC77: 4543 | BD77: 3143 | BE77: 1825 | BF77: 4968 | BG77: 0 | BH77: 135 | BI77: 135 | BJ77: 5103 | BK77: 87506 | BL77: 0 | BM77: 87506 | BN77: 0 | BO77: 0 | BP77: 0 | BQ77: 87506
A78: Egressos | B78: -2854 | C78: -3831 | D78: -737 | E78: -4568 | F78: -7422 | G78: -4298 | H78: -1408 | I78: -5706 | J78: -3358 | K78: -4858 | L78: -8216 | M78: -13922 | N78: -4815 | O78: -14325 | P78: -19140 | Q78: -7554 | R78: -2800 | S78: -10354 | T78: -29494 | U78: -12024 | V78: -1793 | W78: -13817 | X78: -7696 | Y78: -528 | Z78: -8224 | AA78: -22041 | AB78: -13701 | AC78: -2239 | AD78: -15940 | AE78: -7100 | AF78: -1359 | AG78: -8459 | AH78: -24399 | AI78: -13877 | AJ78: -853 | AK78: -14730 | AL78: -8611 | AM78: -1476 | AN78: -10087 | AO78: -24817 | AP78: -14018 | AQ78: -1540 | AR78: -15558 | AS78: -8813 | AT78: -1102 | AU78: -9915 | AV78: -25473 | AW78: -17172 | AX78: -1749 | AY78: -18921 | AZ78: -7793 | BA78: -1984 | BB78: -9777 | BC78: -28698 | BD78: -16397 | BE78: -6968 | BF78: -23365 | BG78: -9098 | BH78: -3188 | BI78: -12286 | BJ78: -35651 | BK78: -17774 | BL78: -5485 | BM78: -23259 | BN78: -10824 | BO78: -2329 | BP78: -13153 | BQ78: -36412
A79: Evasão | B79: -9424 | C79: -9043 | D79: -14982 | E79: -24025 | F79: -33449 | G79: -11412 | H79: -3992 | I79: -15404 | J79: -16432 | K79: -2993 | L79: -19425 | M79: -34829 | N79: -21975 | O79: -4835 | P79: -26810 | Q79: -22688 | R79: 347 | S79: -22341 | T79: -49151 | U79: -19740 | V79: -1501 | W79: -21241 | X79: -18979 | Y79: 103 | Z79: -18876 | AA79: -40117 | AB79: -26285 | AC79: -3299 | AD79: -29584 | AE79: -26158 | AF79: -494 | AG79: -26652 | AH79: -56236 | AI79: -26135 | AJ79: -5831 | AK79: -31966 | AL79: -30862 | AM79: 1524 | AN79: -29338 | AO79: -61304 | AP79: -30152 | AQ79: -5692 | AR79: -35844 | AS79: -31593 | AT79: -3301 | AU79: -34894 | AV79: -70738 | AW79: -42996 | AX79: -7838 | AY79: -50834 | AZ79: -35111 | BA79: -4882 | BB79: -39993 | BC79: -90827 | BD79: -42190 | BE79: -10828 | BF79: -53018 | BG79: -28275 | BH79: -19136 | BI79: -47411 | BJ79: -100429 | BK79: -36529 | BL79: -21579 | BM79: -58108 | BN79: -57925 | BO79: -15559 | BP79: -73484 | BQ79: -131592
A80: Base Final | B80: 76206 | C80: 113580 | D80: 98813 | E80: 98813 | F80: 98813 | G80: 113523 | H80: 115887 | I80: 115887 | J80: 118944 | K80: 128458 | L80: 128458 | M80: 128458 | N80: 162964 | O80: 149851 | P80: 149851 | Q80: 138729 | R80: 140701 | S80: 140701 | T80: 140701 | U80: 151190 | V80: 152434 | W80: 152434 | X80: 145920 | Y80: 147862 | Z80: 147862 | AA80: 147862 | AB80: 157003 | AC80: 158418 | AD80: 158418 | AE80: 150270 | AF80: 152423 | AG80: 152423 | AH80: 152423 | AI80: 160019 | AJ80: 162976 | AK80: 162976 | AL80: 146897 | AM80: 150209 | AN80: 150209 | AO80: 150209 | AP80: 161909 | AQ80: 165482 | AR80: 165482 | AS80: 161835 | AT80: 184811 | AU80: 184811 | AV80: 184811 | AW80: 185207 | AX80: 183536 | AY80: 183536 | AZ80: 181924 | BA80: 191237 | BB80: 191237 | BC80: 191237 | BD80: 218109 | BE80: 223802 | BF80: 223802 | BG80: 239968 | BH80: 223587 | BI80: 223587 | BJ80: 223587 | BK80: 336223 | BL80: 325071 | BM80: 325071 | BN80: 307152 | BO80: 295162 | BP80: 295162 | BQ80: 295162

Sheet Histórico de Alunos FIES
A2: GRUPO SER EDUCACIONAL
A3: HISTÓRICO DE ALUNOS FIES
A7: FIES ('000) | B7: Dez/10 | C7: Dez/11 | D7: Dez/12 | E7: 2T13 | F7: 3T13 | G7: 4T13 | H7: 1T14 | I7: 2T14 | J7: 3T14 | K7: 4T14 | L7: 1T15 | M7: 2T15 | N7: 3T15 | O7: 4T15 | P7: 1T16 | Q7: 2T16 | R7: 3T16 | S7: 4T16 | T7: 1T17 | U7: 2T17 | V7: 3T17 | W7: 4T17 | X7: 1T18 | Y7: 2T18 | Z7: 3T18 | AA7: 4T18 | AB7: 1T19 | AC7: 2T19 | AD7: 3T19 | AE7: 4T19 | AF7: 1T20 | AG7: 2T20 | AH7: 3T20 | AI7: 4T20 | AJ7: 1T21 | AK7: 2T21 | AL7: 3T21 | AM7: 4T21 | AN7: 1T22 | AO7: 2T22 | AP7: 3T22 | AQ7: 4T22
A8: Alunos de Graduação Híbrida (presencial) | B8: 28079 | C8: 33483 | D8: 48670 | E8: 66857 | F8: 69916 | G8: 70255 | H8: 84895 | I8: 86503 | J8: 87710 | K8: 101195 | L8: 135622 | M8: 132311 | N8: 122048 | O8: 123988 | P8: 135359 | Q8: 136400 | R8: 129329 | S8: 131092 | T8: 140159 | U8: 142468 | V8: 131275 | W8: 133945 | X8: 135694 | Y8: 138670 | Z8: 123268 | AA8: 127837 | AB8: 127829 | AC8: 132546 | AD8: 123800 | AE8: 145496 | AF8: 140671 | AG8: 138712 | AH8: 124953 | AI8: 131613 | AJ8: 129739 | AK8: 134766 | AL8: 132578 | AM8: 132711 | AN8: 138397 | AO8: 139624 | AP8: 135565 | AQ8: 136100
A10: Alunos FIES | B10: 1017 | C10: 2896 | D10: 15916 | E10: 26348 | F10: 28477 | G10: 31432 | H10: 37329 | I10: 44992 | J10: 44942 | K10: 48048 | L10: 47758 | M10: 56694 | N10: 52486 | O10: 56089 | P10: 57842 | Q10: 61408 | R10: 58802 | S10: 58840 | T10: 52236 | U10: 58673 | V10: 54669 | W10: 55565 | X10: 44858 | Y10: 48154 | Z10: 39619 | AA10: 40427 | AB10: 31243 | AC10: 34554 | AD10: 29100 | AE10: 34156 | AF10: 23419 | AG10: 25612 | AH10: 20656 | AI10: 20137 | AJ10: 14487 | AK10: 15292 | AL10: 15410 | AM10: 16319 | AN10: 10521 | AO10: 13399 | AP10: 13534 | AQ10: 14321
A11: % de Alunos FIES | B11: 0.03621923858 | C11: 0.08649165248 | D11: 0.3270186973 | E11: 0.3940948592 | F11: 0.4073030494 | G11: 0.4473987617 | H11: 0.4397078744 | I11: 0.5201206895 | J11: 0.5123931137 | K11: 0.4748060675 | L11: 0.3521405082 | M11: 0.4284904505 | N11: 0.4300439171 | O11: 0.4523744233 | P11: 0.4273228969 | Q11: 0.4502052786 | R11: 0.454669873 | S11: 0.4488450859 | T11: 0.3726910152 | U11: 0.4118328326 | V11: 0.4164463912 | W11: 0.414834447 | X11: 0.3305820449 | Y11: 0.3472560756 | Z11: 0.3214053931 | AA11: 0.3162386477 | AB11: 0.2444124573 | AC11: 0.2606944004 | AD11: 0.2350565428 | AE11: 0.2347555947 | AF11: 0.1664806534 | AG11: 0.1846415595 | AH11: 0.1653101566 | AI11: 0.1530016032 | AJ11: 0.1116626458 | AK11: 0.1134707567 | AL11: 0.1162334626 | AM11: 0.1229664459 | AN11: 0.07602043397 | AO11: 0.0959648771 | AP11: 0.09983402796 | AQ11: 0.1052240999
A12: Alunos EDUCRED | M12: 419 | N12: 505 | O12: 754 | P12: 921 | Q12: 1021 | R12: 1914 | S12: 1922 | T12: 1385.029303 | U12: 2548 | V12: 2189 | W12: 2390 | X12: 3104 | Y12: 3905 | Z12: 4037 | AA12: 3952 | AB12: 4007 | AC12: 4439 | AD12: 3350 | AE12: 4464 | AF12: 3189 | AG12: 4970 | AH12: 3084 | AI12: 3779 | AJ12: 2168 | AK12: 3335 | AL12: 2368 | AM12: 2885 | AN12: 1623 | AO12: 2135 | AP12: 1488 | AQ12: 1738
A13: % de Alunos EDUCRED | M13: 0.003166781296 | N13: 0.004137716308 | O13: 0.006081233668 | P13: 0.006804128281 | Q13: 0.007485337243 | R13: 0.01479946493 | S13: 0.01466145913 | T13: 0.009881843497 | U13: 0.01788471797 | V13: 0.01667491906 | W13: 0.01784314457 | X13: 0.02287499816 | Y13: 0.02816038076 | Z13: 0.03274978097 | AA13: 0.03091436751 | AB13: 0.03134656455 | AC13: 0.03349025999 | AD13: 0.02705977383 | AE13: 0.03068125584 | AF13: 0.02266991775 | AG13: 0.03582963262 | AH13: 0.02468128016 | AI13: 0.02871296908 | AJ13: 0.01671047256 | AK13: 0.02474659781 | AL13: 0.01786118361 | AM13: 0.02173896663 | AN13: 0.01172713281 | AO13: 0.01529106744 | AP13: 0.01097628444 | AQ13: 0.01277002204
A14: Alunos PRAVALER | M14: 500 | N14: 814 | O14: 954 | P14: 1114 | Q14: 1561 | R14: 1178 | S14: 1794 | T14: 1447.025854 | U14: 1890 | V14: 1598 | W14: 2873 | X14: 2520 | Y14: 3352 | Z14: 2983 | AA14: 3265 | AB14: 2643 | AC14: 1841 | AD14: 2273 | AE14: 2168 | AF14: 1657 | AG14: 1848 | AH14: 1200 | AI14: 1612 | AJ14: 772 | AK14: 839 | AL14: 641 | AM14: 356 | AN14: 377 | AO14: 563 | AP14: 777 | AQ14: 1071
A15: % de Alunos PRAVALER | M15: 0.003778975293 | N15: 0.006669507079 | O15: 0.007694292996 | P15: 0.008229966238 | Q15: 0.01144428152 | R15: 0.009108552606 | S15: 0.01368504562 | T15: 0.01032417364 | U15: 0.01326613696 | V15: 0.01217291944 | W15: 0.02144910224 | X15: 0.01857119696 | Y15: 0.02417249585 | Z15: 0.02419930558 | AA15: 0.02554033652 | AB15: 0.02067605942 | AC15: 0.0138895176 | AD15: 0.01836025848 | AE15: 0.01490075329 | AF15: 0.01177925798 | AG15: 0.01332256762 | AH15: 0.009603610958 | AI15: 0.01224803021 | AJ15: 0.005950408127 | AK15: 0.006225605865 | AL15: 0.00483488965 | AM15: 0.002682520665 | AN15: 0.002724047487 | AO15: 0.004032258065 | AP15: 0.005731567883 | AQ15: 0.007869213813
A16: Total de Alunos com Financiamento | M16: 57613 | N16: 53805 | O16: 57797 | P16: 59877 | Q16: 63990 | R16: 61894 | S16: 62556 | T16: 55068.05516 | U16: 63111 | V16: 58456 | W16: 60828 | X16: 50482 | Y16: 55411 | Z16: 46639 | AA16: 47644 | AB16: 37893 | AC16: 40834 | AD16: 34723 | AE16: 40788 | AF16: 28265 | AG16: 32430 | AH16: 24940 | AI16: 25528 | AJ16: 17427 | AK16: 19466 | AL16: 18419 | AM16: 19560 | AN16: 12521 | AO16: 16097 | AP16: 15799 | AQ16: 17130
A17: % de Alunos com Financiamento | M17: 0.4354362071 | N17: 0.4408511405 | O17: 0.46614995 | P17: 0.4423569914 | Q17: 0.4691348974 | R17: 0.4785778905 | S17: 0.4771915906 | T17: 0.3928970323 | U17: 0.4429836876 | V17: 0.4452942297 | W17: 0.4541266938 | X17: 0.37202824 | Y17: 0.3995889522 | Z17: 0.3783544797 | AA17: 0.3726933517 | AB17: 0.2964350812 | AC17: 0.308074178 | AD17: 0.2804765751 | AE17: 0.2803376038 | AF17: 0.2009298292 | AG17: 0.2337937597 | AH17: 0.1995950477 | AI17: 0.1939626025 | AJ17: 0.1343235265 | AK17: 0.1444429604 | AL17: 0.1389295358 | AM17: 0.1473879332 | AN17: 0.09047161427 | AO17: 0.1152882026 | AP17: 0.1165418803 | AQ17: 0.1258633358
A19: Alunos de Graduação Digital | B19: 0 | C19: 0 | D19: 0 | E19: 0 | F19: 0 | G19: 0 | H19: 0 | I19: 0 | J19: 0 | K19: 0 | L19: 0 | M19: 0 | N19: 0 | O19: 0 | P19: 0 | Q19: 0 | R19: 0 | S19: 0 | T19: 0 | U19: 0 | V19: 0 | W19: 0 | X19: 0 | Y19: 0 | Z19: 0 | AA19: 0 | AB19: 0 | AC19: 0 | AD19: 0 | AE19: 0 | AF19: 0 | AG19: 0 | AH19: 0 | AI19: 38997 | AJ19: 67262 | AK19: 72591 | AL19: 51112 | AM19: 74251 | AN19: 162017 | AO19: 153329 | AP19: 137820 | AQ19: 126349
A20: PROUNI Graduação Híbrida | B20: 0 | C20: 0 | D20: 0 | E20: 0 | F20: 0 | G20: 0 | H20: 0 | I20: 0 | J20: 0 | K20: 0 | L20: 0 | M20: 0 | N20: 0 | O20: 0 | P20: 0 | Q20: 0 | R20: 0 | S20: 0 | T20: 0 | U20: 0 | V20: 0 | W20: 0 | X20: 0 | Y20: 0 | Z20: 0 | AA20: 0 | AB20: 0 | AC20: 0 | AD20: 0 | AE20: 0 | AF20: 0 | AG20: 0 | AH20: 0 | AI20: 14177 | AJ20: 15969 | AK20: 15868 | AL20: 16085 | AM20: 15630 | AN20: 13933 | AO20: 13430 | AP20: 15912 | AQ20: 12123
A21: PROUNI Graduação Digital | B21: 0 | C21: 0 | D21: 0 | E21: 0 | F21: 0 | G21: 0 | H21: 0 | I21: 0 | J21: 0 | K21: 0 | L21: 0 | M21: 0 | N21: 0 | O21: 0 | P21: 0 | Q21: 0 | R21: 0 | S21: 0 | T21: 0 | U21: 0 | V21: 0 | W21: 0 | X21: 0 | Y21: 0 | Z21: 0 | AA21: 0 | AB21: 0 | AC21: 0 | AD21: 0 | AE21: 0 | AF21: 0 | AG21: 0 | AH21: 0 | AI21: 592 | AJ21: 588 | AK21: 502 | AL21: 799 | AM21: 850 | AN21: 2135 | AO21: 4837 | AP21: 7257 | AQ21: 5196
A22: Total de Alunos com PROUNI | B22: 0 | C22: 0 | D22: 0 | E22: 0 | F22: 0 | G22: 0 | H22: 0 | I22: 0 | J22: 0 | K22: 0 | L22: 0 | M22: 0 | N22: 0 | O22: 0 | P22: 0 | Q22: 0 | R22: 0 | S22: 0 | T22: 0 | U22: 0 | V22: 0 | W22: 0 | X22: 0 | Y22: 0 | Z22: 0 | AA22: 0 | AB22: 0 | AC22: 0 | AD22: 0 | AE22: 0 | AF22: 0 | AG22: 0 | AH22: 0 | AI22: 14769 | AJ22: 16557 | AK22: 16370 | AL22: 16884 | AM22: 16480 | AN22: 16068 | AO22: 18267 | AP22: 23169 | AQ22: 17319
A23: % de Alunos PROUNI | B23: 0 | C23: 0 | D23: 0 | E23: 0 | F23: 0 | G23: 0 | H23: 0 | I23: 0 | J23: 0 | K23: 0 | L23: 0 | M23: 0 | N23: 0 | O23: 0 | P23: 0 | Q23: 0 | R23: 0 | S23: 0 | T23: 0 | U23: 0 | V23: 0 | W23: 0 | X23: 0 | Y23: 0 | Z23: 0 | AA23: 0 | AB23: 0 | AC23: 0 | AD23: 0 | AE23: 0 | AF23: 0 | AG23: 0 | AH23: 0 | AI23: 0.08656585194 | AJ23: 0.08404525865 | AK23: 0.07894597241 | AL23: 0.09191572758 | AM23: 0.0796281443 | AN23: 0.05348618906 | AO23: 0.06235471219 | AP23: 0.08474861459 | AQ23: 0.06598996376

Sheet Evasão Total
A2: GRUPO SER EDUCACIONAL
A3: HISTÓRICO DA EVASÃO TOTAL DE GRADUAÇÃO PRESENCIAL
B7: 1S13 | C7: 3T13 | D7: 2S13 | E7: 1T14 | F7: 1S14 | G7: 3T14 | H7: 2S14 | I7: 1T15 | J7: 1S15 | K7: 3T15 | L7: 2S15 | M7: 1T16 | N7: 1S16 | O7: 3T16 | P7: 2S16
B8: 0.119 | C8: 0.113 | D8: 0.113 | E8: 0.108 | F8: 0.1 | G8: 0.115 | H8: 0.101 | I8: 0.121 | J8: 0.15 | K8: 0.144 | L8: 0.1366519744 | M8: 0.1173198565 | N8: 0.1177745151 | O8: 0.111 | P8: 0.1031845391
A10: 1T17 | B10: 1S17 | C10: 3T17 | D10: 2S17 | E10: 1T18 | F10: 1S18 | G10: 3T18 | H10: 2S18 | I10: 1T19 | J10: 1S19 | K10: 3T19 | L10: 2S19 | M10: 1T20 | N10: 1S20 | O10: 3T20 | P10: 2S20
A11: 0.1378385527 | B11: 0.1378385527 | C11: 0.144 | D11: 0.1367020077 | E11: 0.1377719601 | F11: 0.1462468601 | G11: 0.163 | H11: 0.1401927617 | I11: 0.1599813372 | J11: 0.1569232335 | K11: 0.15 | L11: 0.130333949 | M11: 0.1840287244 | N11: 0.2065620281 | O11: 0.1698026709 | P11: 0.1587105764
A13: 1T21 | B13: 1S21 | C13: 3T21 | D13: 2S21 | E13: 1T22 | F13: 1S22 | G13: 3T22 | H13: 2S22
A14: 0.1677582413 | B14: 0.1660829425 | C14: 0.1253653162 | D14: 0.1299522071 | E14: 0.1397287352 | F14: 0.1582120507 | G14: 0.1296378333 | H14: 0.1344056273

Sheet Ticket Médio
A2: GRUPO SER EDUCACIONAL
A3: HISTÓRICO DE TICKET MÉDIO
A6: Ticket Médio Líquido | B6: 1T13 | C6: 2T13 | D6: 3T13 | E6: 4T13 | F6: 1T14 | G6: 2T14 | H6: 3T14 | I6: 4T14 | J6: 1T15 | K6: 2T15 | L6: 3T15 | M6: 4T15 | N6: 1T16 | O6: 2T16 | P6: 3T16 | Q6: 4T16 | R6: 1T17 | S6: 2T17 | T6: 3T17 | U6: 4T17 | V6: 1T18 | W6: 2T18 | X6: 3T18 | Y6: 4T18 | Z6: 1T19 | AA6: 2T19 | AB6: 3T19 | AC6: 4T19 | AD6: 1T20 | AE6: 2T20 | AF6: 3T20 | AG6: 4T20 | AH6: 1T21 | AI6: 2T21 | AJ6: 3T21 | AK6: 4T21 | AL6: 1T22 | AM6: 2T22 | AN6: 3T22 | AO6: 4T22
A7: Ensino Híbrido (Graduação) | B7: 535.78 | C7: 521.75 | D7: 505.19 | E7: 492.92 | F7: 562.8 | G7: 542.09 | H7: 555.55 | I7: 573.38 | J7: 625.75 | K7: 630.53 | L7: 639.98 | M7: 632.3 | N7: 675.31 | O7: 678.8636364 | P7: 684.0596894 | Q7: 699.0208857 | R7: 720.9170917 | S7: 731.82 | T7: 705.6123172 | U7: 716.8674736 | V7: 734.55 | W7: 763.77 | X7: 731.6952631 | Y7: 784.2767328 | Z7: 729.0217478 | AA7: 769.0925982 | AB7: 720.43182 | AC7: 731.3159527 | AD7: 651.2145618 | AE7: 746.0885525 | AF7: 628.674537 | AG7: 726.8580145 | AH7: 664.491766 | AI7: 812.3379876 | AJ7: 649.643243 | AK7: 803.0183019 | AL7: 651.3780354 | AM7: 834.544142 | AN7: 721.5664592 | AO7: 839.0908375
A8: Ensino Híbrido (Graduação + Pós) | AG8: 712.1920623 | AH8: 659.14 | AI8: 806.0521623 | AJ8: 646.28 | AK8: 799.7690897 | AL8: 650.3894629 | AM8: 831.8195519 | AN8: 719.8129748 | AO8: 836.338132
A9: Ensino Digital (graduação + pós) | V9: 203.3791925 | W9: 241.2594876 | X9: 236.9483726 | Z9: 209.5735411 | AA9: 235.3801991 | AB9: 225.8179621 | AC9: 248.5726213 | AD9: 213.3789398 | AE9: 218.015011 | AF9: 177.6148927 | AG9: 222.0900599 | AH9: 159.3357629 | AI9: 197.3583818 | AJ9: 178.4751427 | AK9: 222.2958154 | AL9: 161.0106058 | AM9: 182.1897 | AN9: 175.7652757 | AO9: 177.1250466
A10: Ticket Médio Líquido Total | V10: 655.9425034 | W10: 685.2244967 | X10: 641.4296143 | Z10: 623.9299824 | AA10: 664.9002238 | AB10: 594.8678937 | AC10: 640.1908069 | AD10: 549.1357968 | AE10: 621.3984387 | AF10: 490.3819093 | AG10: 570.0151062 | AH10: 463.1398667 | AI10: 570.2139408 | AJ10: 440.0178597 | AK10: 567.4106412 | AL10: 363.6301117 | AM10: 462.850894 | AN10: 432.4112201 | AO10: 483.0395521

Sheet CAPEX
A2: GRUPO SER EDUCACIONAL
A3: CAPEX
A6: CAPEX (Valores em R$ ('000)) | B6: 12M12 | C6: 9M13 | D6: 4T13 | E6: 12M13 | F6: 3M14 | G6: 2T14 | H6: 6M14 | I6: 3T14 | J6: 9M14 | K6: 4T14 | L6: 12M14 | M6: 3M15 | N6: 2T15 | O6: 6M15 | P6: 3T15 | Q6: 9M15 | R6: 4T15 | S6: 12M15 | T6: 3M16 | U6: 2T16 | V6: 6M16 | W6: 3T16 | X6: 9M16 | Y6: 4T16 | Z6: 12M16 | AA6: 3M17 | AB6: 2T17 | AC6: 6M17 | AD6: 3T17 | AE6: 9M17 | AF6: 4T17 | AG6: 12M17 | AH6: 3M18 | AI6: 2T18 | AJ6: 6M18 | AK6: 3T18 | AL6: 9M18 | AM6: 4T18 | AN6: 12M18 | AO6: 3M19 | AP6: 2T19 | AQ6: 6M19 | AR6: 3T19 | AS6: 9M19 | AT6: 4T19 | AU6: 12M19 | AV6: 3M20 | AW6: 2T20 | AX6: 6M20 | AY6: 3T20 | AZ6: 9M20 | BA6: 4T20 | BB6: 12M20 | BC6: 3M21 | BD6: 2T21 | BE6: 6M21 | BF6: 3T21 | BG6: 9M21 | BH6: 4T21 | BI6: 12M21 | BJ6: 3M22 | BK6: 2T22 | BL6: 6M22 | BM6: 3T22 | BN6: 9M22 | BO6: 4T22 | BP6: 12M22
A7: CAPEX Ex-Aquisições | B7: 80010 | C7: 70898 | D7: 31567 | E7: 102465 | F7: 34944 | G7: 29630 | H7: 64574 | I7: 32519 | J7: 97093 | K7: 64183 | L7: 161276 | M7: 38105 | N7: 12095 | O7: 50200 | P7: 11170 | Q7: 61370 | R7: 37578 | S7: 98948 | T7: 16102 | U7: 17999 | V7: 34101 | W7: 19087 | X7: 53188 | Y7: 27915 | Z7: 81103 | AA7: 33202 | AB7: 29928 | AC7: 63130 | AD7: 25927 | AE7: 89057 | AF7: 21309 | AG7: 110366 | AH7: 26458 | AI7: 21933 | AJ7: 48391 | AK7: 22084 | AL7: 70475 | AM7: 26851 | AN7: 97326 | AO7: 15655 | AP7: 14260 | AQ7: 29915 | AR7: 18708 | AS7: 48623 | AT7: 16612 | AU7: 65235 | AV7: 13730 | AW7: 10876 | AX7: 24606 | AY7: 14874 | AZ7: 39480 | BA7: 11365 | BB7: 50845 | BC7: 10230 | BD7: 18336 | BE7: 28566 | BF7: 23052 | BG7: 51618 | BH7: 20328 | BI7: 71946 | BJ7: 15683 | BK7: 26994 | BL7: 42677 | BM7: 36058 | BN7: 78735 | BO7: 29891 | BP7: 108626
A8: Aquisição de Imóveis / Construção / Reforma de Campi | B8: 65943 | C8: 50737 | D8: 1468 | E8: 52205 | F8: 21483 | G8: 18769 | H8: 40252 | I8: 19969 | J8: 60221 | K8: 21460 | L8: 81681 | M8: 17672 | N8: 819 | O8: 18491 | P8: 1729 | Q8: 20220 | R8: 25465 | S8: 45685 | T8: 11102 | U8: 8165 | V8: 19267 | W8: 8664 | X8: 27931 | Y8: 14040 | Z8: 41971 | AA8: 19120 | AB8: 10772 | AC8: 29892 | AD8: 12327 | AE8: 42219 | AF8: 9925 | AG8: 52144 | AH8: 10610 | AI8: 10104 | AJ8: 20714 | AK8: 9093 | AL8: 29807 | AM8: 9762 | AN8: 39569 | AO8: 4800 | AP8: 3072 | AQ8: 7872 | AR8: 3409 | AS8: 11281 | AT8: 5186 | AU8: 16467 | AV8: 4127 | AW8: 715 | AX8: 4842 | AY8: 1955 | AZ8: 6797 | BA8: 2577 | BB8: 9374 | BC8: 2928 | BD8: 7030 | BE8: 9958 | BF8: 5829 | BG8: 15787 | BH8: 8227 | BI8: 24014 | BJ8: 4543 | BK8: 9658 | BL8: 14201 | BM8: 10067 | BN8: 24268 | BO8: 5849 | BP8: 30117
A9: Equipamentos / Biblioteca / TI | B9: 9980 | C9: 13116 | D9: 23964 | E9: 37080 | F9: 10403 | G9: 9230 | H9: 19633 | I9: 9386 | J9: 29019 | K9: 14202 | L9: 43221 | M9: 17912 | N9: 5433 | O9: 23345 | P9: 4537 | Q9: 27882 | R9: -1590 | S9: 26292 | T9: 3195 | U9: 4730 | V9: 7925 | W9: 5069 | X9: 12994 | Y9: 9318 | Z9: 22312 | AA9: 10121 | AB9: 15140 | AC9: 25261 | AD9: 10712 | AE9: 35973 | AF9: 9423 | AG9: 45396 | AH9: 11939 | AI9: 9778 | AJ9: 21717 | AK9: 10192 | AL9: 31909 | AM9: 11131 | AN9: 43040 | AO9: 8263 | AP9: 8717 | AQ9: 16980 | AR9: 7867 | AS9: 24847 | AT9: 5397 | AU9: 30244 | AV9: 6298 | AW9: 3121 | AX9: 9419 | AY9: 3008 | AZ9: 12427 | BA9: 2958 | BB9: 15385 | BC9: 3304 | BD9: 5245 | BE9: 8549 | BF9: 12277 | BG9: 20826 | BH9: 8483 | BI9: 29309 | BJ9: 4827 | BK9: 9998 | BL9: 14825 | BM9: 12942 | BN9: 27767 | BO9: 12669 | BP9: 40436
A10: Licença MEC | B10: 1018 | C10: 2547 | D10: -55 | E10: 2492 | F10: 988 | G10: 757 | H10: 1745 | I10: 1256 | J10: 3001 | K10: 787 | L10: 3788 | M10: 717 | N10: 845 | O10: 1562 | P10: 489 | Q10: 2051 | R10: 11577 | S10: 13628 | T10: 46 | U10: 1424 | V10: 1470 | W10: 1366 | X10: 2836 | Y10: 1419 | Z10: 4255 | AA10: 179 | AB10: 1443 | AC10: 1622 | AD10: 1936 | AE10: 3558 | AF10: 842 | AG10: 4400 | AH10: 953 | AI10: 971 | AJ10: 1924 | AK10: 400 | AL10: 2324 | AM10: 529 | AN10: 2853 | AO10: 0 | AP10: 939 | AQ10: 939 | AR10: 0 | AS10: 939 | AT10: 1246 | AU10: 2185 | AV10: 14 | AW10: 195 | AX10: 209 | AY10: 233 | AZ10: 442 | BA10: 695 | BB10: 1137 | BC10: 112 | BD10: 961 | BE10: 1073 | BF10: 375 | BG10: 1448 | BH10: 452 | BI10: 1900 | BJ10: 99 | BK10: 534 | BL10: 633 | BM10: 600 | BN10: 1233 | BO10: 188 | BP10: 1421
A11: Licenças de Software | B11: 1195 | C11: 3298 | D11: 147 | E11: 3445 | F11: 1841 | G11: 770 | H11: 2611 | I11: 826 | J11: 3437 | K11: 847 | L11: 4284 | M11: 1510 | N11: 2134 | O11: 3644 | P11: 3318 | Q11: 6962 | R11: 1950 | S11: 8912 | T11: 1442 | U11: 2338 | V11: 3780 | W11: 1281 | X11: 5061 | Y11: 837 | Z11: 5898 | AA11: 2383 | AB11: 2180 | AC11: 4563 | AD11: 266 | AE11: 4829 | AF11: 153 | AG11: 4982 | AH11: 67 | AI11: 238 | AJ11: 305 | AK11: 1969 | AL11: 2274 | AM11: 1363 | AN11: 3637 | AO11: 237 | AP11: 543 | AQ11: 780 | AR11: 4242 | AS11: 5022 | AT11: 1128 | AU11: 6150 | AV11: 796 | AW11: 2513 | AX11: 3309 | AY11: 1060 | AZ11: 4369 | BA11: 884 | BB11: 5253 | BC11: 1198 | BD11: 3663 | BE11: 4861 | BF11: 3737 | BG11: 8598 | BH11: 1837 | BI11: 10435 | BJ11: 2401 | BK11: 3291 | BL11: 5692 | BM11: 7888 | BN11: 13580 | BO11: 7617 | BP11: 21197
A12: Convênios | B12: 0 | C12: 0 | D12: 593 | E12: 593 | F12: 47 | G12: 4 | H12: 51 | I12: 685 | J12: 736 | K12: 824 | L12: 1560 | M12: 213 | N12: 46 | O12: 259 | P12: 172 | Q12: 431 | R12: 298 | S12: 729 | T12: 119 | U12: 145 | V12: 264 | W12: 928 | X12: 1192 | Y12: 150 | Z12: 1342 | AA12: 150 | AB12: 16 | AC12: 166 | AD12: 18 | AE12: 184 | AF12: 430 | AG12: 614 | AH12: 702 | AI12: 271 | AJ12: 973 | AK12: 247 | AL12: 1220 | AM12: 791 | AN12: 2011 | AO12: 838 | AP12: 263 | AQ12: 1101 | AR12: 467 | AS12: 1568 | AT12: 599 | AU12: 2167 | AV12: 305 | AW12: 27 | AX12: 332 | AY12: 49 | AZ12: 381 | BA12: 2446 | BB12: 2827 | BC12: 1588 | BD12: 319 | BE12: 1907 | BF12: 759 | BG12: 2666 | BH12: 1142 | BI12: 3808 | BJ12: 593 | BK12: 1171 | BL12: 1764 | BM12: 850 | BN12: 2614 | BO12: 953 | BP12: 3567
A13: Intangíveis e Outros | B13: 1874 | C13: 1200 | D13: 5450 | E13: 6650 | F13: 182 | G13: 100 | H13: 282 | I13: 397 | J13: 679 | K13: 26063 | L13: 26742 | M13: 81 | N13: 2818 | O13: 2899 | P13: 925 | Q13: 3824 | R13: -122 | S13: 3702 | T13: 198 | U13: 1197 | V13: 1395 | W13: 1779 | X13: 3174 | Y13: 2151 | Z13: 5325 | AA13: 1249 | AB13: 377 | AC13: 1626 | AD13: 668 | AE13: 2294 | AF13: 536 | AG13: 2830 | AH13: 2187 | AI13: 571 | AJ13: 2758 | AK13: 183 | AL13: 2941 | AM13: 3275 | AN13: 6216 | AO13: 1517 | AP13: 726 | AQ13: 2243 | AR13: 2723 | AS13: 4966 | AT13: 3056 | AU13: 8022 | AV13: 2190 | AW13: 4305 | AX13: 6495 | AY13: 8569 | AZ13: 15064 | BA13: 1805 | BB13: 16869 | BC13: 1100 | BD13: 1118 | BE13: 2218 | BF13: 75 | BG13: 2293 | BH13: 187 | BI13: 2480 | BJ13: 3220 | BK13: 2342 | BL13: 5562 | BM13: 3711 | BN13: 9273 | BO13: 2615 | BP13: 11888
A14: Pagamento de Dívida de Aquisições (Compromissos a Pagar) | B14: 2124 | C14: 12740 | D14: 4337 | E14: 17077 | F14: 7029 | G14: 1184 | H14: 8213 | I14: 32795 | J14: 41008 | K14: 93284 | L14: 134292 | M14: 62369 | N14: 0 | O14: 62369 | P14: 0 | Q14: 62369 | R14: 8740 | S14: 71109 | T14: 15615 | U14: 270 | V14: 15885 | W14: 966 | X14: 16851 | Y14: 11817 | Z14: 28668 | AA14: 37479 | AB14: 1070 | AC14: 38549 | AD14: 0 | AE14: 38549 | AF14: -1 | AG14: 38548 | AH14: 37324 | AI14: 0 | AJ14: 37324 | AK14: 0 | AL14: 37324 | AM14: 0 | AN14: 37324 | AO14: 40013 | AP14: 0 | AQ14: 40013 | AR14: 1369 | AS14: 41382 | AT14: 222089 | AU14: 263471 | AV14: 68960 | AW14: 20089 | AX14: 89049 | AY14: 1946 | AZ14: 90995 | BA14: 113995 | BB14: 204990 | BC14: 70000 | BD14: 130000 | BE14: 200000 | BF14: 35024 | BG14: 235024 | BH14: 24705 | BI14: 259729 | BJ14: 246923 | BK14: 19667 | BL14: 266590 | BM14: 720 | BN14: 267310 | BO14: 27900 | BP14: 295210
A15: Total CAPEX e Pagamento de Dívida de Aquisições | B15: 82134 | C15: 83638 | D15: 35904 | E15: 119542 | F15: 41973 | G15: 30814 | H15: 72787 | I15: 65314 | J15: 138101 | K15: 157467 | L15: 295568 | M15: 100474 | N15: 12095 | O15: 112569 | P15: 11170 | Q15: 123739 | R15: 46318 | S15: 170057 | T15: 31717 | U15: 18269 | V15: 49986 | W15: 20053 | X15: 70039 | Y15: 39732 | Z15: 109771 | AA15: 70681 | AB15: 30998 | AC15: 101679 | AD15: 25927 | AE15: 127606 | AF15: 21308 | AG15: 148914 | AH15: 63782 | AI15: 21933 | AJ15: 85715 | AK15: 22084 | AL15: 107799 | AM15: 26851 | AN15: 134650 | AO15: 55668 | AP15: 14260 | AQ15: 69928 | AR15: 20077 | AS15: 90005 | AT15: 238701 | AU15: 328706 | AV15: 82690 | AW15: 30965 | AX15: 113655 | AY15: 16820 | AZ15: 130475 | BA15: 125360 | BB15: 255835 | BC15: 80230 | BD15: 148336 | BE15: 228566 | BF15: 58076 | BG15: 286642 | BH15: 45033 | BI15: 331675 | BJ15: 262606 | BK15: 46661 | BL15: 309267 | BM15: 36778 | BN15: 346045 | BO15: 57791 | BP15: 403836

Sheet Dividendos
A2: GRUPO SER EDUCACIONAL
A3: HISTÓRICO DE PAGAMENTO DE DIVIDENDOS
A6: Data de Distribuição | B6: Exercício Social de Competência | C6: Dividendo/JCP | D6: Valor Bruto (R$) | E6: R$/ação (bruto) | F6: Valor Líquido (R$) | G6: R$/ação (líquido)
A7: 2021-12-10 | B7: 2021 | C7: Dividendo | D7: 15893279 | E7: 0.123470217 | F7: 15893279 | G7: 0.1234702174
A8: 2021-05-28 | B8: 2020 | C8: Dividendo | D8: 11196750.87 | E8: 0.08698427 | F8: 11196750.87 | G8: 0.08698426953
A9: 2021-01-20 | B9: 2020 | C9: JCP | D9: 15465327.13 | E9: 0.120145585 | F9: 13519665.82 | G9: 0.1050303136
A10: 2020-12-11 | B10: 2020 | C10: Dividendo | D10: 20372508 | E10: 0.158268032 | F10: 20372508 | G10: 0.1582680322
A11: 2020-06-30 | B11: 2019 | C11: Dividendo | D11: 6063113 | E11: 0.04710254444 | F11: 6063113 | G11: 0.04710254444
A12: 2019-09-10 | B12: 2019 | C12: Dividendo | D12: 32803043 | E12: 0.254837 | F12: 32803043 | G12: 0.2548372083
A13: 2019-05-24 | B13: 2019 | C13: Dividendo | D13: 250000000 | E13: 1.942176586 | F13: 250000000 | G13: 1.942176586
A14: 2019-05-24 | B14: 2018 | C14: Dividendo | D14: 36679381 | E14: 0.2849513399 | F14: 36679381 | G14: 0.2849513399
A15: 2018-09-25 | B15: 2018 | C15: Dividendo | D15: 20685235 | E15: 0.151280291 | F15: 20685235 | G15: 0.1512802914
A16: 2018-05-07 | B16: 2017 | C16: Dividendo | D16: 37847153 | E16: 0.273393937 | F16: 37847153 | G16: 0.2733939372
A17: 2017-05-05 | B17: 2016 | C17: Dividendo | D17: 34233511 | E17: 0.274228437 | F17: 34233511 | G17: 0.2742284373
A18: 2016-05-06 | B18: 2015 | C18: Dividendo | D18: 23116119.4 | E18: 0.18517228 | F18: 23116119.4 | G18: 0.1851722805
A19: 2015-09-15 | B19: 2015 | C19: JCP | D19: 3960439.79 | E19: 0.03171804 | F19: 3366373.822 | G19: 0.0269603355
A20: 2015-05-08 | B20: 2014 | C20: Dividendo | D20: 1925000 | E20: 0.015414676 | F20: 1925000 | G20: 0.015414676
A21: 2015-01-12 | B21: 2014 | C21: JCP | D21: 7419000 | E21: 0.059250035 | F21: 6306150 | G21: 0.05036328266
A22: 2014-11-28 | B22: 2014 | C22: JCP | D22: 7020000 | E22: 0.056062474 | F22: 5967000 | G22: 0.04765470336
A23: 2014-08-27 | B23: 2014 | C23: Dividendo | D23: 18156000 | E23: 0.145 | F23: 18156000 | G23: 0.145
A24: 2014-05-16 | B24: 2013 | C24: Dividendo | D24: 4058500 | E24: 0.032412705 | F24: 4058500 | G24: 0.032412705

Sheet Endividamento
A2: GRUPO SER EDUCACIONAL
A3: HISTÓRICO DO ENDIVIDAMENTO
A6: Endividamento (Valores em R$ ('000)) | B6: 2012-12-31 | C6: 2013-03-31 | D6: 2013-06-30 | E6: 2013-09-30 | F6: 2013-12-31 | G6: 2014-03-31 | H6: 2014-06-30 | I6: 2014-09-30 | J6: 2014-12-31 | K6: 2015-03-31 | L6: 2015-06-30 | M6: 2015-09-30 | N6: 2015-12-31 | O6: 2016-03-31 | P6: 2016-06-30 | Q6: 2016-09-30 | R6: 2016-12-31 | S6: 2017-03-31 | T6: 2017-06-30 | U6: 2017-09-30 | V6: 2017-12-31 | W6: 2018-03-31 | X6: 2018-06-30 | Y6: 2018-09-30 | Z6: 2018-12-31 | AA6: 2019-03-31 | AB6: 2019-06-30 | AC6: 2019-09-30 | AD6: 2019-12-31 | AE6: 2020-03-31 | AF6: 2020-06-30 | AG6: 2020-09-30 | AH6: 2020-12-31 | AI6: 2021-03-31 | AJ6: 2021-06-30 | AK6: 2021-09-30 | AL6: 2021-12-31 | AM6: 2022-03-31 | AN6: 2022-06-30 | AO6: 2022-09-30 | AP6: 2022-12-31
A7: Patrimônio líquido | B7: 193198 | C7: 232932 | D7: 108840 | E7: 134798 | F7: 451366 | G7: 510072 | H7: 559734 | I7: 592146 | J7: 626652 | K7: 703279 | L7: 748325 | M7: 772481 | N7: 757233 | O7: 843146 | P7: 903858 | Q7: 952479 | R7: 950400 | S7: 1030625 | T7: 1095520 | U7: 1143553 | V7: 1508390 | W7: 1540853 | X7: 1572856 | Y7: 1545057 | Z7: 1470543 | AA7: 1526635 | AB7: 1326080 | AC7: 1317114 | AD7: 1308488 | AE7: 1325254 | AF7: 1359598 | AG7: 1331620 | AH7: 1426487 | AI7: 1456555 | AJ7: 1466360 | AK7: 1459583 | AL7: 1463077 | AM7: 1443671 | AN7: 1403267 | AO7: 1363922 | AP7: 1237531
A8: Caixa e disponibilidades | B8: 17182 | C8: 19833 | D8: 61476 | E8: 19887 | F8: 217260 | G8: 221604 | H8: 195819 | I8: 70267 | J8: 73248 | K8: 45711 | L8: 34128 | M8: 82824 | N8: 69999 | O8: 56973 | P8: 65765 | Q8: 100742 | R8: 62036 | S8: 51124 | T8: 68719 | U8: 166388 | V8: 279286 | W8: 300229 | X8: 281991 | Y8: 358183 | Z8: 314731 | AA8: 516989 | AB8: 313825 | AC8: 276850 | AD8: 215173 | AE8: 170934 | AF8: 699537 | AG8: 704012 | AH8: 679933 | AI8: 551991 | AJ8: 457511 | AK8: 390368 | AL8: 213704 | AM8: 107269 | AN8: 88344 | AO8: 226051 | AP8: 180764
A9: Títulos e valores mobiliários | B9: 0 | C9: 0 | D9: 0 | E9: 0 | F9: 84311 | G9: 86377 | H9: 88619 | I9: 207316 | J9: 63418 | K9: 0 | L9: 0 | M9: 256897 | N9: 213135 | O9: 168657 | P9: 183037 | Q9: 271140 | R9: 337547 | S9: 285666 | T9: 272596 | U9: 259438 | V9: 632427 | W9: 556513 | X9: 532980 | Y9: 618139 | Z9: 606167 | AA9: 359460 | AB9: 242985 | AC9: 228756 | AD9: 91290 | AE9: 11356 | AF9: 624 | AG9: 654 | AH9: 1176 | AI9: 36995 | AJ9: 15022 | AK9: 16998 | AL9: 77360 | AM9: 73342 | AN9: 46305 | AO9: 77601 | AP9: 60795
A10: Endividamento bruto | B10: -95555 | C10: -115586 | D10: -132123 | E10: -128635 | F10: -127533 | G10: -130795 | H10: -127775 | I10: -130296 | J10: -173709 | K10: -292005 | L10: -289453 | M10: -562179 | N10: -563135 | O10: -548837 | P10: -534152 | Q10: -534798 | R10: -517723 | S10: -467680 | T10: -437077 | U10: -427111 | V10: -459146 | W10: -429684 | X10: -422295 | Y10: -430275 | Z10: -423672 | AA10: -390809 | AB10: -383723 | AC10: -276768 | AD10: -276715 | AE10: -166725 | AF10: -632619 | AG10: -608965 | AH10: -653058 | AI10: -706396 | AJ10: -777445 | AK10: -711155 | AL10: -675658 | AM10: -844732 | AN10: -828200 | AO10: -1036134 | AP10: -1025449
A11: Empréstimos e Financiamentos | B11: -81396 | C11: -82713 | D11: -108381 | E11: -108473 | F11: -107836 | G11: -105668 | H11: -105385 | I11: -107645 | J11: -107937 | K11: -122488 | L11: -119829 | M11: -388615 | N11: -382724 | O11: -379141 | P11: -366842 | Q11: -363017 | R11: -348788 | S11: -332802 | T11: -299926 | U11: -286458 | V11: -314860 | W11: -319924 | X11: -310081 | Y11: -315488 | Z11: -306218 | AA11: -311423 | AB11: -302627 | AC11: -193130 | AD11: -182178 | AE11: -139570 | AF11: -630678 | AG11: -608965 | AH11: -591058 | AI11: -569204 | AJ11: -562626 | AK11: -487548 | AL11: -436065 | AM11: -619484 | AN11: -600778 | AO11: -792515 | AP11: -595566
A12: Curto prazo | B12: -38854 | C12: -42163 | D12: -16783 | E12: -19187 | F12: -17836 | G12: -18015 | H12: -18713 | I12: -23675 | J12: -33264 | K12: -35066 | L12: -38464 | M12: -45868 | N12: -49484 | O12: -54364 | P12: -75185 | Q12: -87126 | R12: -99259 | S12: -98928 | T12: -92413 | U12: -94845 | V12: -29205 | W12: -28070 | X12: -25429 | Y12: -133566 | Z12: -133446 | AA12: -173650 | AB12: -176028 | AC12: -91916 | AD12: -92137 | AE12: -74914 | AF12: -77635 | AG12: -81200 | AH12: -163790 | AI12: -192359 | AJ12: -236207 | AK12: -212222 | AL12: -201307 | AM12: -157322 | AN12: -83723 | AO12: -114801 | AP12: -193950
A13: Longo prazo | B13: -42542 | C13: -40550 | D13: -91598 | E13: -89286 | F13: -90000 | G13: -87653 | H13: -86672 | I13: -83970 | J13: -74673 | K13: -87422 | L13: -81365 | M13: -342747 | N13: -333240 | O13: -324777 | P13: -291657 | Q13: -275891 | R13: -249529 | S13: -233874 | T13: -207513 | U13: -191613 | V13: -285655 | W13: -291854 | X13: -284652 | Y13: -181922 | Z13: -172772 | AA13: -137773 | AB13: -126599 | AC13: -101214 | AD13: -90041 | AE13: -64656 | AF13: -553043 | AG13: -527765 | AH13: -427268 | AI13: -376845 | AJ13: -326419 | AK13: -275326 | AL13: -234758 | AM13: -462162 | AN13: -517055 | AO13: -677714 | AP13: -401616
A14: Debêntures | B14: 0 | C14: 0 | D14: 0 | E14: 0 | F14: 0 | G14: 0 | H14: 0 | I14: 0 | J14: 0 | K14: 0 | L14: 0 | M14: 0 | N14: 0 | O14: 0 | P14: 0 | Q14: 0 | R14: 0 | S14: 0 | T14: 0 | U14: 0 | V14: 0 | W14: 0 | X14: 0 | Y14: 0 | Z14: 0 | AA14: 0 | AB14: 0 | AC14: 0 | AD14: 0 | AE14: 0 | AF14: 0 | AG14: 0 | AH14: 0 | AI14: 0 | AJ14: 0 | AK14: 0 | AL14: 0 | AM14: 0 | AN14: 0 | AO14: 0 | AP14: -210319
A15: Curto prazo | B15: 0 | C15: 0 | D15: 0 | E15: 0 | F15: 0 | G15: 0 | H15: 0 | I15: 0 | J15: 0 | K15: 0 | L15: 0 | M15: 0 | N15: 0 | O15: 0 | P15: 0 | Q15: 0 | R15: 0 | S15: 0 | T15: 0 | U15: 0 | V15: 0 | W15: 0 | X15: 0 | Y15: 0 | Z15: 0 | AA15: 0 | AB15: 0 | AC15: 0 | AD15: 0 | AE15: 0 | AF15: 0 | AG15: 0 | AH15: 0 | AI15: 0 | AJ15: 0 | AK15: 0 | AL15: 0 | AM15: 0 | AN15: 0 | AO15: 0 | AP15: -11208
A16: Longo prazo | B16: 0 | C16: 0 | D16: 0 | E16: 0 | F16: 0 | G16: 0 | H16: 0 | I16: 0 | J16: 0 | K16: 0 | L16: 0 | M16: 0 | N16: 0 | O16: 0 | P16: 0 | Q16: 0 | R16: 0 | S16: 0 | T16: 0 | U16: 0 | V16: 0 | W16: 0 | X16: 0 | Y16: 0 | Z16: 0 | AA16: 0 | AB16: 0 | AC16: 0 | AD16: 0 | AE16: 0 | AF16: 0 | AG16: 0 | AH16: 0 | AI16: 0 | AJ16: 0 | AK16: 0 | AL16: 0 | AM16: 0 | AN16: 0 | AO16: 0 | AP16: -199111
A17: Compromissos a pagar * | B17: -14159 | C17: -32873 | D17: -23742 | E17: -20162 | F17: -19697 | G17: -25127 | H17: -22390 | I17: -22651 | J17: -65772 | K17: -169517 | L17: -169624 | M17: -173564 | N17: -180411 | O17: -169696 | P17: -167310 | Q17: -171781 | R17: -168935 | S17: -134878 | T17: -137151 | U17: -140653 | V17: -144286 | W17: -109760 | X17: -112214 | Y17: -114787 | Z17: -117454 | AA17: -79386 | AB17: -81096 | AC17: -83638 | AD17: -94537 | AE17: -27155 | AF17: -1941 | AG17: 0 | AH17: -62000 | AI17: -137192 | AJ17: -214819 | AK17: -223607 | AL17: -239593 | AM17: -225248 | AN17: -227422 | AO17: -243619 | AP17: -219564
A18: Caixa (dívida) líquido | B18: -78373 | C18: -95753 | D18: -70647 | E18: -108748 | F18: 174038 | G18: 177186 | H18: 156663 | I18: 147287 | J18: -37043 | K18: -246294 | L18: -255325 | M18: -222458 | N18: -280001 | O18: -323207 | P18: -285350 | Q18: -162916 | R18: -118140 | S18: -130890 | T18: -95762 | U18: -1285 | V18: 452567 | W18: 427058 | X18: 392676 | Y18: 546047 | Z18: 497226 | AA18: 485640 | AB18: 173087 | AC18: 228838 | AD18: 29748 | AE18: 15565 | AF18: 67542 | AG18: 95701 | AH18: 28051 | AI18: -117410 | AJ18: -304912 | AK18: -303789 | AL18: -384594 | AM18: -664121 | AN18: -693551 | AO18: -732482 | AP18: -783890
A20: * Compromissos a pagar referem-se a parcelas a vencer de aquisições de imóveis e investimentos.

Sheet Cronograma da Dívida
A2: GRUPO SER EDUCACIONAL
A3: CRONOGRAMA DA DÍVIDA
A6: Cronograma da Dívida (Valores em R$ ('000)) | B6: Empréstimos e Financiamentos | C6: A.V. (%) | D6: Compromissos a Pagar | E6: A.V. (%) | F6: Debêntures | G6: A.V. (%) | H6: Total | I6: A.V. (%)
A7: Curto Prazo | B7: 193950 | C7: 0.3256566023 | D7: 60871 | E7: 0.2102661531 | F7: 11208 | G7: 0.0532904778 | H7: 266029 | I7: 0.2428645767
A8: Longo Prazo | B8: 401616 | C8: 0.6743433977 | D8: 228624 | E8: 0.7897338469 | F8: 199111 | G8: 0.9467095222 | H8: 829351 | I8: 0.7571354233
A9: Entre um e dois anos | B9: 176673 | C9: 0.296647223 | D9: 87726 | E9: 0.3030311404 | F9: 28323 | G9: 0.1346668632 | H9: 292722 | I9: 0.2672332889
A10: Entre dois e três anos | B10: 129478 | C10: 0.2174032769 | D10: 71548 | E10: 0.2471476191 | F10: 56895 | G10: 0.2705176422 | H10: 257921 | I10: 0.2354625792
A11: Entre três e quatro anos | B11: 74419 | C11: 0.1249550847 | D11: 25119 | E11: 0.08676833797 | F11: 56895 | G11: 0.2705176422 | H11: 156433 | I11: 0.142811627
A12: Entre quatro e cinco anos | B12: 21046 | C12: 0.03533781311 | D12: 44231 | E12: 0.1527867493 | F12: 56998 | G12: 0.2710073745 | H12: 122275 | I12: 0.1116279282
A13: Acima de cinco anos | B13: 0 | C13: 0 | D13: 0 | E13: 0 | F13: 0 | G13: 0 | H13: 0 | I13: 0
A14: Total da Dívida | B14: 595566 | C14: 1 | D14: 289495 | E14: 1 | F14: 210319 | G14: 1 | H14: 1095380 | I14: 1
A15: Escrow FAEL | B15: 0 | D15: -69931 | F15: 0 | H15: -69931
A16: Total da Dívida (Ex-Escrow FAEL) | B16: 595566 | D16: 219564 | H16: 1025449

Sheet N.o Unidades - por região
B2: GRUPO SER EDUCACIONAL
B3: NÚMERO DE UNIDADES CREDENCIADAS E EM OPERAÇÃO
B7: UNIDADES | C7: 4T13 | D7: 1T14 | E7: 2T14 | F7: 3T14 | G7: 4T14 | H7: 1T15 | I7: 2T15 | J7: 3T15 | K7: 4T15 | L7: 1T16 | M7: 2T16 | N7: 3T16 | O7: 4T16 | P7: 1T17 | Q7: 2T17 | R7: 3T17 | S7: 4T17 | T7: 1T18 | U7: 2T18 | V7: 3T18 | W7: 4T18 | X7: 1T19 | Y7: 2T19 | Z7: 3T19 | AA7: 4T19 | AB7: 1T20 | AC7: 2T20 | AD7: 3T20 | AE7: 4T20 | AF7: 1T21 | AG7: 2T21 | AH7: 3T21 | AI7: 4T21 | AJ7: 1T22 | AK7: 2T22 | AL7: 3T22 | AM7: 4T22
B8: Unidades Credenciadas | C8: 24 | D8: 25 | E8: 25 | F8: 26 | G8: 31 | H8: 36 | I8: 38 | J8: 39 | K8: 42 | L8: 42 | M8: 43 | N8: 44 | O8: 46 | P8: 61 | Q8: 61 | R8: 71 | S8: 73 | T8: 76 | U8: 79 | V8: 83 | W8: 88 | X8: 95 | Y8: 97 | Z8: 105 | AA8: 108 | AB8: 108 | AC8: 108 | AD8: 112 | AE8: 112 | AF8: 116 | AG8: 117 | AH8: 115 | AI8: 115 | AJ8: 115 | AK8: 115 | AL8: 115 | AM8: 65
B9: Campi em Operação | AB9: 58 | AC9: 58 | AD9: 54 | AE9: 56 | AF9: 61 | AG9: 62 | AH9: 63 | AI9: 62 | AJ9: 61 | AK9: 63 | AL9: 62 | AM9: 61

Sheet Polos EAD
B2: GRUPO SER EDUCACIONAL
B3: NÚMERO DE POLOS ATIVOS E EM OPERAÇÃO
B6: POLOS | C6: 1T14 | D6: 2T14 | E6: 3T14 | F6: 4T14 | G6: 1T15 | H6: 2T15 | I6: 3T15 | J6: 4T15 | K6: 1T16 | L6: 2T16 | M6: 3T16 | N6: 4T16 | O6: 1T17 | P6: 2T17 | Q6: 3T17 | R6: 4T17 | S6: 1T18 | T6: 2T18 | U6: 3T18 | V6: 4T18 | W6: 1T19 | X6: 2T19 | Y6: 3T19 | Z6: 4T19 | AA6: 1T20 | AB6: 2T20 | AC6: 3T20 | AD6: 4T20 | AE6: 1T21 | AF6: 2T21 | AG6: 3T21 | AH6: 4T21 | AI6: 1T22 | AJ6: 2T22 | AK6: 3T22 | AL6: 4T22
B7: Polos Ativos | C7: 9 | D7: 9 | E7: 9 | F7: 9 | G7: 9 | H7: 9 | I7: 9 | J7: 9 | K7: 15 | L7: 15 | M7: 15 | N7: 15 | O7: 15 | P7: 15 | Q7: 571 | R7: 567 | S7: 514 | T7: 423 | U7: 386 | V7: 399 | W7: 399 | X7: 399 | Y7: 331 | Z7: 335 | AA7: 362 | AB7: 328 | AC7: 432 | AD7: 456 | AE7: 653 | AF7: 653 | AG7: 516 | AH7: 675 | AI7: 1164 | AJ7: 1185 | AK7: 1042 | AL7: 1052
B8: Polos com alunos captados | C8: 9 | D8: 9 | E8: 9 | F8: 9 | G8: 9 | H8: 9 | I8: 9 | J8: 9 | K8: 15 | L8: 15 | M8: 15 | N8: 15 | O8: 15 | P8: 15 | Q8: 119 | R8: 119 | S8: 190 | T8: 203 | U8: 209 | V8: 205 | W8: 246 | X8: 226 | Y8: 244 | Z8: 273 | AA8: 273 | AB8: 242 | AC8: 336 | AD8: 351 | AE8: 447 | AF8: 462 | AG8: 508 | AH8: 516 | AI8: 1015 | AJ8: 1022 | AK8: 986 | AL8: 948
